{"text_format":"1","workbook":"xlsx","n_sheets":4,"sheets":["BANDO N. 3090 A-T 2020","Macro","Menù","Repertorio"],"not_rendered":{"charts":0,"images":0,"macros":1,"external_links":0,"defined_names":2,"comments":0,"pivot_tables":0},"unopened":[],"bounds":{"document_bytes":16777216,"sheet_cells":100000,"rows_first":2000,"rows_last":500,"rows_between":2000,"halvings":0,"cell_chars":16384,"cell_head_chars":4096},"cells_cut":0,"cells_raw":0,"read":"whole","date_system":"1900"}

{"sheet":"BANDO N. 3090 A-T 2020","index":0,"n_rows":299,"n_cols":42,"rows_kept":299,"cut":false,"hidden":false,"merged":[[0,0,0,4],[0,5,0,11],[0,12,0,16],[0,18,0,23],[0,31,0,40]]}
["ANAGRAFICA ORGANISMO DI CONSULENZA",null,null,null,null,"ANAGRAFICA AZIENDA",null,null,null,null,null,null,"SEDI OPERATIVE ORGANISMO DI CONSULENZA",null,null,null,null,null,"ATTIVITA' DI SUPPORTO",null,null,null,null,null,null,null,null,null,null,null,null,"CONSULENTE INCARICATO"]
["LOTTO","Denominazione Organismo di Consulenza","C.F.","PARTITA\n IVA","TIPOLOGIA ORGANISMO \nDI CONSULENZA \n(riconosciuto)","DENOMINAZIONE AZIENDA","RAGIONE SOCIALE","CUAA","MANIFESTAZIONE D'INTERSSE","TIPOLOGIA DI AZIENDA","In caso di Azienda appartenente alla Filiera del Turismo Rurale e dell’Artigianato Artistico \nSPECIFICARE \"ALTRO\"","MACRO-AREA","SEDE OPERATIVA DELL'ORGANISMO DI CONSULENZA - AV","SEDE OPERATIVA DELL'ORGANISMO DI CONSULENZA - BN","SEDE OPERATIVA DELL'ORGANISMO DI CONSULENZA - CE","SEDE OPERATIVA DELL'ORGANISMO DI CONSULENZA - NA","SEDE OPERATIVA DELL'ORGANISMO DI CONSULENZA - SA","MODULO","DETERMINAZIONI ANALITICHE, TECNICHE ED ECONOMICHE","Specificare ALTRO","NUMERO VISITE AZIENDALI","SUPPORTI E STRUMENTI INFORMATICI","STRUMENTI PER MONITORARE LA QUALITA'","NEWSLETTER, BLOG, \nFORUM, COMMUNITY, \nFAQ, CHAT","COSTO unitario consulenze singole","ANNO di riferimento della consulenza","CONSULENZA COLLETTIVA","COSTO \nunitario consulenza collettiva","FOCUS \nAREA","FABBISOGNO \nPREVALENTE ","TARGETING","COGNOME","NOME","C.F. Consulenti","RICONOSCIUTO","AMBITO DI \nCONSULENZA","ANNI DI \nESPERIENZA","TITOLO DI STUDIO","SECONDA \nLAUREA","NUMERO CORSI DI AGGIORNAMENTO","NUMERO DI PUBBLICAZIONI","RISPONDENZA AGLI OBIETTIVI TRASVERSALI"]
[null,null,null,null,null,null,null,null,null,null,null,null,null,null,null,null,null,null,null,null,null,null,null,null,{"$f":"IF($R3<>0,VLOOKUP($R3,Repertorio!$A$2:$M$85,11),\"\")","v":""},null,null,null,{"$f":"IF($R3<>0,VLOOKUP($R3,Repertorio!$A$2:$M$85,8),\"\")","v":""},{"$f":"IF($R3<>0,VLOOKUP($R3,Repertorio!$A$2:$M$85,10),\"\")","v":""},null,null,null,null,null,{"$f":"IF($R3<>0,VLOOKUP($R3,Repertorio!$A$2:$M$85,7),\"\")","v":""}]
[null,{"$f":"+IF($A4<>\"\",B$3,\"\")","v":""},"","",null,null,null,null,null,null,null,null,null,null,null,null,null,null,null,null,null,null,null,null,{"$f":"IF($R4<>0,VLOOKUP($R4,Repertorio!$A$2:$M$85,11),\"\")","v":""},null,null,null,{"$f":"IF($R4<>0,VLOOKUP($R4,Repertorio!$A$2:$M$85,8),\"\")","v":""},{"$f":"IF($R4<>0,VLOOKUP($R4,Repertorio!$A$2:$M$85,10),\"\")","v":""},null,null,null,null,null,{"$f":"IF($R4<>0,VLOOKUP($R4,Repertorio!$A$2:$M$85,7),\"\")","v":""}]
[null,"","","",null,null,null,null,null,null,null,null,null,null,null,null,null,null,null,null,null,null,null,null,{"$f":"IF($R5<>0,VLOOKUP($R5,Repertorio!$A$2:$M$85,11),\"\")","v":""},null,null,null,{"$f":"IF($R5<>0,VLOOKUP($R5,Repertorio!$A$2:$M$85,8),\"\")","v":""},{"$f":"IF($R5<>0,VLOOKUP($R5,Repertorio!$A$2:$M$85,10),\"\")","v":""},null,null,null,null,null,{"$f":"IF($R5<>0,VLOOKUP($R5,Repertorio!$A$2:$M$85,7),\"\")","v":""}]
[null,"","","",null,null,null,null,null,null,null,null,null,null,null,null,null,null,null,null,null,null,null,null,{"$f":"IF($R6<>0,VLOOKUP($R6,Repertorio!$A$2:$M$85,11),\"\")","v":""},null,null,null,{"$f":"IF($R6<>0,VLOOKUP($R6,Repertorio!$A$2:$M$85,8),\"\")","v":""},{"$f":"IF($R6<>0,VLOOKUP($R6,Repertorio!$A$2:$M$85,10),\"\")","v":""},null,null,null,null,null,{"$f":"IF($R6<>0,VLOOKUP($R6,Repertorio!$A$2:$M$85,7),\"\")","v":""}]
[null,"","","",null,null,null,null,null,null,null,null,null,null,null,null,null,null,null,null,null,null,null,null,{"$f":"IF($R7<>0,VLOOKUP($R7,Repertorio!$A$2:$M$85,11),\"\")","v":""},null,null,null,{"$f":"IF($R7<>0,VLOOKUP($R7,Repertorio!$A$2:$M$85,8),\"\")","v":""},{"$f":"IF($R7<>0,VLOOKUP($R7,Repertorio!$A$2:$M$85,10),\"\")","v":""},null,null,null,null,null,{"$f":"IF($R7<>0,VLOOKUP($R7,Repertorio!$A$2:$M$85,7),\"\")","v":""}]
[null,"","","",null,null,null,null,null,null,null,null,null,null,null,null,null,null,null,null,null,null,null,null,{"$f":"IF($R8<>0,VLOOKUP($R8,Repertorio!$A$2:$M$85,11),\"\")","v":""},null,null,null,{"$f":"IF($R8<>0,VLOOKUP($R8,Repertorio!$A$2:$M$85,8),\"\")","v":""},{"$f":"IF($R8<>0,VLOOKUP($R8,Repertorio!$A$2:$M$85,10),\"\")","v":""},null,null,null,null,null,{"$f":"IF($R8<>0,VLOOKUP($R8,Repertorio!$A$2:$M$85,7),\"\")","v":""}]
[null,"","","",null,null,null,null,null,null,null,null,null,null,null,null,null,null,null,null,null,null,null,null,{"$f":"IF($R9<>0,VLOOKUP($R9,Repertorio!$A$2:$M$85,11),\"\")","v":""},null,null,null,{"$f":"IF($R9<>0,VLOOKUP($R9,Repertorio!$A$2:$M$85,8),\"\")","v":""},{"$f":"IF($R9<>0,VLOOKUP($R9,Repertorio!$A$2:$M$85,10),\"\")","v":""},null,null,null,null,null,{"$f":"IF($R9<>0,VLOOKUP($R9,Repertorio!$A$2:$M$85,7),\"\")","v":""}]
[null,"","","",null,null,null,null,null,null,null,null,null,null,null,null,null,null,null,null,null,null,null,null,{"$f":"IF($R10<>0,VLOOKUP($R10,Repertorio!$A$2:$M$85,11),\"\")","v":""},null,null,null,{"$f":"IF($R10<>0,VLOOKUP($R10,Repertorio!$A$2:$M$85,8),\"\")","v":""},{"$f":"IF($R10<>0,VLOOKUP($R10,Repertorio!$A$2:$M$85,10),\"\")","v":""},null,null,null,null,null,{"$f":"IF($R10<>0,VLOOKUP($R10,Repertorio!$A$2:$M$85,7),\"\")","v":""}]
[null,"","","",null,null,null,null,null,null,null,null,null,null,null,null,null,null,null,null,null,null,null,null,{"$f":"IF($R11<>0,VLOOKUP($R11,Repertorio!$A$2:$M$85,11),\"\")","v":""},null,null,null,{"$f":"IF($R11<>0,VLOOKUP($R11,Repertorio!$A$2:$M$85,8),\"\")","v":""},{"$f":"IF($R11<>0,VLOOKUP($R11,Repertorio!$A$2:$M$85,10),\"\")","v":""},null,null,null,null,null,{"$f":"IF($R11<>0,VLOOKUP($R11,Repertorio!$A$2:$M$85,7),\"\")","v":""}]
[null,"","","",null,null,null,null,null,null,null,null,null,null,null,null,null,null,null,null,null,null,null,null,{"$f":"IF($R12<>0,VLOOKUP($R12,Repertorio!$A$2:$M$85,11),\"\")","v":""},null,null,null,{"$f":"IF($R12<>0,VLOOKUP($R12,Repertorio!$A$2:$M$85,8),\"\")","v":""},{"$f":"IF($R12<>0,VLOOKUP($R12,Repertorio!$A$2:$M$85,10),\"\")","v":""},null,null,null,null,null,{"$f":"IF($R12<>0,VLOOKUP($R12,Repertorio!$A$2:$M$85,7),\"\")","v":""}]
[null,"","","",null,null,null,null,null,null,{"$f":"+IF(J13<>\"C9. Altro\",\"\",\"Valorizzare\")","v":""},null,null,null,null,null,null,null,null,null,null,null,null,null,{"$f":"IF($R13<>0,VLOOKUP($R13,Repertorio!$A$2:$M$85,11),\"\")","v":""},null,null,null,{"$f":"IF($R13<>0,VLOOKUP($R13,Repertorio!$A$2:$M$85,8),\"\")","v":""},{"$f":"IF($R13<>0,VLOOKUP($R13,Repertorio!$A$2:$M$85,10),\"\")","v":""},null,null,null,null,null,{"$f":"IF($R13<>0,VLOOKUP($R13,Repertorio!$A$2:$M$85,7),\"\")","v":""}]
[null,"","","",null,null,null,null,null,null,"",null,null,null,null,null,null,null,null,null,null,null,null,null,{"$f":"IF($R14<>0,VLOOKUP($R14,Repertorio!$A$2:$M$85,11),\"\")","v":""},null,null,null,{"$f":"IF($R14<>0,VLOOKUP($R14,Repertorio!$A$2:$M$85,8),\"\")","v":""},{"$f":"IF($R14<>0,VLOOKUP($R14,Repertorio!$A$2:$M$85,10),\"\")","v":""},null,null,null,null,null,{"$f":"IF($R14<>0,VLOOKUP($R14,Repertorio!$A$2:$M$85,7),\"\")","v":""}]
[null,"","","",null,null,null,null,null,null,"",null,null,null,null,null,null,null,null,null,null,null,null,null,{"$f":"IF($R15<>0,VLOOKUP($R15,Repertorio!$A$2:$M$85,11),\"\")","v":""},null,null,null,{"$f":"IF($R15<>0,VLOOKUP($R15,Repertorio!$A$2:$M$85,8),\"\")","v":""},{"$f":"IF($R15<>0,VLOOKUP($R15,Repertorio!$A$2:$M$85,10),\"\")","v":""},null,null,null,null,null,{"$f":"IF($R15<>0,VLOOKUP($R15,Repertorio!$A$2:$M$85,7),\"\")","v":""}]
[null,"","","",null,null,null,null,null,null,"",null,null,null,null,null,null,null,null,null,null,null,null,null,{"$f":"IF($R16<>0,VLOOKUP($R16,Repertorio!$A$2:$M$85,11),\"\")","v":""},null,null,null,{"$f":"IF($R16<>0,VLOOKUP($R16,Repertorio!$A$2:$M$85,8),\"\")","v":""},{"$f":"IF($R16<>0,VLOOKUP($R16,Repertorio!$A$2:$M$85,10),\"\")","v":""},null,null,null,null,null,{"$f":"IF($R16<>0,VLOOKUP($R16,Repertorio!$A$2:$M$85,7),\"\")","v":""}]
[null,"","","",null,null,null,null,null,null,"",null,null,null,null,null,null,null,null,null,null,null,null,null,{"$f":"IF($R17<>0,VLOOKUP($R17,Repertorio!$A$2:$M$85,11),\"\")","v":""},null,null,null,{"$f":"IF($R17<>0,VLOOKUP($R17,Repertorio!$A$2:$M$85,8),\"\")","v":""},{"$f":"IF($R17<>0,VLOOKUP($R17,Repertorio!$A$2:$M$85,10),\"\")","v":""},null,null,null,null,null,{"$f":"IF($R17<>0,VLOOKUP($R17,Repertorio!$A$2:$M$85,7),\"\")","v":""}]
[null,"","","",null,null,null,null,null,null,"",null,null,null,null,null,null,null,null,null,null,null,null,null,{"$f":"IF($R18<>0,VLOOKUP($R18,Repertorio!$A$2:$M$85,11),\"\")","v":""},null,null,null,{"$f":"IF($R18<>0,VLOOKUP($R18,Repertorio!$A$2:$M$85,8),\"\")","v":""},{"$f":"IF($R18<>0,VLOOKUP($R18,Repertorio!$A$2:$M$85,10),\"\")","v":""},null,null,null,null,null,{"$f":"IF($R18<>0,VLOOKUP($R18,Repertorio!$A$2:$M$85,7),\"\")","v":""}]
[null,"","","",null,null,null,null,null,null,"",null,null,null,null,null,null,null,null,null,null,null,null,null,{"$f":"IF($R19<>0,VLOOKUP($R19,Repertorio!$A$2:$M$85,11),\"\")","v":""},null,null,null,{"$f":"IF($R19<>0,VLOOKUP($R19,Repertorio!$A$2:$M$85,8),\"\")","v":""},{"$f":"IF($R19<>0,VLOOKUP($R19,Repertorio!$A$2:$M$85,10),\"\")","v":""},null,null,null,null,null,{"$f":"IF($R19<>0,VLOOKUP($R19,Repertorio!$A$2:$M$85,7),\"\")","v":""}]
[null,"","","",null,null,null,null,null,null,"",null,null,null,null,null,null,null,null,null,null,null,null,null,{"$f":"IF($R20<>0,VLOOKUP($R20,Repertorio!$A$2:$M$85,11),\"\")","v":""},null,null,null,{"$f":"IF($R20<>0,VLOOKUP($R20,Repertorio!$A$2:$M$85,8),\"\")","v":""},{"$f":"IF($R20<>0,VLOOKUP($R20,Repertorio!$A$2:$M$85,10),\"\")","v":""},null,null,null,null,null,{"$f":"IF($R20<>0,VLOOKUP($R20,Repertorio!$A$2:$M$85,7),\"\")","v":""}]
[null,"","","",null,null,null,null,null,null,"",null,null,null,null,null,null,null,null,null,null,null,null,null,{"$f":"IF($R21<>0,VLOOKUP($R21,Repertorio!$A$2:$M$85,11),\"\")","v":""},null,null,null,{"$f":"IF($R21<>0,VLOOKUP($R21,Repertorio!$A$2:$M$85,8),\"\")","v":""},{"$f":"IF($R21<>0,VLOOKUP($R21,Repertorio!$A$2:$M$85,10),\"\")","v":""},null,null,null,null,null,{"$f":"IF($R21<>0,VLOOKUP($R21,Repertorio!$A$2:$M$85,7),\"\")","v":""}]
[null,"","","",null,null,null,null,null,null,"",null,null,null,null,null,null,null,null,null,null,null,null,null,{"$f":"IF($R22<>0,VLOOKUP($R22,Repertorio!$A$2:$M$85,11),\"\")","v":""},null,null,null,{"$f":"IF($R22<>0,VLOOKUP($R22,Repertorio!$A$2:$M$85,8),\"\")","v":""},{"$f":"IF($R22<>0,VLOOKUP($R22,Repertorio!$A$2:$M$85,10),\"\")","v":""},null,null,null,null,null,{"$f":"IF($R22<>0,VLOOKUP($R22,Repertorio!$A$2:$M$85,7),\"\")","v":""}]
[null,"","","",null,null,null,null,null,null,"",null,null,null,null,null,null,null,null,null,null,null,null,null,{"$f":"IF($R23<>0,VLOOKUP($R23,Repertorio!$A$2:$M$85,11),\"\")","v":""},null,null,null,{"$f":"IF($R23<>0,VLOOKUP($R23,Repertorio!$A$2:$M$85,8),\"\")","v":""},{"$f":"IF($R23<>0,VLOOKUP($R23,Repertorio!$A$2:$M$85,10),\"\")","v":""},null,null,null,null,null,{"$f":"IF($R23<>0,VLOOKUP($R23,Repertorio!$A$2:$M$85,7),\"\")","v":""}]
[null,"","","",null,null,null,null,null,null,"",null,null,null,null,null,null,null,null,null,null,null,null,null,{"$f":"IF($R24<>0,VLOOKUP($R24,Repertorio!$A$2:$M$85,11),\"\")","v":""},null,null,null,{"$f":"IF($R24<>0,VLOOKUP($R24,Repertorio!$A$2:$M$85,8),\"\")","v":""},{"$f":"IF($R24<>0,VLOOKUP($R24,Repertorio!$A$2:$M$85,10),\"\")","v":""},null,null,null,null,null,{"$f":"IF($R24<>0,VLOOKUP($R24,Repertorio!$A$2:$M$85,7),\"\")","v":""}]
[null,"","","",null,null,null,null,null,null,"",null,null,null,null,null,null,null,null,null,null,null,null,null,{"$f":"IF($R25<>0,VLOOKUP($R25,Repertorio!$A$2:$M$85,11),\"\")","v":""},null,null,null,{"$f":"IF($R25<>0,VLOOKUP($R25,Repertorio!$A$2:$M$85,8),\"\")","v":""},{"$f":"IF($R25<>0,VLOOKUP($R25,Repertorio!$A$2:$M$85,10),\"\")","v":""},null,null,null,null,null,{"$f":"IF($R25<>0,VLOOKUP($R25,Repertorio!$A$2:$M$85,7),\"\")","v":""}]
[null,"","","",null,null,null,null,null,null,"",null,null,null,null,null,null,null,null,null,null,null,null,null,{"$f":"IF($R26<>0,VLOOKUP($R26,Repertorio!$A$2:$M$85,11),\"\")","v":""},null,null,null,{"$f":"IF($R26<>0,VLOOKUP($R26,Repertorio!$A$2:$M$85,8),\"\")","v":""},{"$f":"IF($R26<>0,VLOOKUP($R26,Repertorio!$A$2:$M$85,10),\"\")","v":""},null,null,null,null,null,{"$f":"IF($R26<>0,VLOOKUP($R26,Repertorio!$A$2:$M$85,7),\"\")","v":""}]
[null,"","","",null,null,null,null,null,null,"",null,null,null,null,null,null,null,null,null,null,null,null,null,{"$f":"IF($R27<>0,VLOOKUP($R27,Repertorio!$A$2:$M$85,11),\"\")","v":""},null,null,null,{"$f":"IF($R27<>0,VLOOKUP($R27,Repertorio!$A$2:$M$85,8),\"\")","v":""},{"$f":"IF($R27<>0,VLOOKUP($R27,Repertorio!$A$2:$M$85,10),\"\")","v":""},null,null,null,null,null,{"$f":"IF($R27<>0,VLOOKUP($R27,Repertorio!$A$2:$M$85,7),\"\")","v":""}]
[null,"","","",null,null,null,null,null,null,"",null,null,null,null,null,null,null,null,null,null,null,null,null,{"$f":"IF($R28<>0,VLOOKUP($R28,Repertorio!$A$2:$M$85,11),\"\")","v":""},null,null,null,{"$f":"IF($R28<>0,VLOOKUP($R28,Repertorio!$A$2:$M$85,8),\"\")","v":""},{"$f":"IF($R28<>0,VLOOKUP($R28,Repertorio!$A$2:$M$85,10),\"\")","v":""},null,null,null,null,null,{"$f":"IF($R28<>0,VLOOKUP($R28,Repertorio!$A$2:$M$85,7),\"\")","v":""}]
[null,"","","",null,null,null,null,null,null,"",null,null,null,null,null,null,null,null,null,null,null,null,null,{"$f":"IF($R29<>0,VLOOKUP($R29,Repertorio!$A$2:$M$85,11),\"\")","v":""},null,null,null,{"$f":"IF($R29<>0,VLOOKUP($R29,Repertorio!$A$2:$M$85,8),\"\")","v":""},{"$f":"IF($R29<>0,VLOOKUP($R29,Repertorio!$A$2:$M$85,10),\"\")","v":""},null,null,null,null,null,{"$f":"IF($R29<>0,VLOOKUP($R29,Repertorio!$A$2:$M$85,7),\"\")","v":""}]
[null,"","","",null,null,null,null,null,null,"",null,null,null,null,null,null,null,null,null,null,null,null,null,{"$f":"IF($R30<>0,VLOOKUP($R30,Repertorio!$A$2:$M$85,11),\"\")","v":""},null,null,null,{"$f":"IF($R30<>0,VLOOKUP($R30,Repertorio!$A$2:$M$85,8),\"\")","v":""},{"$f":"IF($R30<>0,VLOOKUP($R30,Repertorio!$A$2:$M$85,10),\"\")","v":""},null,null,null,null,null,{"$f":"IF($R30<>0,VLOOKUP($R30,Repertorio!$A$2:$M$85,7),\"\")","v":""}]
[null,"","","",null,null,null,null,null,null,"",null,null,null,null,null,null,null,null,null,null,null,null,null,{"$f":"IF($R31<>0,VLOOKUP($R31,Repertorio!$A$2:$M$85,11),\"\")","v":""},null,null,null,{"$f":"IF($R31<>0,VLOOKUP($R31,Repertorio!$A$2:$M$85,8),\"\")","v":""},{"$f":"IF($R31<>0,VLOOKUP($R31,Repertorio!$A$2:$M$85,10),\"\")","v":""},null,null,null,null,null,{"$f":"IF($R31<>0,VLOOKUP($R31,Repertorio!$A$2:$M$85,7),\"\")","v":""}]
[null,"","","",null,null,null,null,null,null,"",null,null,null,null,null,null,null,null,null,null,null,null,null,{"$f":"IF($R32<>0,VLOOKUP($R32,Repertorio!$A$2:$M$85,11),\"\")","v":""},null,null,null,{"$f":"IF($R32<>0,VLOOKUP($R32,Repertorio!$A$2:$M$85,8),\"\")","v":""},{"$f":"IF($R32<>0,VLOOKUP($R32,Repertorio!$A$2:$M$85,10),\"\")","v":""},null,null,null,null,null,{"$f":"IF($R32<>0,VLOOKUP($R32,Repertorio!$A$2:$M$85,7),\"\")","v":""}]
[null,"","","",null,null,null,null,null,null,"",null,null,null,null,null,null,null,null,null,null,null,null,null,{"$f":"IF($R33<>0,VLOOKUP($R33,Repertorio!$A$2:$M$85,11),\"\")","v":""},null,null,null,{"$f":"IF($R33<>0,VLOOKUP($R33,Repertorio!$A$2:$M$85,8),\"\")","v":""},{"$f":"IF($R33<>0,VLOOKUP($R33,Repertorio!$A$2:$M$85,10),\"\")","v":""},null,null,null,null,null,{"$f":"IF($R33<>0,VLOOKUP($R33,Repertorio!$A$2:$M$85,7),\"\")","v":""}]
[null,"","","",null,null,null,null,null,null,"",null,null,null,null,null,null,null,null,null,null,null,null,null,{"$f":"IF($R34<>0,VLOOKUP($R34,Repertorio!$A$2:$M$85,11),\"\")","v":""},null,null,null,{"$f":"IF($R34<>0,VLOOKUP($R34,Repertorio!$A$2:$M$85,8),\"\")","v":""},{"$f":"IF($R34<>0,VLOOKUP($R34,Repertorio!$A$2:$M$85,10),\"\")","v":""},null,null,null,null,null,{"$f":"IF($R34<>0,VLOOKUP($R34,Repertorio!$A$2:$M$85,7),\"\")","v":""}]
[null,"","","",null,null,null,null,null,null,"",null,null,null,null,null,null,null,null,null,null,null,null,null,{"$f":"IF($R35<>0,VLOOKUP($R35,Repertorio!$A$2:$M$85,11),\"\")","v":""},null,null,null,{"$f":"IF($R35<>0,VLOOKUP($R35,Repertorio!$A$2:$M$85,8),\"\")","v":""},{"$f":"IF($R35<>0,VLOOKUP($R35,Repertorio!$A$2:$M$85,10),\"\")","v":""},null,null,null,null,null,{"$f":"IF($R35<>0,VLOOKUP($R35,Repertorio!$A$2:$M$85,7),\"\")","v":""}]
[null,"","","",null,null,null,null,null,null,"",null,null,null,null,null,null,null,null,null,null,null,null,null,{"$f":"IF($R36<>0,VLOOKUP($R36,Repertorio!$A$2:$M$85,11),\"\")","v":""},null,null,null,{"$f":"IF($R36<>0,VLOOKUP($R36,Repertorio!$A$2:$M$85,8),\"\")","v":""},{"$f":"IF($R36<>0,VLOOKUP($R36,Repertorio!$A$2:$M$85,10),\"\")","v":""},null,null,null,null,null,{"$f":"IF($R36<>0,VLOOKUP($R36,Repertorio!$A$2:$M$85,7),\"\")","v":""}]
[null,"","","",null,null,null,null,null,null,"",null,null,null,null,null,null,null,null,null,null,null,null,null,{"$f":"IF($R37<>0,VLOOKUP($R37,Repertorio!$A$2:$M$85,11),\"\")","v":""},null,null,null,{"$f":"IF($R37<>0,VLOOKUP($R37,Repertorio!$A$2:$M$85,8),\"\")","v":""},{"$f":"IF($R37<>0,VLOOKUP($R37,Repertorio!$A$2:$M$85,10),\"\")","v":""},null,null,null,null,null,{"$f":"IF($R37<>0,VLOOKUP($R37,Repertorio!$A$2:$M$85,7),\"\")","v":""}]
[null,"","","",null,null,null,null,null,null,"",null,null,null,null,null,null,null,null,null,null,null,null,null,{"$f":"IF($R38<>0,VLOOKUP($R38,Repertorio!$A$2:$M$85,11),\"\")","v":""},null,null,null,{"$f":"IF($R38<>0,VLOOKUP($R38,Repertorio!$A$2:$M$85,8),\"\")","v":""},{"$f":"IF($R38<>0,VLOOKUP($R38,Repertorio!$A$2:$M$85,10),\"\")","v":""},null,null,null,null,null,{"$f":"IF($R38<>0,VLOOKUP($R38,Repertorio!$A$2:$M$85,7),\"\")","v":""}]
[null,"","","",null,null,null,null,null,null,"",null,null,null,null,null,null,null,null,null,null,null,null,null,{"$f":"IF($R39<>0,VLOOKUP($R39,Repertorio!$A$2:$M$85,11),\"\")","v":""},null,null,null,{"$f":"IF($R39<>0,VLOOKUP($R39,Repertorio!$A$2:$M$85,8),\"\")","v":""},{"$f":"IF($R39<>0,VLOOKUP($R39,Repertorio!$A$2:$M$85,10),\"\")","v":""},null,null,null,null,null,{"$f":"IF($R39<>0,VLOOKUP($R39,Repertorio!$A$2:$M$85,7),\"\")","v":""}]
[null,"",{"$f":"+IF($A40<>\"\",C$3,\"\")","v":""},"",null,null,null,null,null,null,"",null,null,null,null,null,null,null,null,null,null,null,null,null,{"$f":"IF($R40<>0,VLOOKUP($R40,Repertorio!$A$2:$M$85,11),\"\")","v":""},null,null,null,{"$f":"IF($R40<>0,VLOOKUP($R40,Repertorio!$A$2:$M$85,8),\"\")","v":""},{"$f":"IF($R40<>0,VLOOKUP($R40,Repertorio!$A$2:$M$85,10),\"\")","v":""},null,null,null,null,null,{"$f":"IF($R40<>0,VLOOKUP($R40,Repertorio!$A$2:$M$85,7),\"\")","v":""}]
[null,"","",{"$f":"+IF($A41<>\"\",D$3,\"\")","v":""},null,null,null,null,null,null,"",null,null,null,null,null,null,null,null,null,null,null,null,null,{"$f":"IF($R41<>0,VLOOKUP($R41,Repertorio!$A$2:$M$85,11),\"\")","v":""},null,null,null,{"$f":"IF($R41<>0,VLOOKUP($R41,Repertorio!$A$2:$M$85,8),\"\")","v":""},{"$f":"IF($R41<>0,VLOOKUP($R41,Repertorio!$A$2:$M$85,10),\"\")","v":""},null,null,null,null,null,{"$f":"IF($R41<>0,VLOOKUP($R41,Repertorio!$A$2:$M$85,7),\"\")","v":""}]
[null,"","","",null,null,null,null,null,null,"",null,null,null,null,null,null,null,null,null,null,null,null,null,{"$f":"IF($R42<>0,VLOOKUP($R42,Repertorio!$A$2:$M$85,11),\"\")","v":""},null,null,null,{"$f":"IF($R42<>0,VLOOKUP($R42,Repertorio!$A$2:$M$85,8),\"\")","v":""},{"$f":"IF($R42<>0,VLOOKUP($R42,Repertorio!$A$2:$M$85,10),\"\")","v":""},null,null,null,null,null,{"$f":"IF($R42<>0,VLOOKUP($R42,Repertorio!$A$2:$M$85,7),\"\")","v":""}]
[null,"","","",null,null,null,null,null,null,"",null,null,null,null,null,null,null,null,null,null,null,null,null,{"$f":"IF($R43<>0,VLOOKUP($R43,Repertorio!$A$2:$M$85,11),\"\")","v":""},null,null,null,{"$f":"IF($R43<>0,VLOOKUP($R43,Repertorio!$A$2:$M$85,8),\"\")","v":""},{"$f":"IF($R43<>0,VLOOKUP($R43,Repertorio!$A$2:$M$85,10),\"\")","v":""},null,null,null,null,null,{"$f":"IF($R43<>0,VLOOKUP($R43,Repertorio!$A$2:$M$85,7),\"\")","v":""}]
[null,"","","",null,null,null,null,null,null,"",null,null,null,null,null,null,null,null,null,null,null,null,null,{"$f":"IF($R44<>0,VLOOKUP($R44,Repertorio!$A$2:$M$85,11),\"\")","v":""},null,null,null,{"$f":"IF($R44<>0,VLOOKUP($R44,Repertorio!$A$2:$M$85,8),\"\")","v":""},{"$f":"IF($R44<>0,VLOOKUP($R44,Repertorio!$A$2:$M$85,10),\"\")","v":""},null,null,null,null,null,{"$f":"IF($R44<>0,VLOOKUP($R44,Repertorio!$A$2:$M$85,7),\"\")","v":""}]
[null,"","","",null,null,null,null,null,null,"",null,null,null,null,null,null,null,null,null,null,null,null,null,{"$f":"IF($R45<>0,VLOOKUP($R45,Repertorio!$A$2:$M$85,11),\"\")","v":""},null,null,null,{"$f":"IF($R45<>0,VLOOKUP($R45,Repertorio!$A$2:$M$85,8),\"\")","v":""},{"$f":"IF($R45<>0,VLOOKUP($R45,Repertorio!$A$2:$M$85,10),\"\")","v":""},null,null,null,null,null,{"$f":"IF($R45<>0,VLOOKUP($R45,Repertorio!$A$2:$M$85,7),\"\")","v":""}]
[null,"","","",null,null,null,null,null,null,"",null,null,null,null,null,null,null,null,null,null,null,null,null,{"$f":"IF($R46<>0,VLOOKUP($R46,Repertorio!$A$2:$M$85,11),\"\")","v":""},null,null,null,{"$f":"IF($R46<>0,VLOOKUP($R46,Repertorio!$A$2:$M$85,8),\"\")","v":""},{"$f":"IF($R46<>0,VLOOKUP($R46,Repertorio!$A$2:$M$85,10),\"\")","v":""},null,null,null,null,null,{"$f":"IF($R46<>0,VLOOKUP($R46,Repertorio!$A$2:$M$85,7),\"\")","v":""}]
[null,"","","",null,null,null,null,null,null,"",null,null,null,null,null,null,null,null,null,null,null,null,null,{"$f":"IF($R47<>0,VLOOKUP($R47,Repertorio!$A$2:$M$85,11),\"\")","v":""},null,null,null,{"$f":"IF($R47<>0,VLOOKUP($R47,Repertorio!$A$2:$M$85,8),\"\")","v":""},{"$f":"IF($R47<>0,VLOOKUP($R47,Repertorio!$A$2:$M$85,10),\"\")","v":""},null,null,null,null,null,{"$f":"IF($R47<>0,VLOOKUP($R47,Repertorio!$A$2:$M$85,7),\"\")","v":""}]
[null,"","","",null,null,null,null,null,null,"",null,null,null,null,null,null,null,null,null,null,null,null,null,{"$f":"IF($R48<>0,VLOOKUP($R48,Repertorio!$A$2:$M$85,11),\"\")","v":""},null,null,null,{"$f":"IF($R48<>0,VLOOKUP($R48,Repertorio!$A$2:$M$85,8),\"\")","v":""},{"$f":"IF($R48<>0,VLOOKUP($R48,Repertorio!$A$2:$M$85,10),\"\")","v":""},null,null,null,null,null,{"$f":"IF($R48<>0,VLOOKUP($R48,Repertorio!$A$2:$M$85,7),\"\")","v":""}]
[null,"","","",null,null,null,null,null,null,"",null,null,null,null,null,null,null,null,null,null,null,null,null,{"$f":"IF($R49<>0,VLOOKUP($R49,Repertorio!$A$2:$M$85,11),\"\")","v":""},null,null,null,{"$f":"IF($R49<>0,VLOOKUP($R49,Repertorio!$A$2:$M$85,8),\"\")","v":""},{"$f":"IF($R49<>0,VLOOKUP($R49,Repertorio!$A$2:$M$85,10),\"\")","v":""},null,null,null,null,null,{"$f":"IF($R49<>0,VLOOKUP($R49,Repertorio!$A$2:$M$85,7),\"\")","v":""}]
[null,"","","",null,null,null,null,null,null,"",null,null,null,null,null,null,null,null,null,null,null,null,null,{"$f":"IF($R50<>0,VLOOKUP($R50,Repertorio!$A$2:$M$85,11),\"\")","v":""},null,null,null,{"$f":"IF($R50<>0,VLOOKUP($R50,Repertorio!$A$2:$M$85,8),\"\")","v":""},{"$f":"IF($R50<>0,VLOOKUP($R50,Repertorio!$A$2:$M$85,10),\"\")","v":""},null,null,null,null,null,{"$f":"IF($R50<>0,VLOOKUP($R50,Repertorio!$A$2:$M$85,7),\"\")","v":""}]
[null,"","","",null,null,null,null,null,null,"",null,null,null,null,null,null,null,null,null,null,null,null,null,{"$f":"IF($R51<>0,VLOOKUP($R51,Repertorio!$A$2:$M$85,11),\"\")","v":""},null,null,null,{"$f":"IF($R51<>0,VLOOKUP($R51,Repertorio!$A$2:$M$85,8),\"\")","v":""},{"$f":"IF($R51<>0,VLOOKUP($R51,Repertorio!$A$2:$M$85,10),\"\")","v":""},null,null,null,null,null,{"$f":"IF($R51<>0,VLOOKUP($R51,Repertorio!$A$2:$M$85,7),\"\")","v":""}]
[null,"","","",null,null,null,null,null,null,"",null,null,null,null,null,null,null,null,null,null,null,null,null,{"$f":"IF($R52<>0,VLOOKUP($R52,Repertorio!$A$2:$M$85,11),\"\")","v":""},null,null,null,{"$f":"IF($R52<>0,VLOOKUP($R52,Repertorio!$A$2:$M$85,8),\"\")","v":""},{"$f":"IF($R52<>0,VLOOKUP($R52,Repertorio!$A$2:$M$85,10),\"\")","v":""},null,null,null,null,null,{"$f":"IF($R52<>0,VLOOKUP($R52,Repertorio!$A$2:$M$85,7),\"\")","v":""}]
[null,"","","",null,null,null,null,null,null,"",null,null,null,null,null,null,null,null,null,null,null,null,null,{"$f":"IF($R53<>0,VLOOKUP($R53,Repertorio!$A$2:$M$85,11),\"\")","v":""},null,null,null,{"$f":"IF($R53<>0,VLOOKUP($R53,Repertorio!$A$2:$M$85,8),\"\")","v":""},{"$f":"IF($R53<>0,VLOOKUP($R53,Repertorio!$A$2:$M$85,10),\"\")","v":""},null,null,null,null,null,{"$f":"IF($R53<>0,VLOOKUP($R53,Repertorio!$A$2:$M$85,7),\"\")","v":""}]
[null,{"$f":"+IF($A54<>\"\",B$3,\"\")","v":""},"","",null,null,null,null,null,null,"",null,null,null,null,null,null,null,null,null,null,null,null,null,{"$f":"IF($R54<>0,VLOOKUP($R54,Repertorio!$A$2:$M$85,11),\"\")","v":""},null,null,null,{"$f":"IF($R54<>0,VLOOKUP($R54,Repertorio!$A$2:$M$85,8),\"\")","v":""},{"$f":"IF($R54<>0,VLOOKUP($R54,Repertorio!$A$2:$M$85,10),\"\")","v":""},null,null,null,null,null,{"$f":"IF($R54<>0,VLOOKUP($R54,Repertorio!$A$2:$M$85,7),\"\")","v":""}]
[null,"","","",null,null,null,null,null,null,"",null,null,null,null,null,null,null,null,null,null,null,null,null,{"$f":"IF($R55<>0,VLOOKUP($R55,Repertorio!$A$2:$M$85,11),\"\")","v":""},null,null,null,{"$f":"IF($R55<>0,VLOOKUP($R55,Repertorio!$A$2:$M$85,8),\"\")","v":""},{"$f":"IF($R55<>0,VLOOKUP($R55,Repertorio!$A$2:$M$85,10),\"\")","v":""},null,null,null,null,null,{"$f":"IF($R55<>0,VLOOKUP($R55,Repertorio!$A$2:$M$85,7),\"\")","v":""}]
[null,"","","",null,null,null,null,null,null,"",null,null,null,null,null,null,null,null,null,null,null,null,null,{"$f":"IF($R56<>0,VLOOKUP($R56,Repertorio!$A$2:$M$85,11),\"\")","v":""},null,null,null,{"$f":"IF($R56<>0,VLOOKUP($R56,Repertorio!$A$2:$M$85,8),\"\")","v":""},{"$f":"IF($R56<>0,VLOOKUP($R56,Repertorio!$A$2:$M$85,10),\"\")","v":""},null,null,null,null,null,{"$f":"IF($R56<>0,VLOOKUP($R56,Repertorio!$A$2:$M$85,7),\"\")","v":""}]
[null,"","","",null,null,null,null,null,null,"",null,null,null,null,null,null,null,null,null,null,null,null,null,{"$f":"IF($R57<>0,VLOOKUP($R57,Repertorio!$A$2:$M$85,11),\"\")","v":""},null,null,null,{"$f":"IF($R57<>0,VLOOKUP($R57,Repertorio!$A$2:$M$85,8),\"\")","v":""},{"$f":"IF($R57<>0,VLOOKUP($R57,Repertorio!$A$2:$M$85,10),\"\")","v":""},null,null,null,null,null,{"$f":"IF($R57<>0,VLOOKUP($R57,Repertorio!$A$2:$M$85,7),\"\")","v":""}]
[null,"","","",null,null,null,null,null,null,"",null,null,null,null,null,null,null,null,null,null,null,null,null,{"$f":"IF($R58<>0,VLOOKUP($R58,Repertorio!$A$2:$M$85,11),\"\")","v":""},null,null,null,{"$f":"IF($R58<>0,VLOOKUP($R58,Repertorio!$A$2:$M$85,8),\"\")","v":""},{"$f":"IF($R58<>0,VLOOKUP($R58,Repertorio!$A$2:$M$85,10),\"\")","v":""},null,null,null,null,null,{"$f":"IF($R58<>0,VLOOKUP($R58,Repertorio!$A$2:$M$85,7),\"\")","v":""}]
[null,"","","",null,null,null,null,null,null,"",null,null,null,null,null,null,null,null,null,null,null,null,null,{"$f":"IF($R59<>0,VLOOKUP($R59,Repertorio!$A$2:$M$85,11),\"\")","v":""},null,null,null,{"$f":"IF($R59<>0,VLOOKUP($R59,Repertorio!$A$2:$M$85,8),\"\")","v":""},{"$f":"IF($R59<>0,VLOOKUP($R59,Repertorio!$A$2:$M$85,10),\"\")","v":""},null,null,null,null,null,{"$f":"IF($R59<>0,VLOOKUP($R59,Repertorio!$A$2:$M$85,7),\"\")","v":""}]
[null,"","","",null,null,null,null,null,null,"",null,null,null,null,null,null,null,null,null,null,null,null,null,{"$f":"IF($R60<>0,VLOOKUP($R60,Repertorio!$A$2:$M$85,11),\"\")","v":""},null,null,null,{"$f":"IF($R60<>0,VLOOKUP($R60,Repertorio!$A$2:$M$85,8),\"\")","v":""},{"$f":"IF($R60<>0,VLOOKUP($R60,Repertorio!$A$2:$M$85,10),\"\")","v":""},null,null,null,null,null,{"$f":"IF($R60<>0,VLOOKUP($R60,Repertorio!$A$2:$M$85,7),\"\")","v":""}]
[null,"","","",null,null,null,null,null,null,"",null,null,null,null,null,null,null,null,null,null,null,null,null,{"$f":"IF($R61<>0,VLOOKUP($R61,Repertorio!$A$2:$M$85,11),\"\")","v":""},null,null,null,{"$f":"IF($R61<>0,VLOOKUP($R61,Repertorio!$A$2:$M$85,8),\"\")","v":""},{"$f":"IF($R61<>0,VLOOKUP($R61,Repertorio!$A$2:$M$85,10),\"\")","v":""},null,null,null,null,null,{"$f":"IF($R61<>0,VLOOKUP($R61,Repertorio!$A$2:$M$85,7),\"\")","v":""}]
[null,"","","",null,null,null,null,null,null,"",null,null,null,null,null,null,null,null,null,null,null,null,null,{"$f":"IF($R62<>0,VLOOKUP($R62,Repertorio!$A$2:$M$85,11),\"\")","v":""},null,null,null,{"$f":"IF($R62<>0,VLOOKUP($R62,Repertorio!$A$2:$M$85,8),\"\")","v":""},{"$f":"IF($R62<>0,VLOOKUP($R62,Repertorio!$A$2:$M$85,10),\"\")","v":""},null,null,null,null,null,{"$f":"IF($R62<>0,VLOOKUP($R62,Repertorio!$A$2:$M$85,7),\"\")","v":""}]
[null,"","","",null,null,null,null,null,null,"",null,null,null,null,null,null,null,null,null,null,null,null,null,{"$f":"IF($R63<>0,VLOOKUP($R63,Repertorio!$A$2:$M$85,11),\"\")","v":""},null,null,null,{"$f":"IF($R63<>0,VLOOKUP($R63,Repertorio!$A$2:$M$85,8),\"\")","v":""},{"$f":"IF($R63<>0,VLOOKUP($R63,Repertorio!$A$2:$M$85,10),\"\")","v":""},null,null,null,null,null,{"$f":"IF($R63<>0,VLOOKUP($R63,Repertorio!$A$2:$M$85,7),\"\")","v":""}]
[null,"","","",null,null,null,null,null,null,"",null,null,null,null,null,null,null,null,null,null,null,null,null,{"$f":"IF($R64<>0,VLOOKUP($R64,Repertorio!$A$2:$M$85,11),\"\")","v":""},null,null,null,{"$f":"IF($R64<>0,VLOOKUP($R64,Repertorio!$A$2:$M$85,8),\"\")","v":""},{"$f":"IF($R64<>0,VLOOKUP($R64,Repertorio!$A$2:$M$85,10),\"\")","v":""},null,null,null,null,null,{"$f":"IF($R64<>0,VLOOKUP($R64,Repertorio!$A$2:$M$85,7),\"\")","v":""}]
[null,"","","",null,null,null,null,null,null,"",null,null,null,null,null,null,null,null,null,null,null,null,null,{"$f":"IF($R65<>0,VLOOKUP($R65,Repertorio!$A$2:$M$85,11),\"\")","v":""},null,null,null,{"$f":"IF($R65<>0,VLOOKUP($R65,Repertorio!$A$2:$M$85,8),\"\")","v":""},{"$f":"IF($R65<>0,VLOOKUP($R65,Repertorio!$A$2:$M$85,10),\"\")","v":""},null,null,null,null,null,{"$f":"IF($R65<>0,VLOOKUP($R65,Repertorio!$A$2:$M$85,7),\"\")","v":""}]
[null,"","","",null,null,null,null,null,null,"",null,null,null,null,null,null,null,null,null,null,null,null,null,{"$f":"IF($R66<>0,VLOOKUP($R66,Repertorio!$A$2:$M$85,11),\"\")","v":""},null,null,null,{"$f":"IF($R66<>0,VLOOKUP($R66,Repertorio!$A$2:$M$85,8),\"\")","v":""},{"$f":"IF($R66<>0,VLOOKUP($R66,Repertorio!$A$2:$M$85,10),\"\")","v":""},null,null,null,null,null,{"$f":"IF($R66<>0,VLOOKUP($R66,Repertorio!$A$2:$M$85,7),\"\")","v":""}]
[null,"","","",null,null,null,null,null,null,"",null,null,null,null,null,null,null,null,null,null,null,null,null,{"$f":"IF($R67<>0,VLOOKUP($R67,Repertorio!$A$2:$M$85,11),\"\")","v":""},null,null,null,{"$f":"IF($R67<>0,VLOOKUP($R67,Repertorio!$A$2:$M$85,8),\"\")","v":""},{"$f":"IF($R67<>0,VLOOKUP($R67,Repertorio!$A$2:$M$85,10),\"\")","v":""},null,null,null,null,null,{"$f":"IF($R67<>0,VLOOKUP($R67,Repertorio!$A$2:$M$85,7),\"\")","v":""}]
[null,"","","",null,null,null,null,null,null,{"$f":"+IF(J68<>\"C9. Altro\",\"\",\"Valorizzare\")","v":""},null,null,null,null,null,null,null,null,null,null,null,null,null,{"$f":"IF($R68<>0,VLOOKUP($R68,Repertorio!$A$2:$M$85,11),\"\")","v":""},null,null,null,{"$f":"IF($R68<>0,VLOOKUP($R68,Repertorio!$A$2:$M$85,8),\"\")","v":""},{"$f":"IF($R68<>0,VLOOKUP($R68,Repertorio!$A$2:$M$85,10),\"\")","v":""},null,null,null,null,null,{"$f":"IF($R68<>0,VLOOKUP($R68,Repertorio!$A$2:$M$85,7),\"\")","v":""}]
[null,"","","",null,null,null,null,null,null,"",null,null,null,null,null,null,null,null,null,null,null,null,null,{"$f":"IF($R69<>0,VLOOKUP($R69,Repertorio!$A$2:$M$85,11),\"\")","v":""},null,null,null,{"$f":"IF($R69<>0,VLOOKUP($R69,Repertorio!$A$2:$M$85,8),\"\")","v":""},{"$f":"IF($R69<>0,VLOOKUP($R69,Repertorio!$A$2:$M$85,10),\"\")","v":""},null,null,null,null,null,{"$f":"IF($R69<>0,VLOOKUP($R69,Repertorio!$A$2:$M$85,7),\"\")","v":""}]
[null,"","","",null,null,null,null,null,null,"",null,null,null,null,null,null,null,null,null,null,null,null,null,{"$f":"IF($R70<>0,VLOOKUP($R70,Repertorio!$A$2:$M$85,11),\"\")","v":""},null,null,null,{"$f":"IF($R70<>0,VLOOKUP($R70,Repertorio!$A$2:$M$85,8),\"\")","v":""},{"$f":"IF($R70<>0,VLOOKUP($R70,Repertorio!$A$2:$M$85,10),\"\")","v":""},null,null,null,null,null,{"$f":"IF($R70<>0,VLOOKUP($R70,Repertorio!$A$2:$M$85,7),\"\")","v":""}]
[null,"","","",null,null,null,null,null,null,"",null,null,null,null,null,null,null,null,null,null,null,null,null,{"$f":"IF($R71<>0,VLOOKUP($R71,Repertorio!$A$2:$M$85,11),\"\")","v":""},null,null,null,{"$f":"IF($R71<>0,VLOOKUP($R71,Repertorio!$A$2:$M$85,8),\"\")","v":""},{"$f":"IF($R71<>0,VLOOKUP($R71,Repertorio!$A$2:$M$85,10),\"\")","v":""},null,null,null,null,null,{"$f":"IF($R71<>0,VLOOKUP($R71,Repertorio!$A$2:$M$85,7),\"\")","v":""}]
[null,"","","",null,null,null,null,null,null,"",null,null,null,null,null,null,null,null,null,null,null,null,null,{"$f":"IF($R72<>0,VLOOKUP($R72,Repertorio!$A$2:$M$85,11),\"\")","v":""},null,null,null,{"$f":"IF($R72<>0,VLOOKUP($R72,Repertorio!$A$2:$M$85,8),\"\")","v":""},{"$f":"IF($R72<>0,VLOOKUP($R72,Repertorio!$A$2:$M$85,10),\"\")","v":""},null,null,null,null,null,{"$f":"IF($R72<>0,VLOOKUP($R72,Repertorio!$A$2:$M$85,7),\"\")","v":""}]
[null,"","","",null,null,null,null,null,null,"",null,null,null,null,null,null,null,null,null,null,null,null,null,{"$f":"IF($R73<>0,VLOOKUP($R73,Repertorio!$A$2:$M$85,11),\"\")","v":""},null,null,null,{"$f":"IF($R73<>0,VLOOKUP($R73,Repertorio!$A$2:$M$85,8),\"\")","v":""},{"$f":"IF($R73<>0,VLOOKUP($R73,Repertorio!$A$2:$M$85,10),\"\")","v":""},null,null,null,null,null,{"$f":"IF($R73<>0,VLOOKUP($R73,Repertorio!$A$2:$M$85,7),\"\")","v":""}]
[null,{"$f":"+IF($A74<>\"\",B$3,\"\")","v":""},"","",null,null,null,null,null,null,"",null,null,null,null,null,null,null,null,null,null,null,null,null,{"$f":"IF($R74<>0,VLOOKUP($R74,Repertorio!$A$2:$M$85,11),\"\")","v":""},null,null,null,{"$f":"IF($R74<>0,VLOOKUP($R74,Repertorio!$A$2:$M$85,8),\"\")","v":""},{"$f":"IF($R74<>0,VLOOKUP($R74,Repertorio!$A$2:$M$85,10),\"\")","v":""},null,null,null,null,null,{"$f":"IF($R74<>0,VLOOKUP($R74,Repertorio!$A$2:$M$85,7),\"\")","v":""}]
[null,"","","",null,null,null,null,null,null,"",null,null,null,null,null,null,null,null,null,null,null,null,null,{"$f":"IF($R75<>0,VLOOKUP($R75,Repertorio!$A$2:$M$85,11),\"\")","v":""},null,null,null,{"$f":"IF($R75<>0,VLOOKUP($R75,Repertorio!$A$2:$M$85,8),\"\")","v":""},{"$f":"IF($R75<>0,VLOOKUP($R75,Repertorio!$A$2:$M$85,10),\"\")","v":""},null,null,null,null,null,{"$f":"IF($R75<>0,VLOOKUP($R75,Repertorio!$A$2:$M$85,7),\"\")","v":""}]
[null,"","","",null,null,null,null,null,null,"",null,null,null,null,null,null,null,null,null,null,null,null,null,{"$f":"IF($R76<>0,VLOOKUP($R76,Repertorio!$A$2:$M$85,11),\"\")","v":""},null,null,null,{"$f":"IF($R76<>0,VLOOKUP($R76,Repertorio!$A$2:$M$85,8),\"\")","v":""},{"$f":"IF($R76<>0,VLOOKUP($R76,Repertorio!$A$2:$M$85,10),\"\")","v":""},null,null,null,null,null,{"$f":"IF($R76<>0,VLOOKUP($R76,Repertorio!$A$2:$M$85,7),\"\")","v":""}]
[null,"","","",null,null,null,null,null,null,"",null,null,null,null,null,null,null,null,null,null,null,null,null,{"$f":"IF($R77<>0,VLOOKUP($R77,Repertorio!$A$2:$M$85,11),\"\")","v":""},null,null,null,{"$f":"IF($R77<>0,VLOOKUP($R77,Repertorio!$A$2:$M$85,8),\"\")","v":""},{"$f":"IF($R77<>0,VLOOKUP($R77,Repertorio!$A$2:$M$85,10),\"\")","v":""},null,null,null,null,null,{"$f":"IF($R77<>0,VLOOKUP($R77,Repertorio!$A$2:$M$85,7),\"\")","v":""}]
[null,"","","",null,null,null,null,null,null,"",null,null,null,null,null,null,null,null,null,null,null,null,null,{"$f":"IF($R78<>0,VLOOKUP($R78,Repertorio!$A$2:$M$85,11),\"\")","v":""},null,null,null,{"$f":"IF($R78<>0,VLOOKUP($R78,Repertorio!$A$2:$M$85,8),\"\")","v":""},{"$f":"IF($R78<>0,VLOOKUP($R78,Repertorio!$A$2:$M$85,10),\"\")","v":""},null,null,null,null,null,{"$f":"IF($R78<>0,VLOOKUP($R78,Repertorio!$A$2:$M$85,7),\"\")","v":""}]
[null,"","","",null,null,null,null,null,null,"",null,null,null,null,null,null,null,null,null,null,null,null,null,{"$f":"IF($R79<>0,VLOOKUP($R79,Repertorio!$A$2:$M$85,11),\"\")","v":""},null,null,null,{"$f":"IF($R79<>0,VLOOKUP($R79,Repertorio!$A$2:$M$85,8),\"\")","v":""},{"$f":"IF($R79<>0,VLOOKUP($R79,Repertorio!$A$2:$M$85,10),\"\")","v":""},null,null,null,null,null,{"$f":"IF($R79<>0,VLOOKUP($R79,Repertorio!$A$2:$M$85,7),\"\")","v":""}]
[null,"","","",null,null,null,null,null,null,"",null,null,null,null,null,null,null,null,null,null,null,null,null,{"$f":"IF($R80<>0,VLOOKUP($R80,Repertorio!$A$2:$M$85,11),\"\")","v":""},null,null,null,{"$f":"IF($R80<>0,VLOOKUP($R80,Repertorio!$A$2:$M$85,8),\"\")","v":""},{"$f":"IF($R80<>0,VLOOKUP($R80,Repertorio!$A$2:$M$85,10),\"\")","v":""},null,null,null,null,null,{"$f":"IF($R80<>0,VLOOKUP($R80,Repertorio!$A$2:$M$85,7),\"\")","v":""}]
[null,"","","",null,null,null,null,null,null,"",null,null,null,null,null,null,null,null,null,null,null,null,null,{"$f":"IF($R81<>0,VLOOKUP($R81,Repertorio!$A$2:$M$85,11),\"\")","v":""},null,null,null,{"$f":"IF($R81<>0,VLOOKUP($R81,Repertorio!$A$2:$M$85,8),\"\")","v":""},{"$f":"IF($R81<>0,VLOOKUP($R81,Repertorio!$A$2:$M$85,10),\"\")","v":""},null,null,null,null,null,{"$f":"IF($R81<>0,VLOOKUP($R81,Repertorio!$A$2:$M$85,7),\"\")","v":""}]
[null,"","","",null,null,null,null,null,null,"",null,null,null,null,null,null,null,null,null,null,null,null,null,{"$f":"IF($R82<>0,VLOOKUP($R82,Repertorio!$A$2:$M$85,11),\"\")","v":""},null,null,null,{"$f":"IF($R82<>0,VLOOKUP($R82,Repertorio!$A$2:$M$85,8),\"\")","v":""},{"$f":"IF($R82<>0,VLOOKUP($R82,Repertorio!$A$2:$M$85,10),\"\")","v":""},null,null,null,null,null,{"$f":"IF($R82<>0,VLOOKUP($R82,Repertorio!$A$2:$M$85,7),\"\")","v":""}]
[null,"","","",null,null,null,null,null,null,"",null,null,null,null,null,null,null,null,null,null,null,null,null,{"$f":"IF($R83<>0,VLOOKUP($R83,Repertorio!$A$2:$M$85,11),\"\")","v":""},null,null,null,{"$f":"IF($R83<>0,VLOOKUP($R83,Repertorio!$A$2:$M$85,8),\"\")","v":""},{"$f":"IF($R83<>0,VLOOKUP($R83,Repertorio!$A$2:$M$85,10),\"\")","v":""},null,null,null,null,null,{"$f":"IF($R83<>0,VLOOKUP($R83,Repertorio!$A$2:$M$85,7),\"\")","v":""}]
[null,"","","",null,null,null,null,null,null,"",null,null,null,null,null,null,null,null,null,null,null,null,null,{"$f":"IF($R84<>0,VLOOKUP($R84,Repertorio!$A$2:$M$85,11),\"\")","v":""},null,null,null,{"$f":"IF($R84<>0,VLOOKUP($R84,Repertorio!$A$2:$M$85,8),\"\")","v":""},{"$f":"IF($R84<>0,VLOOKUP($R84,Repertorio!$A$2:$M$85,10),\"\")","v":""},null,null,null,null,null,{"$f":"IF($R84<>0,VLOOKUP($R84,Repertorio!$A$2:$M$85,7),\"\")","v":""}]
[null,"","","",null,null,null,null,null,null,"",null,null,null,null,null,null,null,null,null,null,null,null,null,{"$f":"IF($R85<>0,VLOOKUP($R85,Repertorio!$A$2:$M$85,11),\"\")","v":""},null,null,null,{"$f":"IF($R85<>0,VLOOKUP($R85,Repertorio!$A$2:$M$85,8),\"\")","v":""},{"$f":"IF($R85<>0,VLOOKUP($R85,Repertorio!$A$2:$M$85,10),\"\")","v":""},null,null,null,null,null,{"$f":"IF($R85<>0,VLOOKUP($R85,Repertorio!$A$2:$M$85,7),\"\")","v":""}]
[null,"","","",null,null,null,null,null,null,"",null,null,null,null,null,null,null,null,null,null,null,null,null,{"$f":"IF($R86<>0,VLOOKUP($R86,Repertorio!$A$2:$M$85,11),\"\")","v":""},null,null,null,{"$f":"IF($R86<>0,VLOOKUP($R86,Repertorio!$A$2:$M$85,8),\"\")","v":""},{"$f":"IF($R86<>0,VLOOKUP($R86,Repertorio!$A$2:$M$85,10),\"\")","v":""},null,null,null,null,null,{"$f":"IF($R86<>0,VLOOKUP($R86,Repertorio!$A$2:$M$85,7),\"\")","v":""}]
[null,"","","",null,null,null,null,null,null,"",null,null,null,null,null,null,null,null,null,null,null,null,null,{"$f":"IF($R87<>0,VLOOKUP($R87,Repertorio!$A$2:$M$85,11),\"\")","v":""},null,null,null,{"$f":"IF($R87<>0,VLOOKUP($R87,Repertorio!$A$2:$M$85,8),\"\")","v":""},{"$f":"IF($R87<>0,VLOOKUP($R87,Repertorio!$A$2:$M$85,10),\"\")","v":""},null,null,null,null,null,{"$f":"IF($R87<>0,VLOOKUP($R87,Repertorio!$A$2:$M$85,7),\"\")","v":""}]
[null,"","","",null,null,null,null,null,null,"",null,null,null,null,null,null,null,null,null,null,null,null,null,{"$f":"IF($R88<>0,VLOOKUP($R88,Repertorio!$A$2:$M$85,11),\"\")","v":""},null,null,null,{"$f":"IF($R88<>0,VLOOKUP($R88,Repertorio!$A$2:$M$85,8),\"\")","v":""},{"$f":"IF($R88<>0,VLOOKUP($R88,Repertorio!$A$2:$M$85,10),\"\")","v":""},null,null,null,null,null,{"$f":"IF($R88<>0,VLOOKUP($R88,Repertorio!$A$2:$M$85,7),\"\")","v":""}]
[null,"","","",null,null,null,null,null,null,"",null,null,null,null,null,null,null,null,null,null,null,null,null,{"$f":"IF($R89<>0,VLOOKUP($R89,Repertorio!$A$2:$M$85,11),\"\")","v":""},null,null,null,{"$f":"IF($R89<>0,VLOOKUP($R89,Repertorio!$A$2:$M$85,8),\"\")","v":""},{"$f":"IF($R89<>0,VLOOKUP($R89,Repertorio!$A$2:$M$85,10),\"\")","v":""},null,null,null,null,null,{"$f":"IF($R89<>0,VLOOKUP($R89,Repertorio!$A$2:$M$85,7),\"\")","v":""}]
[null,"","","",null,null,null,null,null,null,"",null,null,null,null,null,null,null,null,null,null,null,null,null,{"$f":"IF($R90<>0,VLOOKUP($R90,Repertorio!$A$2:$M$85,11),\"\")","v":""},null,null,null,{"$f":"IF($R90<>0,VLOOKUP($R90,Repertorio!$A$2:$M$85,8),\"\")","v":""},{"$f":"IF($R90<>0,VLOOKUP($R90,Repertorio!$A$2:$M$85,10),\"\")","v":""},null,null,null,null,null,{"$f":"IF($R90<>0,VLOOKUP($R90,Repertorio!$A$2:$M$85,7),\"\")","v":""}]
[null,"","","",null,null,null,null,null,null,"",null,null,null,null,null,null,null,null,null,null,null,null,null,{"$f":"IF($R91<>0,VLOOKUP($R91,Repertorio!$A$2:$M$85,11),\"\")","v":""},null,null,null,{"$f":"IF($R91<>0,VLOOKUP($R91,Repertorio!$A$2:$M$85,8),\"\")","v":""},{"$f":"IF($R91<>0,VLOOKUP($R91,Repertorio!$A$2:$M$85,10),\"\")","v":""},null,null,null,null,null,{"$f":"IF($R91<>0,VLOOKUP($R91,Repertorio!$A$2:$M$85,7),\"\")","v":""}]
[null,"","","",null,null,null,null,null,null,"",null,null,null,null,null,null,null,null,null,null,null,null,null,{"$f":"IF($R92<>0,VLOOKUP($R92,Repertorio!$A$2:$M$85,11),\"\")","v":""},null,null,null,{"$f":"IF($R92<>0,VLOOKUP($R92,Repertorio!$A$2:$M$85,8),\"\")","v":""},{"$f":"IF($R92<>0,VLOOKUP($R92,Repertorio!$A$2:$M$85,10),\"\")","v":""},null,null,null,null,null,{"$f":"IF($R92<>0,VLOOKUP($R92,Repertorio!$A$2:$M$85,7),\"\")","v":""}]
[null,"","","",null,null,null,null,null,null,"",null,null,null,null,null,null,null,null,null,null,null,null,null,{"$f":"IF($R93<>0,VLOOKUP($R93,Repertorio!$A$2:$M$85,11),\"\")","v":""},null,null,null,{"$f":"IF($R93<>0,VLOOKUP($R93,Repertorio!$A$2:$M$85,8),\"\")","v":""},{"$f":"IF($R93<>0,VLOOKUP($R93,Repertorio!$A$2:$M$85,10),\"\")","v":""},null,null,null,null,null,{"$f":"IF($R93<>0,VLOOKUP($R93,Repertorio!$A$2:$M$85,7),\"\")","v":""}]
[null,{"$f":"+IF($A94<>\"\",B$3,\"\")","v":""},"","",null,null,null,null,null,null,"",null,null,null,null,null,null,null,null,null,null,null,null,null,{"$f":"IF($R94<>0,VLOOKUP($R94,Repertorio!$A$2:$M$85,11),\"\")","v":""},null,null,null,{"$f":"IF($R94<>0,VLOOKUP($R94,Repertorio!$A$2:$M$85,8),\"\")","v":""},{"$f":"IF($R94<>0,VLOOKUP($R94,Repertorio!$A$2:$M$85,10),\"\")","v":""},null,null,null,null,null,{"$f":"IF($R94<>0,VLOOKUP($R94,Repertorio!$A$2:$M$85,7),\"\")","v":""}]
[null,"","","",null,null,null,null,null,null,"",null,null,null,null,null,null,null,null,null,null,null,null,null,{"$f":"IF($R95<>0,VLOOKUP($R95,Repertorio!$A$2:$M$85,11),\"\")","v":""},null,null,null,{"$f":"IF($R95<>0,VLOOKUP($R95,Repertorio!$A$2:$M$85,8),\"\")","v":""},{"$f":"IF($R95<>0,VLOOKUP($R95,Repertorio!$A$2:$M$85,10),\"\")","v":""},null,null,null,null,null,{"$f":"IF($R95<>0,VLOOKUP($R95,Repertorio!$A$2:$M$85,7),\"\")","v":""}]
[null,"","","",null,null,null,null,null,null,"",null,null,null,null,null,null,null,null,null,null,null,null,null,{"$f":"IF($R96<>0,VLOOKUP($R96,Repertorio!$A$2:$M$85,11),\"\")","v":""},null,null,null,{"$f":"IF($R96<>0,VLOOKUP($R96,Repertorio!$A$2:$M$85,8),\"\")","v":""},{"$f":"IF($R96<>0,VLOOKUP($R96,Repertorio!$A$2:$M$85,10),\"\")","v":""},null,null,null,null,null,{"$f":"IF($R96<>0,VLOOKUP($R96,Repertorio!$A$2:$M$85,7),\"\")","v":""}]
[null,"","","",null,null,null,null,null,null,"",null,null,null,null,null,null,null,null,null,null,null,null,null,{"$f":"IF($R97<>0,VLOOKUP($R97,Repertorio!$A$2:$M$85,11),\"\")","v":""},null,null,null,{"$f":"IF($R97<>0,VLOOKUP($R97,Repertorio!$A$2:$M$85,8),\"\")","v":""},{"$f":"IF($R97<>0,VLOOKUP($R97,Repertorio!$A$2:$M$85,10),\"\")","v":""},null,null,null,null,null,{"$f":"IF($R97<>0,VLOOKUP($R97,Repertorio!$A$2:$M$85,7),\"\")","v":""}]
[null,"","","",null,null,null,null,null,null,"",null,null,null,null,null,null,null,null,null,null,null,null,null,{"$f":"IF($R98<>0,VLOOKUP($R98,Repertorio!$A$2:$M$85,11),\"\")","v":""},null,null,null,{"$f":"IF($R98<>0,VLOOKUP($R98,Repertorio!$A$2:$M$85,8),\"\")","v":""},{"$f":"IF($R98<>0,VLOOKUP($R98,Repertorio!$A$2:$M$85,10),\"\")","v":""},null,null,null,null,null,{"$f":"IF($R98<>0,VLOOKUP($R98,Repertorio!$A$2:$M$85,7),\"\")","v":""}]
[null,"","","",null,null,null,null,null,null,"",null,null,null,null,null,null,null,null,null,null,null,null,null,{"$f":"IF($R99<>0,VLOOKUP($R99,Repertorio!$A$2:$M$85,11),\"\")","v":""},null,null,null,{"$f":"IF($R99<>0,VLOOKUP($R99,Repertorio!$A$2:$M$85,8),\"\")","v":""},{"$f":"IF($R99<>0,VLOOKUP($R99,Repertorio!$A$2:$M$85,10),\"\")","v":""},null,null,null,null,null,{"$f":"IF($R99<>0,VLOOKUP($R99,Repertorio!$A$2:$M$85,7),\"\")","v":""}]
[null,"","","",null,null,null,null,null,null,"",null,null,null,null,null,null,null,null,null,null,null,null,null,{"$f":"IF($R100<>0,VLOOKUP($R100,Repertorio!$A$2:$M$85,11),\"\")","v":""},null,null,null,{"$f":"IF($R100<>0,VLOOKUP($R100,Repertorio!$A$2:$M$85,8),\"\")","v":""},{"$f":"IF($R100<>0,VLOOKUP($R100,Repertorio!$A$2:$M$85,10),\"\")","v":""},null,null,null,null,null,{"$f":"IF($R100<>0,VLOOKUP($R100,Repertorio!$A$2:$M$85,7),\"\")","v":""}]
[null,"","","",null,null,null,null,null,null,"",null,null,null,null,null,null,null,null,null,null,null,null,null,{"$f":"IF($R101<>0,VLOOKUP($R101,Repertorio!$A$2:$M$85,11),\"\")","v":""},null,null,null,{"$f":"IF($R101<>0,VLOOKUP($R101,Repertorio!$A$2:$M$85,8),\"\")","v":""},{"$f":"IF($R101<>0,VLOOKUP($R101,Repertorio!$A$2:$M$85,10),\"\")","v":""},null,null,null,null,null,{"$f":"IF($R101<>0,VLOOKUP($R101,Repertorio!$A$2:$M$85,7),\"\")","v":""}]
[null,"","","",null,null,null,null,null,null,"",null,null,null,null,null,null,null,null,null,null,null,null,null,{"$f":"IF($R102<>0,VLOOKUP($R102,Repertorio!$A$2:$M$85,11),\"\")","v":""},null,null,null,{"$f":"IF($R102<>0,VLOOKUP($R102,Repertorio!$A$2:$M$85,8),\"\")","v":""},{"$f":"IF($R102<>0,VLOOKUP($R102,Repertorio!$A$2:$M$85,10),\"\")","v":""},null,null,null,null,null,{"$f":"IF($R102<>0,VLOOKUP($R102,Repertorio!$A$2:$M$85,7),\"\")","v":""}]
[null,"","","",null,null,null,null,null,null,"",null,null,null,null,null,null,null,null,null,null,null,null,null,{"$f":"IF($R103<>0,VLOOKUP($R103,Repertorio!$A$2:$M$85,11),\"\")","v":""},null,null,null,{"$f":"IF($R103<>0,VLOOKUP($R103,Repertorio!$A$2:$M$85,8),\"\")","v":""},{"$f":"IF($R103<>0,VLOOKUP($R103,Repertorio!$A$2:$M$85,10),\"\")","v":""},null,null,null,null,null,{"$f":"IF($R103<>0,VLOOKUP($R103,Repertorio!$A$2:$M$85,7),\"\")","v":""}]
[null,"","","",null,null,null,null,null,null,"",null,null,null,null,null,null,null,null,null,null,null,null,null,{"$f":"IF($R104<>0,VLOOKUP($R104,Repertorio!$A$2:$M$85,11),\"\")","v":""},null,null,null,{"$f":"IF($R104<>0,VLOOKUP($R104,Repertorio!$A$2:$M$85,8),\"\")","v":""},{"$f":"IF($R104<>0,VLOOKUP($R104,Repertorio!$A$2:$M$85,10),\"\")","v":""},null,null,null,null,null,{"$f":"IF($R104<>0,VLOOKUP($R104,Repertorio!$A$2:$M$85,7),\"\")","v":""}]
[null,"","","",null,null,null,null,null,null,"",null,null,null,null,null,null,null,null,null,null,null,null,null,{"$f":"IF($R105<>0,VLOOKUP($R105,Repertorio!$A$2:$M$85,11),\"\")","v":""},null,null,null,{"$f":"IF($R105<>0,VLOOKUP($R105,Repertorio!$A$2:$M$85,8),\"\")","v":""},{"$f":"IF($R105<>0,VLOOKUP($R105,Repertorio!$A$2:$M$85,10),\"\")","v":""},null,null,null,null,null,{"$f":"IF($R105<>0,VLOOKUP($R105,Repertorio!$A$2:$M$85,7),\"\")","v":""}]
[null,"","","",null,null,null,null,null,null,"",null,null,null,null,null,null,null,null,null,null,null,null,null,{"$f":"IF($R106<>0,VLOOKUP($R106,Repertorio!$A$2:$M$85,11),\"\")","v":""},null,null,null,{"$f":"IF($R106<>0,VLOOKUP($R106,Repertorio!$A$2:$M$85,8),\"\")","v":""},{"$f":"IF($R106<>0,VLOOKUP($R106,Repertorio!$A$2:$M$85,10),\"\")","v":""},null,null,null,null,null,{"$f":"IF($R106<>0,VLOOKUP($R106,Repertorio!$A$2:$M$85,7),\"\")","v":""}]
[null,"","","",null,null,null,null,null,null,"",null,null,null,null,null,null,null,null,null,null,null,null,null,{"$f":"IF($R107<>0,VLOOKUP($R107,Repertorio!$A$2:$M$85,11),\"\")","v":""},null,null,null,{"$f":"IF($R107<>0,VLOOKUP($R107,Repertorio!$A$2:$M$85,8),\"\")","v":""},{"$f":"IF($R107<>0,VLOOKUP($R107,Repertorio!$A$2:$M$85,10),\"\")","v":""},null,null,null,null,null,{"$f":"IF($R107<>0,VLOOKUP($R107,Repertorio!$A$2:$M$85,7),\"\")","v":""}]
[null,"","","",null,null,null,null,null,null,"",null,null,null,null,null,null,null,null,null,null,null,null,null,{"$f":"IF($R108<>0,VLOOKUP($R108,Repertorio!$A$2:$M$85,11),\"\")","v":""},null,null,null,{"$f":"IF($R108<>0,VLOOKUP($R108,Repertorio!$A$2:$M$85,8),\"\")","v":""},{"$f":"IF($R108<>0,VLOOKUP($R108,Repertorio!$A$2:$M$85,10),\"\")","v":""},null,null,null,null,null,{"$f":"IF($R108<>0,VLOOKUP($R108,Repertorio!$A$2:$M$85,7),\"\")","v":""}]
[null,"","","",null,null,null,null,null,null,"",null,null,null,null,null,null,null,null,null,null,null,null,null,{"$f":"IF($R109<>0,VLOOKUP($R109,Repertorio!$A$2:$M$85,11),\"\")","v":""},null,null,null,{"$f":"IF($R109<>0,VLOOKUP($R109,Repertorio!$A$2:$M$85,8),\"\")","v":""},{"$f":"IF($R109<>0,VLOOKUP($R109,Repertorio!$A$2:$M$85,10),\"\")","v":""},null,null,null,null,null,{"$f":"IF($R109<>0,VLOOKUP($R109,Repertorio!$A$2:$M$85,7),\"\")","v":""}]
[null,"","","",null,null,null,null,null,null,"",null,null,null,null,null,null,null,null,null,null,null,null,null,{"$f":"IF($R110<>0,VLOOKUP($R110,Repertorio!$A$2:$M$85,11),\"\")","v":""},null,null,null,{"$f":"IF($R110<>0,VLOOKUP($R110,Repertorio!$A$2:$M$85,8),\"\")","v":""},{"$f":"IF($R110<>0,VLOOKUP($R110,Repertorio!$A$2:$M$85,10),\"\")","v":""},null,null,null,null,null,{"$f":"IF($R110<>0,VLOOKUP($R110,Repertorio!$A$2:$M$85,7),\"\")","v":""}]
[null,"","","",null,null,null,null,null,null,"",null,null,null,null,null,null,null,null,null,null,null,null,null,{"$f":"IF($R111<>0,VLOOKUP($R111,Repertorio!$A$2:$M$85,11),\"\")","v":""},null,null,null,{"$f":"IF($R111<>0,VLOOKUP($R111,Repertorio!$A$2:$M$85,8),\"\")","v":""},{"$f":"IF($R111<>0,VLOOKUP($R111,Repertorio!$A$2:$M$85,10),\"\")","v":""},null,null,null,null,null,{"$f":"IF($R111<>0,VLOOKUP($R111,Repertorio!$A$2:$M$85,7),\"\")","v":""}]
[null,"","","",null,null,null,null,null,null,"",null,null,null,null,null,null,null,null,null,null,null,null,null,{"$f":"IF($R112<>0,VLOOKUP($R112,Repertorio!$A$2:$M$85,11),\"\")","v":""},null,null,null,{"$f":"IF($R112<>0,VLOOKUP($R112,Repertorio!$A$2:$M$85,8),\"\")","v":""},{"$f":"IF($R112<>0,VLOOKUP($R112,Repertorio!$A$2:$M$85,10),\"\")","v":""},null,null,null,null,null,{"$f":"IF($R112<>0,VLOOKUP($R112,Repertorio!$A$2:$M$85,7),\"\")","v":""}]
[null,"","","",null,null,null,null,null,null,"",null,null,null,null,null,null,null,null,null,null,null,null,null,{"$f":"IF($R113<>0,VLOOKUP($R113,Repertorio!$A$2:$M$85,11),\"\")","v":""},null,null,null,{"$f":"IF($R113<>0,VLOOKUP($R113,Repertorio!$A$2:$M$85,8),\"\")","v":""},{"$f":"IF($R113<>0,VLOOKUP($R113,Repertorio!$A$2:$M$85,10),\"\")","v":""},null,null,null,null,null,{"$f":"IF($R113<>0,VLOOKUP($R113,Repertorio!$A$2:$M$85,7),\"\")","v":""}]
[null,{"$f":"+IF($A114<>\"\",B$3,\"\")","v":""},"","",null,null,null,null,null,null,"",null,null,null,null,null,null,null,null,null,null,null,null,null,{"$f":"IF($R114<>0,VLOOKUP($R114,Repertorio!$A$2:$M$85,11),\"\")","v":""},null,null,null,{"$f":"IF($R114<>0,VLOOKUP($R114,Repertorio!$A$2:$M$85,8),\"\")","v":""},{"$f":"IF($R114<>0,VLOOKUP($R114,Repertorio!$A$2:$M$85,10),\"\")","v":""},null,null,null,null,null,{"$f":"IF($R114<>0,VLOOKUP($R114,Repertorio!$A$2:$M$85,7),\"\")","v":""}]
[null,"","","",null,null,null,null,null,null,"",null,null,null,null,null,null,null,null,null,null,null,null,null,{"$f":"IF($R115<>0,VLOOKUP($R115,Repertorio!$A$2:$M$85,11),\"\")","v":""},null,null,null,{"$f":"IF($R115<>0,VLOOKUP($R115,Repertorio!$A$2:$M$85,8),\"\")","v":""},{"$f":"IF($R115<>0,VLOOKUP($R115,Repertorio!$A$2:$M$85,10),\"\")","v":""},null,null,null,null,null,{"$f":"IF($R115<>0,VLOOKUP($R115,Repertorio!$A$2:$M$85,7),\"\")","v":""}]
[null,"","","",null,null,null,null,null,null,"",null,null,null,null,null,null,null,null,null,null,null,null,null,{"$f":"IF($R116<>0,VLOOKUP($R116,Repertorio!$A$2:$M$85,11),\"\")","v":""},null,null,null,{"$f":"IF($R116<>0,VLOOKUP($R116,Repertorio!$A$2:$M$85,8),\"\")","v":""},{"$f":"IF($R116<>0,VLOOKUP($R116,Repertorio!$A$2:$M$85,10),\"\")","v":""},null,null,null,null,null,{"$f":"IF($R116<>0,VLOOKUP($R116,Repertorio!$A$2:$M$85,7),\"\")","v":""}]
[null,"","","",null,null,null,null,null,null,"",null,null,null,null,null,null,null,null,null,null,null,null,null,{"$f":"IF($R117<>0,VLOOKUP($R117,Repertorio!$A$2:$M$85,11),\"\")","v":""},null,null,null,{"$f":"IF($R117<>0,VLOOKUP($R117,Repertorio!$A$2:$M$85,8),\"\")","v":""},{"$f":"IF($R117<>0,VLOOKUP($R117,Repertorio!$A$2:$M$85,10),\"\")","v":""},null,null,null,null,null,{"$f":"IF($R117<>0,VLOOKUP($R117,Repertorio!$A$2:$M$85,7),\"\")","v":""}]
[null,"","","",null,null,null,null,null,null,"",null,null,null,null,null,null,null,null,null,null,null,null,null,{"$f":"IF($R118<>0,VLOOKUP($R118,Repertorio!$A$2:$M$85,11),\"\")","v":""},null,null,null,{"$f":"IF($R118<>0,VLOOKUP($R118,Repertorio!$A$2:$M$85,8),\"\")","v":""},{"$f":"IF($R118<>0,VLOOKUP($R118,Repertorio!$A$2:$M$85,10),\"\")","v":""},null,null,null,null,null,{"$f":"IF($R118<>0,VLOOKUP($R118,Repertorio!$A$2:$M$85,7),\"\")","v":""}]
[null,"","","",null,null,null,null,null,null,"",null,null,null,null,null,null,null,null,null,null,null,null,null,{"$f":"IF($R119<>0,VLOOKUP($R119,Repertorio!$A$2:$M$85,11),\"\")","v":""},null,null,null,{"$f":"IF($R119<>0,VLOOKUP($R119,Repertorio!$A$2:$M$85,8),\"\")","v":""},{"$f":"IF($R119<>0,VLOOKUP($R119,Repertorio!$A$2:$M$85,10),\"\")","v":""},null,null,null,null,null,{"$f":"IF($R119<>0,VLOOKUP($R119,Repertorio!$A$2:$M$85,7),\"\")","v":""}]
[null,"","","",null,null,null,null,null,null,"",null,null,null,null,null,null,null,null,null,null,null,null,null,{"$f":"IF($R120<>0,VLOOKUP($R120,Repertorio!$A$2:$M$85,11),\"\")","v":""},null,null,null,{"$f":"IF($R120<>0,VLOOKUP($R120,Repertorio!$A$2:$M$85,8),\"\")","v":""},{"$f":"IF($R120<>0,VLOOKUP($R120,Repertorio!$A$2:$M$85,10),\"\")","v":""},null,null,null,null,null,{"$f":"IF($R120<>0,VLOOKUP($R120,Repertorio!$A$2:$M$85,7),\"\")","v":""}]
[null,"","","",null,null,null,null,null,null,"",null,null,null,null,null,null,null,null,null,null,null,null,null,{"$f":"IF($R121<>0,VLOOKUP($R121,Repertorio!$A$2:$M$85,11),\"\")","v":""},null,null,null,{"$f":"IF($R121<>0,VLOOKUP($R121,Repertorio!$A$2:$M$85,8),\"\")","v":""},{"$f":"IF($R121<>0,VLOOKUP($R121,Repertorio!$A$2:$M$85,10),\"\")","v":""},null,null,null,null,null,{"$f":"IF($R121<>0,VLOOKUP($R121,Repertorio!$A$2:$M$85,7),\"\")","v":""}]
[null,"","","",null,null,null,null,null,null,"",null,null,null,null,null,null,null,null,null,null,null,null,null,{"$f":"IF($R122<>0,VLOOKUP($R122,Repertorio!$A$2:$M$85,11),\"\")","v":""},null,null,null,{"$f":"IF($R122<>0,VLOOKUP($R122,Repertorio!$A$2:$M$85,8),\"\")","v":""},{"$f":"IF($R122<>0,VLOOKUP($R122,Repertorio!$A$2:$M$85,10),\"\")","v":""},null,null,null,null,null,{"$f":"IF($R122<>0,VLOOKUP($R122,Repertorio!$A$2:$M$85,7),\"\")","v":""}]
[null,"","","",null,null,null,null,null,null,"",null,null,null,null,null,null,null,null,null,null,null,null,null,{"$f":"IF($R123<>0,VLOOKUP($R123,Repertorio!$A$2:$M$85,11),\"\")","v":""},null,null,null,{"$f":"IF($R123<>0,VLOOKUP($R123,Repertorio!$A$2:$M$85,8),\"\")","v":""},{"$f":"IF($R123<>0,VLOOKUP($R123,Repertorio!$A$2:$M$85,10),\"\")","v":""},null,null,null,null,null,{"$f":"IF($R123<>0,VLOOKUP($R123,Repertorio!$A$2:$M$85,7),\"\")","v":""}]
[null,"","","",null,null,null,null,null,null,"",null,null,null,null,null,null,null,null,null,null,null,null,null,{"$f":"IF($R124<>0,VLOOKUP($R124,Repertorio!$A$2:$M$85,11),\"\")","v":""},null,null,null,{"$f":"IF($R124<>0,VLOOKUP($R124,Repertorio!$A$2:$M$85,8),\"\")","v":""},{"$f":"IF($R124<>0,VLOOKUP($R124,Repertorio!$A$2:$M$85,10),\"\")","v":""},null,null,null,null,null,{"$f":"IF($R124<>0,VLOOKUP($R124,Repertorio!$A$2:$M$85,7),\"\")","v":""}]
[null,"","","",null,null,null,null,null,null,"",null,null,null,null,null,null,null,null,null,null,null,null,null,{"$f":"IF($R125<>0,VLOOKUP($R125,Repertorio!$A$2:$M$85,11),\"\")","v":""},null,null,null,{"$f":"IF($R125<>0,VLOOKUP($R125,Repertorio!$A$2:$M$85,8),\"\")","v":""},{"$f":"IF($R125<>0,VLOOKUP($R125,Repertorio!$A$2:$M$85,10),\"\")","v":""},null,null,null,null,null,{"$f":"IF($R125<>0,VLOOKUP($R125,Repertorio!$A$2:$M$85,7),\"\")","v":""}]
[null,"","","",null,null,null,null,null,null,"",null,null,null,null,null,null,null,null,null,null,null,null,null,{"$f":"IF($R126<>0,VLOOKUP($R126,Repertorio!$A$2:$M$85,11),\"\")","v":""},null,null,null,{"$f":"IF($R126<>0,VLOOKUP($R126,Repertorio!$A$2:$M$85,8),\"\")","v":""},{"$f":"IF($R126<>0,VLOOKUP($R126,Repertorio!$A$2:$M$85,10),\"\")","v":""},null,null,null,null,null,{"$f":"IF($R126<>0,VLOOKUP($R126,Repertorio!$A$2:$M$85,7),\"\")","v":""}]
[null,"","","",null,null,null,null,null,null,"",null,null,null,null,null,null,null,null,null,null,null,null,null,{"$f":"IF($R127<>0,VLOOKUP($R127,Repertorio!$A$2:$M$85,11),\"\")","v":""},null,null,null,{"$f":"IF($R127<>0,VLOOKUP($R127,Repertorio!$A$2:$M$85,8),\"\")","v":""},{"$f":"IF($R127<>0,VLOOKUP($R127,Repertorio!$A$2:$M$85,10),\"\")","v":""},null,null,null,null,null,{"$f":"IF($R127<>0,VLOOKUP($R127,Repertorio!$A$2:$M$85,7),\"\")","v":""}]
[null,"","","",null,null,null,null,null,null,"",null,null,null,null,null,null,null,null,null,null,null,null,null,{"$f":"IF($R128<>0,VLOOKUP($R128,Repertorio!$A$2:$M$85,11),\"\")","v":""},null,null,null,{"$f":"IF($R128<>0,VLOOKUP($R128,Repertorio!$A$2:$M$85,8),\"\")","v":""},{"$f":"IF($R128<>0,VLOOKUP($R128,Repertorio!$A$2:$M$85,10),\"\")","v":""},null,null,null,null,null,{"$f":"IF($R128<>0,VLOOKUP($R128,Repertorio!$A$2:$M$85,7),\"\")","v":""}]
[null,"","","",null,null,null,null,null,null,"",null,null,null,null,null,null,null,null,null,null,null,null,null,{"$f":"IF($R129<>0,VLOOKUP($R129,Repertorio!$A$2:$M$85,11),\"\")","v":""},null,null,null,{"$f":"IF($R129<>0,VLOOKUP($R129,Repertorio!$A$2:$M$85,8),\"\")","v":""},{"$f":"IF($R129<>0,VLOOKUP($R129,Repertorio!$A$2:$M$85,10),\"\")","v":""},null,null,null,null,null,{"$f":"IF($R129<>0,VLOOKUP($R129,Repertorio!$A$2:$M$85,7),\"\")","v":""}]
[null,"","","",null,null,null,null,null,null,"",null,null,null,null,null,null,null,null,null,null,null,null,null,{"$f":"IF($R130<>0,VLOOKUP($R130,Repertorio!$A$2:$M$85,11),\"\")","v":""},null,null,null,{"$f":"IF($R130<>0,VLOOKUP($R130,Repertorio!$A$2:$M$85,8),\"\")","v":""},{"$f":"IF($R130<>0,VLOOKUP($R130,Repertorio!$A$2:$M$85,10),\"\")","v":""},null,null,null,null,null,{"$f":"IF($R130<>0,VLOOKUP($R130,Repertorio!$A$2:$M$85,7),\"\")","v":""}]
[null,"","","",null,null,null,null,null,null,"",null,null,null,null,null,null,null,null,null,null,null,null,null,{"$f":"IF($R131<>0,VLOOKUP($R131,Repertorio!$A$2:$M$85,11),\"\")","v":""},null,null,null,{"$f":"IF($R131<>0,VLOOKUP($R131,Repertorio!$A$2:$M$85,8),\"\")","v":""},{"$f":"IF($R131<>0,VLOOKUP($R131,Repertorio!$A$2:$M$85,10),\"\")","v":""},null,null,null,null,null,{"$f":"IF($R131<>0,VLOOKUP($R131,Repertorio!$A$2:$M$85,7),\"\")","v":""}]
[null,"","","",null,null,null,null,null,null,{"$f":"+IF(J132<>\"C9. Altro\",\"\",\"Valorizzare\")","v":""},null,null,null,null,null,null,null,null,null,null,null,null,null,{"$f":"IF($R132<>0,VLOOKUP($R132,Repertorio!$A$2:$M$85,11),\"\")","v":""},null,null,null,{"$f":"IF($R132<>0,VLOOKUP($R132,Repertorio!$A$2:$M$85,8),\"\")","v":""},{"$f":"IF($R132<>0,VLOOKUP($R132,Repertorio!$A$2:$M$85,10),\"\")","v":""},null,null,null,null,null,{"$f":"IF($R132<>0,VLOOKUP($R132,Repertorio!$A$2:$M$85,7),\"\")","v":""}]
[null,"","","",null,null,null,null,null,null,"",null,null,null,null,null,null,null,null,null,null,null,null,null,{"$f":"IF($R133<>0,VLOOKUP($R133,Repertorio!$A$2:$M$85,11),\"\")","v":""},null,null,null,{"$f":"IF($R133<>0,VLOOKUP($R133,Repertorio!$A$2:$M$85,8),\"\")","v":""},{"$f":"IF($R133<>0,VLOOKUP($R133,Repertorio!$A$2:$M$85,10),\"\")","v":""},null,null,null,null,null,{"$f":"IF($R133<>0,VLOOKUP($R133,Repertorio!$A$2:$M$85,7),\"\")","v":""}]
[null,{"$f":"+IF($A134<>\"\",B$3,\"\")","v":""},"","",null,null,null,null,null,null,"",null,null,null,null,null,null,null,null,null,null,null,null,null,{"$f":"IF($R134<>0,VLOOKUP($R134,Repertorio!$A$2:$M$85,11),\"\")","v":""},null,null,null,{"$f":"IF($R134<>0,VLOOKUP($R134,Repertorio!$A$2:$M$85,8),\"\")","v":""},{"$f":"IF($R134<>0,VLOOKUP($R134,Repertorio!$A$2:$M$85,10),\"\")","v":""},null,null,null,null,null,{"$f":"IF($R134<>0,VLOOKUP($R134,Repertorio!$A$2:$M$85,7),\"\")","v":""}]
[null,"","","",null,null,null,null,null,null,"",null,null,null,null,null,null,null,null,null,null,null,null,null,{"$f":"IF($R135<>0,VLOOKUP($R135,Repertorio!$A$2:$M$85,11),\"\")","v":""},null,null,null,{"$f":"IF($R135<>0,VLOOKUP($R135,Repertorio!$A$2:$M$85,8),\"\")","v":""},{"$f":"IF($R135<>0,VLOOKUP($R135,Repertorio!$A$2:$M$85,10),\"\")","v":""},null,null,null,null,null,{"$f":"IF($R135<>0,VLOOKUP($R135,Repertorio!$A$2:$M$85,7),\"\")","v":""}]
[null,"","","",null,null,null,null,null,null,"",null,null,null,null,null,null,null,null,null,null,null,null,null,{"$f":"IF($R136<>0,VLOOKUP($R136,Repertorio!$A$2:$M$85,11),\"\")","v":""},null,null,null,{"$f":"IF($R136<>0,VLOOKUP($R136,Repertorio!$A$2:$M$85,8),\"\")","v":""},{"$f":"IF($R136<>0,VLOOKUP($R136,Repertorio!$A$2:$M$85,10),\"\")","v":""},null,null,null,null,null,{"$f":"IF($R136<>0,VLOOKUP($R136,Repertorio!$A$2:$M$85,7),\"\")","v":""}]
[null,"","","",null,null,null,null,null,null,"",null,null,null,null,null,null,null,null,null,null,null,null,null,{"$f":"IF($R137<>0,VLOOKUP($R137,Repertorio!$A$2:$M$85,11),\"\")","v":""},null,null,null,{"$f":"IF($R137<>0,VLOOKUP($R137,Repertorio!$A$2:$M$85,8),\"\")","v":""},{"$f":"IF($R137<>0,VLOOKUP($R137,Repertorio!$A$2:$M$85,10),\"\")","v":""},null,null,null,null,null,{"$f":"IF($R137<>0,VLOOKUP($R137,Repertorio!$A$2:$M$85,7),\"\")","v":""}]
[null,"","","",null,null,null,null,null,null,"",null,null,null,null,null,null,null,null,null,null,null,null,null,{"$f":"IF($R138<>0,VLOOKUP($R138,Repertorio!$A$2:$M$85,11),\"\")","v":""},null,null,null,{"$f":"IF($R138<>0,VLOOKUP($R138,Repertorio!$A$2:$M$85,8),\"\")","v":""},{"$f":"IF($R138<>0,VLOOKUP($R138,Repertorio!$A$2:$M$85,10),\"\")","v":""},null,null,null,null,null,{"$f":"IF($R138<>0,VLOOKUP($R138,Repertorio!$A$2:$M$85,7),\"\")","v":""}]
[null,"","","",null,null,null,null,null,null,"",null,null,null,null,null,null,null,null,null,null,null,null,null,{"$f":"IF($R139<>0,VLOOKUP($R139,Repertorio!$A$2:$M$85,11),\"\")","v":""},null,null,null,{"$f":"IF($R139<>0,VLOOKUP($R139,Repertorio!$A$2:$M$85,8),\"\")","v":""},{"$f":"IF($R139<>0,VLOOKUP($R139,Repertorio!$A$2:$M$85,10),\"\")","v":""},null,null,null,null,null,{"$f":"IF($R139<>0,VLOOKUP($R139,Repertorio!$A$2:$M$85,7),\"\")","v":""}]
[null,"","","",null,null,null,null,null,null,"",null,null,null,null,null,null,null,null,null,null,null,null,null,{"$f":"IF($R140<>0,VLOOKUP($R140,Repertorio!$A$2:$M$85,11),\"\")","v":""},null,null,null,{"$f":"IF($R140<>0,VLOOKUP($R140,Repertorio!$A$2:$M$85,8),\"\")","v":""},{"$f":"IF($R140<>0,VLOOKUP($R140,Repertorio!$A$2:$M$85,10),\"\")","v":""},null,null,null,null,null,{"$f":"IF($R140<>0,VLOOKUP($R140,Repertorio!$A$2:$M$85,7),\"\")","v":""}]
[null,"","","",null,null,null,null,null,null,"",null,null,null,null,null,null,null,null,null,null,null,null,null,{"$f":"IF($R141<>0,VLOOKUP($R141,Repertorio!$A$2:$M$85,11),\"\")","v":""},null,null,null,{"$f":"IF($R141<>0,VLOOKUP($R141,Repertorio!$A$2:$M$85,8),\"\")","v":""},{"$f":"IF($R141<>0,VLOOKUP($R141,Repertorio!$A$2:$M$85,10),\"\")","v":""},null,null,null,null,null,{"$f":"IF($R141<>0,VLOOKUP($R141,Repertorio!$A$2:$M$85,7),\"\")","v":""}]
[null,"","","",null,null,null,null,null,null,"",null,null,null,null,null,null,null,null,null,null,null,null,null,{"$f":"IF($R142<>0,VLOOKUP($R142,Repertorio!$A$2:$M$85,11),\"\")","v":""},null,null,null,{"$f":"IF($R142<>0,VLOOKUP($R142,Repertorio!$A$2:$M$85,8),\"\")","v":""},{"$f":"IF($R142<>0,VLOOKUP($R142,Repertorio!$A$2:$M$85,10),\"\")","v":""},null,null,null,null,null,{"$f":"IF($R142<>0,VLOOKUP($R142,Repertorio!$A$2:$M$85,7),\"\")","v":""}]
[null,"","","",null,null,null,null,null,null,"",null,null,null,null,null,null,null,null,null,null,null,null,null,{"$f":"IF($R143<>0,VLOOKUP($R143,Repertorio!$A$2:$M$85,11),\"\")","v":""},null,null,null,{"$f":"IF($R143<>0,VLOOKUP($R143,Repertorio!$A$2:$M$85,8),\"\")","v":""},{"$f":"IF($R143<>0,VLOOKUP($R143,Repertorio!$A$2:$M$85,10),\"\")","v":""},null,null,null,null,null,{"$f":"IF($R143<>0,VLOOKUP($R143,Repertorio!$A$2:$M$85,7),\"\")","v":""}]
[null,"","","",null,null,null,null,null,null,"",null,null,null,null,null,null,null,null,null,null,null,null,null,{"$f":"IF($R144<>0,VLOOKUP($R144,Repertorio!$A$2:$M$85,11),\"\")","v":""},null,null,null,{"$f":"IF($R144<>0,VLOOKUP($R144,Repertorio!$A$2:$M$85,8),\"\")","v":""},{"$f":"IF($R144<>0,VLOOKUP($R144,Repertorio!$A$2:$M$85,10),\"\")","v":""},null,null,null,null,null,{"$f":"IF($R144<>0,VLOOKUP($R144,Repertorio!$A$2:$M$85,7),\"\")","v":""}]
[null,"","","",null,null,null,null,null,null,"",null,null,null,null,null,null,null,null,null,null,null,null,null,{"$f":"IF($R145<>0,VLOOKUP($R145,Repertorio!$A$2:$M$85,11),\"\")","v":""},null,null,null,{"$f":"IF($R145<>0,VLOOKUP($R145,Repertorio!$A$2:$M$85,8),\"\")","v":""},{"$f":"IF($R145<>0,VLOOKUP($R145,Repertorio!$A$2:$M$85,10),\"\")","v":""},null,null,null,null,null,{"$f":"IF($R145<>0,VLOOKUP($R145,Repertorio!$A$2:$M$85,7),\"\")","v":""}]
[null,"","","",null,null,null,null,null,null,"",null,null,null,null,null,null,null,null,null,null,null,null,null,{"$f":"IF($R146<>0,VLOOKUP($R146,Repertorio!$A$2:$M$85,11),\"\")","v":""},null,null,null,{"$f":"IF($R146<>0,VLOOKUP($R146,Repertorio!$A$2:$M$85,8),\"\")","v":""},{"$f":"IF($R146<>0,VLOOKUP($R146,Repertorio!$A$2:$M$85,10),\"\")","v":""},null,null,null,null,null,{"$f":"IF($R146<>0,VLOOKUP($R146,Repertorio!$A$2:$M$85,7),\"\")","v":""}]
[null,"","","",null,null,null,null,null,null,"",null,null,null,null,null,null,null,null,null,null,null,null,null,{"$f":"IF($R147<>0,VLOOKUP($R147,Repertorio!$A$2:$M$85,11),\"\")","v":""},null,null,null,{"$f":"IF($R147<>0,VLOOKUP($R147,Repertorio!$A$2:$M$85,8),\"\")","v":""},{"$f":"IF($R147<>0,VLOOKUP($R147,Repertorio!$A$2:$M$85,10),\"\")","v":""},null,null,null,null,null,{"$f":"IF($R147<>0,VLOOKUP($R147,Repertorio!$A$2:$M$85,7),\"\")","v":""}]
[null,"","","",null,null,null,null,null,null,"",null,null,null,null,null,null,null,null,null,null,null,null,null,{"$f":"IF($R148<>0,VLOOKUP($R148,Repertorio!$A$2:$M$85,11),\"\")","v":""},null,null,null,{"$f":"IF($R148<>0,VLOOKUP($R148,Repertorio!$A$2:$M$85,8),\"\")","v":""},{"$f":"IF($R148<>0,VLOOKUP($R148,Repertorio!$A$2:$M$85,10),\"\")","v":""},null,null,null,null,null,{"$f":"IF($R148<>0,VLOOKUP($R148,Repertorio!$A$2:$M$85,7),\"\")","v":""}]
[null,"","","",null,null,null,null,null,null,"",null,null,null,null,null,null,null,null,null,null,null,null,null,{"$f":"IF($R149<>0,VLOOKUP($R149,Repertorio!$A$2:$M$85,11),\"\")","v":""},null,null,null,{"$f":"IF($R149<>0,VLOOKUP($R149,Repertorio!$A$2:$M$85,8),\"\")","v":""},{"$f":"IF($R149<>0,VLOOKUP($R149,Repertorio!$A$2:$M$85,10),\"\")","v":""},null,null,null,null,null,{"$f":"IF($R149<>0,VLOOKUP($R149,Repertorio!$A$2:$M$85,7),\"\")","v":""}]
[null,"","","",null,null,null,null,null,null,"",null,null,null,null,null,null,null,null,null,null,null,null,null,{"$f":"IF($R150<>0,VLOOKUP($R150,Repertorio!$A$2:$M$85,11),\"\")","v":""},null,null,null,{"$f":"IF($R150<>0,VLOOKUP($R150,Repertorio!$A$2:$M$85,8),\"\")","v":""},{"$f":"IF($R150<>0,VLOOKUP($R150,Repertorio!$A$2:$M$85,10),\"\")","v":""},null,null,null,null,null,{"$f":"IF($R150<>0,VLOOKUP($R150,Repertorio!$A$2:$M$85,7),\"\")","v":""}]
[null,"","","",null,null,null,null,null,null,"",null,null,null,null,null,null,null,null,null,null,null,null,null,{"$f":"IF($R151<>0,VLOOKUP($R151,Repertorio!$A$2:$M$85,11),\"\")","v":""},null,null,null,{"$f":"IF($R151<>0,VLOOKUP($R151,Repertorio!$A$2:$M$85,8),\"\")","v":""},{"$f":"IF($R151<>0,VLOOKUP($R151,Repertorio!$A$2:$M$85,10),\"\")","v":""},null,null,null,null,null,{"$f":"IF($R151<>0,VLOOKUP($R151,Repertorio!$A$2:$M$85,7),\"\")","v":""}]
[null,"","","",null,null,null,null,null,null,"",null,null,null,null,null,null,null,null,null,null,null,null,null,{"$f":"IF($R152<>0,VLOOKUP($R152,Repertorio!$A$2:$M$85,11),\"\")","v":""},null,null,null,{"$f":"IF($R152<>0,VLOOKUP($R152,Repertorio!$A$2:$M$85,8),\"\")","v":""},{"$f":"IF($R152<>0,VLOOKUP($R152,Repertorio!$A$2:$M$85,10),\"\")","v":""},null,null,null,null,null,{"$f":"IF($R152<>0,VLOOKUP($R152,Repertorio!$A$2:$M$85,7),\"\")","v":""}]
[null,"","","",null,null,null,null,null,null,"",null,null,null,null,null,null,null,null,null,null,null,null,null,{"$f":"IF($R153<>0,VLOOKUP($R153,Repertorio!$A$2:$M$85,11),\"\")","v":""},null,null,null,{"$f":"IF($R153<>0,VLOOKUP($R153,Repertorio!$A$2:$M$85,8),\"\")","v":""},{"$f":"IF($R153<>0,VLOOKUP($R153,Repertorio!$A$2:$M$85,10),\"\")","v":""},null,null,null,null,null,{"$f":"IF($R153<>0,VLOOKUP($R153,Repertorio!$A$2:$M$85,7),\"\")","v":""}]
[null,{"$f":"+IF($A154<>\"\",B$3,\"\")","v":""},"","",null,null,null,null,null,null,"",null,null,null,null,null,null,null,null,null,null,null,null,null,{"$f":"IF($R154<>0,VLOOKUP($R154,Repertorio!$A$2:$M$85,11),\"\")","v":""},null,null,null,{"$f":"IF($R154<>0,VLOOKUP($R154,Repertorio!$A$2:$M$85,8),\"\")","v":""},{"$f":"IF($R154<>0,VLOOKUP($R154,Repertorio!$A$2:$M$85,10),\"\")","v":""},null,null,null,null,null,{"$f":"IF($R154<>0,VLOOKUP($R154,Repertorio!$A$2:$M$85,7),\"\")","v":""}]
[null,"","","",null,null,null,null,null,null,"",null,null,null,null,null,null,null,null,null,null,null,null,null,{"$f":"IF($R155<>0,VLOOKUP($R155,Repertorio!$A$2:$M$85,11),\"\")","v":""},null,null,null,{"$f":"IF($R155<>0,VLOOKUP($R155,Repertorio!$A$2:$M$85,8),\"\")","v":""},{"$f":"IF($R155<>0,VLOOKUP($R155,Repertorio!$A$2:$M$85,10),\"\")","v":""},null,null,null,null,null,{"$f":"IF($R155<>0,VLOOKUP($R155,Repertorio!$A$2:$M$85,7),\"\")","v":""}]
[null,"","","",null,null,null,null,null,null,"",null,null,null,null,null,null,null,null,null,null,null,null,null,{"$f":"IF($R156<>0,VLOOKUP($R156,Repertorio!$A$2:$M$85,11),\"\")","v":""},null,null,null,{"$f":"IF($R156<>0,VLOOKUP($R156,Repertorio!$A$2:$M$85,8),\"\")","v":""},{"$f":"IF($R156<>0,VLOOKUP($R156,Repertorio!$A$2:$M$85,10),\"\")","v":""},null,null,null,null,null,{"$f":"IF($R156<>0,VLOOKUP($R156,Repertorio!$A$2:$M$85,7),\"\")","v":""}]
[null,"","","",null,null,null,null,null,null,"",null,null,null,null,null,null,null,null,null,null,null,null,null,{"$f":"IF($R157<>0,VLOOKUP($R157,Repertorio!$A$2:$M$85,11),\"\")","v":""},null,null,null,{"$f":"IF($R157<>0,VLOOKUP($R157,Repertorio!$A$2:$M$85,8),\"\")","v":""},{"$f":"IF($R157<>0,VLOOKUP($R157,Repertorio!$A$2:$M$85,10),\"\")","v":""},null,null,null,null,null,{"$f":"IF($R157<>0,VLOOKUP($R157,Repertorio!$A$2:$M$85,7),\"\")","v":""}]
[null,"","","",null,null,null,null,null,null,"",null,null,null,null,null,null,null,null,null,null,null,null,null,{"$f":"IF($R158<>0,VLOOKUP($R158,Repertorio!$A$2:$M$85,11),\"\")","v":""},null,null,null,{"$f":"IF($R158<>0,VLOOKUP($R158,Repertorio!$A$2:$M$85,8),\"\")","v":""},{"$f":"IF($R158<>0,VLOOKUP($R158,Repertorio!$A$2:$M$85,10),\"\")","v":""},null,null,null,null,null,{"$f":"IF($R158<>0,VLOOKUP($R158,Repertorio!$A$2:$M$85,7),\"\")","v":""}]
[null,"","","",null,null,null,null,null,null,"",null,null,null,null,null,null,null,null,null,null,null,null,null,{"$f":"IF($R159<>0,VLOOKUP($R159,Repertorio!$A$2:$M$85,11),\"\")","v":""},null,null,null,{"$f":"IF($R159<>0,VLOOKUP($R159,Repertorio!$A$2:$M$85,8),\"\")","v":""},{"$f":"IF($R159<>0,VLOOKUP($R159,Repertorio!$A$2:$M$85,10),\"\")","v":""},null,null,null,null,null,{"$f":"IF($R159<>0,VLOOKUP($R159,Repertorio!$A$2:$M$85,7),\"\")","v":""}]
[null,"","","",null,null,null,null,null,null,"",null,null,null,null,null,null,null,null,null,null,null,null,null,{"$f":"IF($R160<>0,VLOOKUP($R160,Repertorio!$A$2:$M$85,11),\"\")","v":""},null,null,null,{"$f":"IF($R160<>0,VLOOKUP($R160,Repertorio!$A$2:$M$85,8),\"\")","v":""},{"$f":"IF($R160<>0,VLOOKUP($R160,Repertorio!$A$2:$M$85,10),\"\")","v":""},null,null,null,null,null,{"$f":"IF($R160<>0,VLOOKUP($R160,Repertorio!$A$2:$M$85,7),\"\")","v":""}]
[null,"","","",null,null,null,null,null,null,"",null,null,null,null,null,null,null,null,null,null,null,null,null,{"$f":"IF($R161<>0,VLOOKUP($R161,Repertorio!$A$2:$M$85,11),\"\")","v":""},null,null,null,{"$f":"IF($R161<>0,VLOOKUP($R161,Repertorio!$A$2:$M$85,8),\"\")","v":""},{"$f":"IF($R161<>0,VLOOKUP($R161,Repertorio!$A$2:$M$85,10),\"\")","v":""},null,null,null,null,null,{"$f":"IF($R161<>0,VLOOKUP($R161,Repertorio!$A$2:$M$85,7),\"\")","v":""}]
[null,"","","",null,null,null,null,null,null,"",null,null,null,null,null,null,null,null,null,null,null,null,null,{"$f":"IF($R162<>0,VLOOKUP($R162,Repertorio!$A$2:$M$85,11),\"\")","v":""},null,null,null,{"$f":"IF($R162<>0,VLOOKUP($R162,Repertorio!$A$2:$M$85,8),\"\")","v":""},{"$f":"IF($R162<>0,VLOOKUP($R162,Repertorio!$A$2:$M$85,10),\"\")","v":""},null,null,null,null,null,{"$f":"IF($R162<>0,VLOOKUP($R162,Repertorio!$A$2:$M$85,7),\"\")","v":""}]
[null,"","","",null,null,null,null,null,null,"",null,null,null,null,null,null,null,null,null,null,null,null,null,{"$f":"IF($R163<>0,VLOOKUP($R163,Repertorio!$A$2:$M$85,11),\"\")","v":""},null,null,null,{"$f":"IF($R163<>0,VLOOKUP($R163,Repertorio!$A$2:$M$85,8),\"\")","v":""},{"$f":"IF($R163<>0,VLOOKUP($R163,Repertorio!$A$2:$M$85,10),\"\")","v":""},null,null,null,null,null,{"$f":"IF($R163<>0,VLOOKUP($R163,Repertorio!$A$2:$M$85,7),\"\")","v":""}]
[null,"","","",null,null,null,null,null,null,"",null,null,null,null,null,null,null,null,null,null,null,null,null,{"$f":"IF($R164<>0,VLOOKUP($R164,Repertorio!$A$2:$M$85,11),\"\")","v":""},null,null,null,{"$f":"IF($R164<>0,VLOOKUP($R164,Repertorio!$A$2:$M$85,8),\"\")","v":""},{"$f":"IF($R164<>0,VLOOKUP($R164,Repertorio!$A$2:$M$85,10),\"\")","v":""},null,null,null,null,null,{"$f":"IF($R164<>0,VLOOKUP($R164,Repertorio!$A$2:$M$85,7),\"\")","v":""}]
[null,"","","",null,null,null,null,null,null,"",null,null,null,null,null,null,null,null,null,null,null,null,null,{"$f":"IF($R165<>0,VLOOKUP($R165,Repertorio!$A$2:$M$85,11),\"\")","v":""},null,null,null,{"$f":"IF($R165<>0,VLOOKUP($R165,Repertorio!$A$2:$M$85,8),\"\")","v":""},{"$f":"IF($R165<>0,VLOOKUP($R165,Repertorio!$A$2:$M$85,10),\"\")","v":""},null,null,null,null,null,{"$f":"IF($R165<>0,VLOOKUP($R165,Repertorio!$A$2:$M$85,7),\"\")","v":""}]
[null,"","","",null,null,null,null,null,null,"",null,null,null,null,null,null,null,null,null,null,null,null,null,{"$f":"IF($R166<>0,VLOOKUP($R166,Repertorio!$A$2:$M$85,11),\"\")","v":""},null,null,null,{"$f":"IF($R166<>0,VLOOKUP($R166,Repertorio!$A$2:$M$85,8),\"\")","v":""},{"$f":"IF($R166<>0,VLOOKUP($R166,Repertorio!$A$2:$M$85,10),\"\")","v":""},null,null,null,null,null,{"$f":"IF($R166<>0,VLOOKUP($R166,Repertorio!$A$2:$M$85,7),\"\")","v":""}]
[null,"","","",null,null,null,null,null,null,"",null,null,null,null,null,null,null,null,null,null,null,null,null,{"$f":"IF($R167<>0,VLOOKUP($R167,Repertorio!$A$2:$M$85,11),\"\")","v":""},null,null,null,{"$f":"IF($R167<>0,VLOOKUP($R167,Repertorio!$A$2:$M$85,8),\"\")","v":""},{"$f":"IF($R167<>0,VLOOKUP($R167,Repertorio!$A$2:$M$85,10),\"\")","v":""},null,null,null,null,null,{"$f":"IF($R167<>0,VLOOKUP($R167,Repertorio!$A$2:$M$85,7),\"\")","v":""}]
[null,"","","",null,null,null,null,null,null,"",null,null,null,null,null,null,null,null,null,null,null,null,null,{"$f":"IF($R168<>0,VLOOKUP($R168,Repertorio!$A$2:$M$85,11),\"\")","v":""},null,null,null,{"$f":"IF($R168<>0,VLOOKUP($R168,Repertorio!$A$2:$M$85,8),\"\")","v":""},{"$f":"IF($R168<>0,VLOOKUP($R168,Repertorio!$A$2:$M$85,10),\"\")","v":""},null,null,null,null,null,{"$f":"IF($R168<>0,VLOOKUP($R168,Repertorio!$A$2:$M$85,7),\"\")","v":""}]
[null,"","","",null,null,null,null,null,null,"",null,null,null,null,null,null,null,null,null,null,null,null,null,{"$f":"IF($R169<>0,VLOOKUP($R169,Repertorio!$A$2:$M$85,11),\"\")","v":""},null,null,null,{"$f":"IF($R169<>0,VLOOKUP($R169,Repertorio!$A$2:$M$85,8),\"\")","v":""},{"$f":"IF($R169<>0,VLOOKUP($R169,Repertorio!$A$2:$M$85,10),\"\")","v":""},null,null,null,null,null,{"$f":"IF($R169<>0,VLOOKUP($R169,Repertorio!$A$2:$M$85,7),\"\")","v":""}]
[null,"","","",null,null,null,null,null,null,"",null,null,null,null,null,null,null,null,null,null,null,null,null,{"$f":"IF($R170<>0,VLOOKUP($R170,Repertorio!$A$2:$M$85,11),\"\")","v":""},null,null,null,{"$f":"IF($R170<>0,VLOOKUP($R170,Repertorio!$A$2:$M$85,8),\"\")","v":""},{"$f":"IF($R170<>0,VLOOKUP($R170,Repertorio!$A$2:$M$85,10),\"\")","v":""},null,null,null,null,null,{"$f":"IF($R170<>0,VLOOKUP($R170,Repertorio!$A$2:$M$85,7),\"\")","v":""}]
[null,"","","",null,null,null,null,null,null,"",null,null,null,null,null,null,null,null,null,null,null,null,null,{"$f":"IF($R171<>0,VLOOKUP($R171,Repertorio!$A$2:$M$85,11),\"\")","v":""},null,null,null,{"$f":"IF($R171<>0,VLOOKUP($R171,Repertorio!$A$2:$M$85,8),\"\")","v":""},{"$f":"IF($R171<>0,VLOOKUP($R171,Repertorio!$A$2:$M$85,10),\"\")","v":""},null,null,null,null,null,{"$f":"IF($R171<>0,VLOOKUP($R171,Repertorio!$A$2:$M$85,7),\"\")","v":""}]
[null,"","","",null,null,null,null,null,null,"",null,null,null,null,null,null,null,null,null,null,null,null,null,{"$f":"IF($R172<>0,VLOOKUP($R172,Repertorio!$A$2:$M$85,11),\"\")","v":""},null,null,null,{"$f":"IF($R172<>0,VLOOKUP($R172,Repertorio!$A$2:$M$85,8),\"\")","v":""},{"$f":"IF($R172<>0,VLOOKUP($R172,Repertorio!$A$2:$M$85,10),\"\")","v":""},null,null,null,null,null,{"$f":"IF($R172<>0,VLOOKUP($R172,Repertorio!$A$2:$M$85,7),\"\")","v":""}]
[null,"","","",null,null,null,null,null,null,"",null,null,null,null,null,null,null,null,null,null,null,null,null,{"$f":"IF($R173<>0,VLOOKUP($R173,Repertorio!$A$2:$M$85,11),\"\")","v":""},null,null,null,{"$f":"IF($R173<>0,VLOOKUP($R173,Repertorio!$A$2:$M$85,8),\"\")","v":""},{"$f":"IF($R173<>0,VLOOKUP($R173,Repertorio!$A$2:$M$85,10),\"\")","v":""},null,null,null,null,null,{"$f":"IF($R173<>0,VLOOKUP($R173,Repertorio!$A$2:$M$85,7),\"\")","v":""}]
[null,{"$f":"+IF($A174<>\"\",B$3,\"\")","v":""},"","",null,null,null,null,null,null,"",null,null,null,null,null,null,null,null,null,null,null,null,null,{"$f":"IF($R174<>0,VLOOKUP($R174,Repertorio!$A$2:$M$85,11),\"\")","v":""},null,null,null,{"$f":"IF($R174<>0,VLOOKUP($R174,Repertorio!$A$2:$M$85,8),\"\")","v":""},{"$f":"IF($R174<>0,VLOOKUP($R174,Repertorio!$A$2:$M$85,10),\"\")","v":""},null,null,null,null,null,{"$f":"IF($R174<>0,VLOOKUP($R174,Repertorio!$A$2:$M$85,7),\"\")","v":""}]
[null,"","","",null,null,null,null,null,null,"",null,null,null,null,null,null,null,null,null,null,null,null,null,{"$f":"IF($R175<>0,VLOOKUP($R175,Repertorio!$A$2:$M$85,11),\"\")","v":""},null,null,null,{"$f":"IF($R175<>0,VLOOKUP($R175,Repertorio!$A$2:$M$85,8),\"\")","v":""},{"$f":"IF($R175<>0,VLOOKUP($R175,Repertorio!$A$2:$M$85,10),\"\")","v":""},null,null,null,null,null,{"$f":"IF($R175<>0,VLOOKUP($R175,Repertorio!$A$2:$M$85,7),\"\")","v":""}]
[null,"","","",null,null,null,null,null,null,"",null,null,null,null,null,null,null,null,null,null,null,null,null,{"$f":"IF($R176<>0,VLOOKUP($R176,Repertorio!$A$2:$M$85,11),\"\")","v":""},null,null,null,{"$f":"IF($R176<>0,VLOOKUP($R176,Repertorio!$A$2:$M$85,8),\"\")","v":""},{"$f":"IF($R176<>0,VLOOKUP($R176,Repertorio!$A$2:$M$85,10),\"\")","v":""},null,null,null,null,null,{"$f":"IF($R176<>0,VLOOKUP($R176,Repertorio!$A$2:$M$85,7),\"\")","v":""}]
[null,"","","",null,null,null,null,null,null,"",null,null,null,null,null,null,null,null,null,null,null,null,null,{"$f":"IF($R177<>0,VLOOKUP($R177,Repertorio!$A$2:$M$85,11),\"\")","v":""},null,null,null,{"$f":"IF($R177<>0,VLOOKUP($R177,Repertorio!$A$2:$M$85,8),\"\")","v":""},{"$f":"IF($R177<>0,VLOOKUP($R177,Repertorio!$A$2:$M$85,10),\"\")","v":""},null,null,null,null,null,{"$f":"IF($R177<>0,VLOOKUP($R177,Repertorio!$A$2:$M$85,7),\"\")","v":""}]
[null,"","","",null,null,null,null,null,null,"",null,null,null,null,null,null,null,null,null,null,null,null,null,{"$f":"IF($R178<>0,VLOOKUP($R178,Repertorio!$A$2:$M$85,11),\"\")","v":""},null,null,null,{"$f":"IF($R178<>0,VLOOKUP($R178,Repertorio!$A$2:$M$85,8),\"\")","v":""},{"$f":"IF($R178<>0,VLOOKUP($R178,Repertorio!$A$2:$M$85,10),\"\")","v":""},null,null,null,null,null,{"$f":"IF($R178<>0,VLOOKUP($R178,Repertorio!$A$2:$M$85,7),\"\")","v":""}]
[null,"","","",null,null,null,null,null,null,"",null,null,null,null,null,null,null,null,null,null,null,null,null,{"$f":"IF($R179<>0,VLOOKUP($R179,Repertorio!$A$2:$M$85,11),\"\")","v":""},null,null,null,{"$f":"IF($R179<>0,VLOOKUP($R179,Repertorio!$A$2:$M$85,8),\"\")","v":""},{"$f":"IF($R179<>0,VLOOKUP($R179,Repertorio!$A$2:$M$85,10),\"\")","v":""},null,null,null,null,null,{"$f":"IF($R179<>0,VLOOKUP($R179,Repertorio!$A$2:$M$85,7),\"\")","v":""}]
[null,"","","",null,null,null,null,null,null,"",null,null,null,null,null,null,null,null,null,null,null,null,null,{"$f":"IF($R180<>0,VLOOKUP($R180,Repertorio!$A$2:$M$85,11),\"\")","v":""},null,null,null,{"$f":"IF($R180<>0,VLOOKUP($R180,Repertorio!$A$2:$M$85,8),\"\")","v":""},{"$f":"IF($R180<>0,VLOOKUP($R180,Repertorio!$A$2:$M$85,10),\"\")","v":""},null,null,null,null,null,{"$f":"IF($R180<>0,VLOOKUP($R180,Repertorio!$A$2:$M$85,7),\"\")","v":""}]
[null,"","","",null,null,null,null,null,null,"",null,null,null,null,null,null,null,null,null,null,null,null,null,{"$f":"IF($R181<>0,VLOOKUP($R181,Repertorio!$A$2:$M$85,11),\"\")","v":""},null,null,null,{"$f":"IF($R181<>0,VLOOKUP($R181,Repertorio!$A$2:$M$85,8),\"\")","v":""},{"$f":"IF($R181<>0,VLOOKUP($R181,Repertorio!$A$2:$M$85,10),\"\")","v":""},null,null,null,null,null,{"$f":"IF($R181<>0,VLOOKUP($R181,Repertorio!$A$2:$M$85,7),\"\")","v":""}]
[null,"","","",null,null,null,null,null,null,"",null,null,null,null,null,null,null,null,null,null,null,null,null,{"$f":"IF($R182<>0,VLOOKUP($R182,Repertorio!$A$2:$M$85,11),\"\")","v":""},null,null,null,{"$f":"IF($R182<>0,VLOOKUP($R182,Repertorio!$A$2:$M$85,8),\"\")","v":""},{"$f":"IF($R182<>0,VLOOKUP($R182,Repertorio!$A$2:$M$85,10),\"\")","v":""},null,null,null,null,null,{"$f":"IF($R182<>0,VLOOKUP($R182,Repertorio!$A$2:$M$85,7),\"\")","v":""}]
[null,"","","",null,null,null,null,null,null,"",null,null,null,null,null,null,null,null,null,null,null,null,null,{"$f":"IF($R183<>0,VLOOKUP($R183,Repertorio!$A$2:$M$85,11),\"\")","v":""},null,null,null,{"$f":"IF($R183<>0,VLOOKUP($R183,Repertorio!$A$2:$M$85,8),\"\")","v":""},{"$f":"IF($R183<>0,VLOOKUP($R183,Repertorio!$A$2:$M$85,10),\"\")","v":""},null,null,null,null,null,{"$f":"IF($R183<>0,VLOOKUP($R183,Repertorio!$A$2:$M$85,7),\"\")","v":""}]
[null,"","","",null,null,null,null,null,null,"",null,null,null,null,null,null,null,null,null,null,null,null,null,{"$f":"IF($R184<>0,VLOOKUP($R184,Repertorio!$A$2:$M$85,11),\"\")","v":""},null,null,null,{"$f":"IF($R184<>0,VLOOKUP($R184,Repertorio!$A$2:$M$85,8),\"\")","v":""},{"$f":"IF($R184<>0,VLOOKUP($R184,Repertorio!$A$2:$M$85,10),\"\")","v":""},null,null,null,null,null,{"$f":"IF($R184<>0,VLOOKUP($R184,Repertorio!$A$2:$M$85,7),\"\")","v":""}]
[null,"","","",null,null,null,null,null,null,"",null,null,null,null,null,null,null,null,null,null,null,null,null,{"$f":"IF($R185<>0,VLOOKUP($R185,Repertorio!$A$2:$M$85,11),\"\")","v":""},null,null,null,{"$f":"IF($R185<>0,VLOOKUP($R185,Repertorio!$A$2:$M$85,8),\"\")","v":""},{"$f":"IF($R185<>0,VLOOKUP($R185,Repertorio!$A$2:$M$85,10),\"\")","v":""},null,null,null,null,null,{"$f":"IF($R185<>0,VLOOKUP($R185,Repertorio!$A$2:$M$85,7),\"\")","v":""}]
[null,"","","",null,null,null,null,null,null,"",null,null,null,null,null,null,null,null,null,null,null,null,null,{"$f":"IF($R186<>0,VLOOKUP($R186,Repertorio!$A$2:$M$85,11),\"\")","v":""},null,null,null,{"$f":"IF($R186<>0,VLOOKUP($R186,Repertorio!$A$2:$M$85,8),\"\")","v":""},{"$f":"IF($R186<>0,VLOOKUP($R186,Repertorio!$A$2:$M$85,10),\"\")","v":""},null,null,null,null,null,{"$f":"IF($R186<>0,VLOOKUP($R186,Repertorio!$A$2:$M$85,7),\"\")","v":""}]
[null,"","","",null,null,null,null,null,null,"",null,null,null,null,null,null,null,null,null,null,null,null,null,{"$f":"IF($R187<>0,VLOOKUP($R187,Repertorio!$A$2:$M$85,11),\"\")","v":""},null,null,null,{"$f":"IF($R187<>0,VLOOKUP($R187,Repertorio!$A$2:$M$85,8),\"\")","v":""},{"$f":"IF($R187<>0,VLOOKUP($R187,Repertorio!$A$2:$M$85,10),\"\")","v":""},null,null,null,null,null,{"$f":"IF($R187<>0,VLOOKUP($R187,Repertorio!$A$2:$M$85,7),\"\")","v":""}]
[null,"","","",null,null,null,null,null,null,"",null,null,null,null,null,null,null,null,null,null,null,null,null,{"$f":"IF($R188<>0,VLOOKUP($R188,Repertorio!$A$2:$M$85,11),\"\")","v":""},null,null,null,{"$f":"IF($R188<>0,VLOOKUP($R188,Repertorio!$A$2:$M$85,8),\"\")","v":""},{"$f":"IF($R188<>0,VLOOKUP($R188,Repertorio!$A$2:$M$85,10),\"\")","v":""},null,null,null,null,null,{"$f":"IF($R188<>0,VLOOKUP($R188,Repertorio!$A$2:$M$85,7),\"\")","v":""}]
[null,"","","",null,null,null,null,null,null,"",null,null,null,null,null,null,null,null,null,null,null,null,null,{"$f":"IF($R189<>0,VLOOKUP($R189,Repertorio!$A$2:$M$85,11),\"\")","v":""},null,null,null,{"$f":"IF($R189<>0,VLOOKUP($R189,Repertorio!$A$2:$M$85,8),\"\")","v":""},{"$f":"IF($R189<>0,VLOOKUP($R189,Repertorio!$A$2:$M$85,10),\"\")","v":""},null,null,null,null,null,{"$f":"IF($R189<>0,VLOOKUP($R189,Repertorio!$A$2:$M$85,7),\"\")","v":""}]
[null,"","","",null,null,null,null,null,null,"",null,null,null,null,null,null,null,null,null,null,null,null,null,{"$f":"IF($R190<>0,VLOOKUP($R190,Repertorio!$A$2:$M$85,11),\"\")","v":""},null,null,null,{"$f":"IF($R190<>0,VLOOKUP($R190,Repertorio!$A$2:$M$85,8),\"\")","v":""},{"$f":"IF($R190<>0,VLOOKUP($R190,Repertorio!$A$2:$M$85,10),\"\")","v":""},null,null,null,null,null,{"$f":"IF($R190<>0,VLOOKUP($R190,Repertorio!$A$2:$M$85,7),\"\")","v":""}]
[null,"","","",null,null,null,null,null,null,"",null,null,null,null,null,null,null,null,null,null,null,null,null,{"$f":"IF($R191<>0,VLOOKUP($R191,Repertorio!$A$2:$M$85,11),\"\")","v":""},null,null,null,{"$f":"IF($R191<>0,VLOOKUP($R191,Repertorio!$A$2:$M$85,8),\"\")","v":""},{"$f":"IF($R191<>0,VLOOKUP($R191,Repertorio!$A$2:$M$85,10),\"\")","v":""},null,null,null,null,null,{"$f":"IF($R191<>0,VLOOKUP($R191,Repertorio!$A$2:$M$85,7),\"\")","v":""}]
[null,"","","",null,null,null,null,null,null,"",null,null,null,null,null,null,null,null,null,null,null,null,null,{"$f":"IF($R192<>0,VLOOKUP($R192,Repertorio!$A$2:$M$85,11),\"\")","v":""},null,null,null,{"$f":"IF($R192<>0,VLOOKUP($R192,Repertorio!$A$2:$M$85,8),\"\")","v":""},{"$f":"IF($R192<>0,VLOOKUP($R192,Repertorio!$A$2:$M$85,10),\"\")","v":""},null,null,null,null,null,{"$f":"IF($R192<>0,VLOOKUP($R192,Repertorio!$A$2:$M$85,7),\"\")","v":""}]
[null,"","","",null,null,null,null,null,null,"",null,null,null,null,null,null,null,null,null,null,null,null,null,{"$f":"IF($R193<>0,VLOOKUP($R193,Repertorio!$A$2:$M$85,11),\"\")","v":""},null,null,null,{"$f":"IF($R193<>0,VLOOKUP($R193,Repertorio!$A$2:$M$85,8),\"\")","v":""},{"$f":"IF($R193<>0,VLOOKUP($R193,Repertorio!$A$2:$M$85,10),\"\")","v":""},null,null,null,null,null,{"$f":"IF($R193<>0,VLOOKUP($R193,Repertorio!$A$2:$M$85,7),\"\")","v":""}]
[null,{"$f":"+IF($A194<>\"\",B$3,\"\")","v":""},"","",null,null,null,null,null,null,"",null,null,null,null,null,null,null,null,null,null,null,null,null,{"$f":"IF($R194<>0,VLOOKUP($R194,Repertorio!$A$2:$M$85,11),\"\")","v":""},null,null,null,{"$f":"IF($R194<>0,VLOOKUP($R194,Repertorio!$A$2:$M$85,8),\"\")","v":""},{"$f":"IF($R194<>0,VLOOKUP($R194,Repertorio!$A$2:$M$85,10),\"\")","v":""},null,null,null,null,null,{"$f":"IF($R194<>0,VLOOKUP($R194,Repertorio!$A$2:$M$85,7),\"\")","v":""}]
[null,"","","",null,null,null,null,null,null,"",null,null,null,null,null,null,null,null,null,null,null,null,null,{"$f":"IF($R195<>0,VLOOKUP($R195,Repertorio!$A$2:$M$85,11),\"\")","v":""},null,null,null,{"$f":"IF($R195<>0,VLOOKUP($R195,Repertorio!$A$2:$M$85,8),\"\")","v":""},{"$f":"IF($R195<>0,VLOOKUP($R195,Repertorio!$A$2:$M$85,10),\"\")","v":""},null,null,null,null,null,{"$f":"IF($R195<>0,VLOOKUP($R195,Repertorio!$A$2:$M$85,7),\"\")","v":""}]
[null,"","","",null,null,null,null,null,null,{"$f":"+IF(J196<>\"C9. Altro\",\"\",\"Valorizzare\")","v":""},null,null,null,null,null,null,null,null,null,null,null,null,null,{"$f":"IF($R196<>0,VLOOKUP($R196,Repertorio!$A$2:$M$85,11),\"\")","v":""},null,null,null,{"$f":"IF($R196<>0,VLOOKUP($R196,Repertorio!$A$2:$M$85,8),\"\")","v":""},{"$f":"IF($R196<>0,VLOOKUP($R196,Repertorio!$A$2:$M$85,10),\"\")","v":""},null,null,null,null,null,{"$f":"IF($R196<>0,VLOOKUP($R196,Repertorio!$A$2:$M$85,7),\"\")","v":""}]
[null,"","","",null,null,null,null,null,null,"",null,null,null,null,null,null,null,null,null,null,null,null,null,{"$f":"IF($R197<>0,VLOOKUP($R197,Repertorio!$A$2:$M$85,11),\"\")","v":""},null,null,null,{"$f":"IF($R197<>0,VLOOKUP($R197,Repertorio!$A$2:$M$85,8),\"\")","v":""},{"$f":"IF($R197<>0,VLOOKUP($R197,Repertorio!$A$2:$M$85,10),\"\")","v":""},null,null,null,null,null,{"$f":"IF($R197<>0,VLOOKUP($R197,Repertorio!$A$2:$M$85,7),\"\")","v":""}]
[null,"","","",null,null,null,null,null,null,"",null,null,null,null,null,null,null,null,null,null,null,null,null,{"$f":"IF($R198<>0,VLOOKUP($R198,Repertorio!$A$2:$M$85,11),\"\")","v":""},null,null,null,{"$f":"IF($R198<>0,VLOOKUP($R198,Repertorio!$A$2:$M$85,8),\"\")","v":""},{"$f":"IF($R198<>0,VLOOKUP($R198,Repertorio!$A$2:$M$85,10),\"\")","v":""},null,null,null,null,null,{"$f":"IF($R198<>0,VLOOKUP($R198,Repertorio!$A$2:$M$85,7),\"\")","v":""}]
[null,"","","",null,null,null,null,null,null,"",null,null,null,null,null,null,null,null,null,null,null,null,null,{"$f":"IF($R199<>0,VLOOKUP($R199,Repertorio!$A$2:$M$85,11),\"\")","v":""},null,null,null,{"$f":"IF($R199<>0,VLOOKUP($R199,Repertorio!$A$2:$M$85,8),\"\")","v":""},{"$f":"IF($R199<>0,VLOOKUP($R199,Repertorio!$A$2:$M$85,10),\"\")","v":""},null,null,null,null,null,{"$f":"IF($R199<>0,VLOOKUP($R199,Repertorio!$A$2:$M$85,7),\"\")","v":""}]
[null,"","","",null,null,null,null,null,null,"",null,null,null,null,null,null,null,null,null,null,null,null,null,{"$f":"IF($R200<>0,VLOOKUP($R200,Repertorio!$A$2:$M$85,11),\"\")","v":""},null,null,null,{"$f":"IF($R200<>0,VLOOKUP($R200,Repertorio!$A$2:$M$85,8),\"\")","v":""},{"$f":"IF($R200<>0,VLOOKUP($R200,Repertorio!$A$2:$M$85,10),\"\")","v":""},null,null,null,null,null,{"$f":"IF($R200<>0,VLOOKUP($R200,Repertorio!$A$2:$M$85,7),\"\")","v":""}]
[null,"","","",null,null,null,null,null,null,"",null,null,null,null,null,null,null,null,null,null,null,null,null,{"$f":"IF($R201<>0,VLOOKUP($R201,Repertorio!$A$2:$M$85,11),\"\")","v":""},null,null,null,{"$f":"IF($R201<>0,VLOOKUP($R201,Repertorio!$A$2:$M$85,8),\"\")","v":""},{"$f":"IF($R201<>0,VLOOKUP($R201,Repertorio!$A$2:$M$85,10),\"\")","v":""},null,null,null,null,null,{"$f":"IF($R201<>0,VLOOKUP($R201,Repertorio!$A$2:$M$85,7),\"\")","v":""}]
[null,"","","",null,null,null,null,null,null,"",null,null,null,null,null,null,null,null,null,null,null,null,null,{"$f":"IF($R202<>0,VLOOKUP($R202,Repertorio!$A$2:$M$85,11),\"\")","v":""},null,null,null,{"$f":"IF($R202<>0,VLOOKUP($R202,Repertorio!$A$2:$M$85,8),\"\")","v":""},{"$f":"IF($R202<>0,VLOOKUP($R202,Repertorio!$A$2:$M$85,10),\"\")","v":""},null,null,null,null,null,{"$f":"IF($R202<>0,VLOOKUP($R202,Repertorio!$A$2:$M$85,7),\"\")","v":""}]
[null,"","","",null,null,null,null,null,null,"",null,null,null,null,null,null,null,null,null,null,null,null,null,{"$f":"IF($R203<>0,VLOOKUP($R203,Repertorio!$A$2:$M$85,11),\"\")","v":""},null,null,null,{"$f":"IF($R203<>0,VLOOKUP($R203,Repertorio!$A$2:$M$85,8),\"\")","v":""},{"$f":"IF($R203<>0,VLOOKUP($R203,Repertorio!$A$2:$M$85,10),\"\")","v":""},null,null,null,null,null,{"$f":"IF($R203<>0,VLOOKUP($R203,Repertorio!$A$2:$M$85,7),\"\")","v":""}]
[null,"","","",null,null,null,null,null,null,"",null,null,null,null,null,null,null,null,null,null,null,null,null,{"$f":"IF($R204<>0,VLOOKUP($R204,Repertorio!$A$2:$M$85,11),\"\")","v":""},null,null,null,{"$f":"IF($R204<>0,VLOOKUP($R204,Repertorio!$A$2:$M$85,8),\"\")","v":""},{"$f":"IF($R204<>0,VLOOKUP($R204,Repertorio!$A$2:$M$85,10),\"\")","v":""},null,null,null,null,null,{"$f":"IF($R204<>0,VLOOKUP($R204,Repertorio!$A$2:$M$85,7),\"\")","v":""}]
[null,"","","",null,null,null,null,null,null,"",null,null,null,null,null,null,null,null,null,null,null,null,null,{"$f":"IF($R205<>0,VLOOKUP($R205,Repertorio!$A$2:$M$85,11),\"\")","v":""},null,null,null,{"$f":"IF($R205<>0,VLOOKUP($R205,Repertorio!$A$2:$M$85,8),\"\")","v":""},{"$f":"IF($R205<>0,VLOOKUP($R205,Repertorio!$A$2:$M$85,10),\"\")","v":""},null,null,null,null,null,{"$f":"IF($R205<>0,VLOOKUP($R205,Repertorio!$A$2:$M$85,7),\"\")","v":""}]
[null,"","","",null,null,null,null,null,null,"",null,null,null,null,null,null,null,null,null,null,null,null,null,{"$f":"IF($R206<>0,VLOOKUP($R206,Repertorio!$A$2:$M$85,11),\"\")","v":""},null,null,null,{"$f":"IF($R206<>0,VLOOKUP($R206,Repertorio!$A$2:$M$85,8),\"\")","v":""},{"$f":"IF($R206<>0,VLOOKUP($R206,Repertorio!$A$2:$M$85,10),\"\")","v":""},null,null,null,null,null,{"$f":"IF($R206<>0,VLOOKUP($R206,Repertorio!$A$2:$M$85,7),\"\")","v":""}]
[null,"","","",null,null,null,null,null,null,"",null,null,null,null,null,null,null,null,null,null,null,null,null,{"$f":"IF($R207<>0,VLOOKUP($R207,Repertorio!$A$2:$M$85,11),\"\")","v":""},null,null,null,{"$f":"IF($R207<>0,VLOOKUP($R207,Repertorio!$A$2:$M$85,8),\"\")","v":""},{"$f":"IF($R207<>0,VLOOKUP($R207,Repertorio!$A$2:$M$85,10),\"\")","v":""},null,null,null,null,null,{"$f":"IF($R207<>0,VLOOKUP($R207,Repertorio!$A$2:$M$85,7),\"\")","v":""}]
[null,"","","",null,null,null,null,null,null,"",null,null,null,null,null,null,null,null,null,null,null,null,null,{"$f":"IF($R208<>0,VLOOKUP($R208,Repertorio!$A$2:$M$85,11),\"\")","v":""},null,null,null,{"$f":"IF($R208<>0,VLOOKUP($R208,Repertorio!$A$2:$M$85,8),\"\")","v":""},{"$f":"IF($R208<>0,VLOOKUP($R208,Repertorio!$A$2:$M$85,10),\"\")","v":""},null,null,null,null,null,{"$f":"IF($R208<>0,VLOOKUP($R208,Repertorio!$A$2:$M$85,7),\"\")","v":""}]
[null,"","","",null,null,null,null,null,null,"",null,null,null,null,null,null,null,null,null,null,null,null,null,{"$f":"IF($R209<>0,VLOOKUP($R209,Repertorio!$A$2:$M$85,11),\"\")","v":""},null,null,null,{"$f":"IF($R209<>0,VLOOKUP($R209,Repertorio!$A$2:$M$85,8),\"\")","v":""},{"$f":"IF($R209<>0,VLOOKUP($R209,Repertorio!$A$2:$M$85,10),\"\")","v":""},null,null,null,null,null,{"$f":"IF($R209<>0,VLOOKUP($R209,Repertorio!$A$2:$M$85,7),\"\")","v":""}]
[null,"","","",null,null,null,null,null,null,"",null,null,null,null,null,null,null,null,null,null,null,null,null,{"$f":"IF($R210<>0,VLOOKUP($R210,Repertorio!$A$2:$M$85,11),\"\")","v":""},null,null,null,{"$f":"IF($R210<>0,VLOOKUP($R210,Repertorio!$A$2:$M$85,8),\"\")","v":""},{"$f":"IF($R210<>0,VLOOKUP($R210,Repertorio!$A$2:$M$85,10),\"\")","v":""},null,null,null,null,null,{"$f":"IF($R210<>0,VLOOKUP($R210,Repertorio!$A$2:$M$85,7),\"\")","v":""}]
[null,"","","",null,null,null,null,null,null,"",null,null,null,null,null,null,null,null,null,null,null,null,null,{"$f":"IF($R211<>0,VLOOKUP($R211,Repertorio!$A$2:$M$85,11),\"\")","v":""},null,null,null,{"$f":"IF($R211<>0,VLOOKUP($R211,Repertorio!$A$2:$M$85,8),\"\")","v":""},{"$f":"IF($R211<>0,VLOOKUP($R211,Repertorio!$A$2:$M$85,10),\"\")","v":""},null,null,null,null,null,{"$f":"IF($R211<>0,VLOOKUP($R211,Repertorio!$A$2:$M$85,7),\"\")","v":""}]
[null,"","","",null,null,null,null,null,null,"",null,null,null,null,null,null,null,null,null,null,null,null,null,{"$f":"IF($R212<>0,VLOOKUP($R212,Repertorio!$A$2:$M$85,11),\"\")","v":""},null,null,null,{"$f":"IF($R212<>0,VLOOKUP($R212,Repertorio!$A$2:$M$85,8),\"\")","v":""},{"$f":"IF($R212<>0,VLOOKUP($R212,Repertorio!$A$2:$M$85,10),\"\")","v":""},null,null,null,null,null,{"$f":"IF($R212<>0,VLOOKUP($R212,Repertorio!$A$2:$M$85,7),\"\")","v":""}]
[null,"","","",null,null,null,null,null,null,"",null,null,null,null,null,null,null,null,null,null,null,null,null,{"$f":"IF($R213<>0,VLOOKUP($R213,Repertorio!$A$2:$M$85,11),\"\")","v":""},null,null,null,{"$f":"IF($R213<>0,VLOOKUP($R213,Repertorio!$A$2:$M$85,8),\"\")","v":""},{"$f":"IF($R213<>0,VLOOKUP($R213,Repertorio!$A$2:$M$85,10),\"\")","v":""},null,null,null,null,null,{"$f":"IF($R213<>0,VLOOKUP($R213,Repertorio!$A$2:$M$85,7),\"\")","v":""}]
[null,{"$f":"+IF($A214<>\"\",B$3,\"\")","v":""},"","",null,null,null,null,null,null,"",null,null,null,null,null,null,null,null,null,null,null,null,null,{"$f":"IF($R214<>0,VLOOKUP($R214,Repertorio!$A$2:$M$85,11),\"\")","v":""},null,null,null,{"$f":"IF($R214<>0,VLOOKUP($R214,Repertorio!$A$2:$M$85,8),\"\")","v":""},{"$f":"IF($R214<>0,VLOOKUP($R214,Repertorio!$A$2:$M$85,10),\"\")","v":""},null,null,null,null,null,{"$f":"IF($R214<>0,VLOOKUP($R214,Repertorio!$A$2:$M$85,7),\"\")","v":""}]
[null,"","","",null,null,null,null,null,null,"",null,null,null,null,null,null,null,null,null,null,null,null,null,{"$f":"IF($R215<>0,VLOOKUP($R215,Repertorio!$A$2:$M$85,11),\"\")","v":""},null,null,null,{"$f":"IF($R215<>0,VLOOKUP($R215,Repertorio!$A$2:$M$85,8),\"\")","v":""},{"$f":"IF($R215<>0,VLOOKUP($R215,Repertorio!$A$2:$M$85,10),\"\")","v":""},null,null,null,null,null,{"$f":"IF($R215<>0,VLOOKUP($R215,Repertorio!$A$2:$M$85,7),\"\")","v":""}]
[null,"","","",null,null,null,null,null,null,"",null,null,null,null,null,null,null,null,null,null,null,null,null,{"$f":"IF($R216<>0,VLOOKUP($R216,Repertorio!$A$2:$M$85,11),\"\")","v":""},null,null,null,{"$f":"IF($R216<>0,VLOOKUP($R216,Repertorio!$A$2:$M$85,8),\"\")","v":""},{"$f":"IF($R216<>0,VLOOKUP($R216,Repertorio!$A$2:$M$85,10),\"\")","v":""},null,null,null,null,null,{"$f":"IF($R216<>0,VLOOKUP($R216,Repertorio!$A$2:$M$85,7),\"\")","v":""}]
[null,"","","",null,null,null,null,null,null,"",null,null,null,null,null,null,null,null,null,null,null,null,null,{"$f":"IF($R217<>0,VLOOKUP($R217,Repertorio!$A$2:$M$85,11),\"\")","v":""},null,null,null,{"$f":"IF($R217<>0,VLOOKUP($R217,Repertorio!$A$2:$M$85,8),\"\")","v":""},{"$f":"IF($R217<>0,VLOOKUP($R217,Repertorio!$A$2:$M$85,10),\"\")","v":""},null,null,null,null,null,{"$f":"IF($R217<>0,VLOOKUP($R217,Repertorio!$A$2:$M$85,7),\"\")","v":""}]
[null,"","","",null,null,null,null,null,null,"",null,null,null,null,null,null,null,null,null,null,null,null,null,{"$f":"IF($R218<>0,VLOOKUP($R218,Repertorio!$A$2:$M$85,11),\"\")","v":""},null,null,null,{"$f":"IF($R218<>0,VLOOKUP($R218,Repertorio!$A$2:$M$85,8),\"\")","v":""},{"$f":"IF($R218<>0,VLOOKUP($R218,Repertorio!$A$2:$M$85,10),\"\")","v":""},null,null,null,null,null,{"$f":"IF($R218<>0,VLOOKUP($R218,Repertorio!$A$2:$M$85,7),\"\")","v":""}]
[null,"","","",null,null,null,null,null,null,"",null,null,null,null,null,null,null,null,null,null,null,null,null,{"$f":"IF($R219<>0,VLOOKUP($R219,Repertorio!$A$2:$M$85,11),\"\")","v":""},null,null,null,{"$f":"IF($R219<>0,VLOOKUP($R219,Repertorio!$A$2:$M$85,8),\"\")","v":""},{"$f":"IF($R219<>0,VLOOKUP($R219,Repertorio!$A$2:$M$85,10),\"\")","v":""},null,null,null,null,null,{"$f":"IF($R219<>0,VLOOKUP($R219,Repertorio!$A$2:$M$85,7),\"\")","v":""}]
[null,"","","",null,null,null,null,null,null,"",null,null,null,null,null,null,null,null,null,null,null,null,null,{"$f":"IF($R220<>0,VLOOKUP($R220,Repertorio!$A$2:$M$85,11),\"\")","v":""},null,null,null,{"$f":"IF($R220<>0,VLOOKUP($R220,Repertorio!$A$2:$M$85,8),\"\")","v":""},{"$f":"IF($R220<>0,VLOOKUP($R220,Repertorio!$A$2:$M$85,10),\"\")","v":""},null,null,null,null,null,{"$f":"IF($R220<>0,VLOOKUP($R220,Repertorio!$A$2:$M$85,7),\"\")","v":""}]
[null,"","","",null,null,null,null,null,null,"",null,null,null,null,null,null,null,null,null,null,null,null,null,{"$f":"IF($R221<>0,VLOOKUP($R221,Repertorio!$A$2:$M$85,11),\"\")","v":""},null,null,null,{"$f":"IF($R221<>0,VLOOKUP($R221,Repertorio!$A$2:$M$85,8),\"\")","v":""},{"$f":"IF($R221<>0,VLOOKUP($R221,Repertorio!$A$2:$M$85,10),\"\")","v":""},null,null,null,null,null,{"$f":"IF($R221<>0,VLOOKUP($R221,Repertorio!$A$2:$M$85,7),\"\")","v":""}]
[null,"","","",null,null,null,null,null,null,"",null,null,null,null,null,null,null,null,null,null,null,null,null,{"$f":"IF($R222<>0,VLOOKUP($R222,Repertorio!$A$2:$M$85,11),\"\")","v":""},null,null,null,{"$f":"IF($R222<>0,VLOOKUP($R222,Repertorio!$A$2:$M$85,8),\"\")","v":""},{"$f":"IF($R222<>0,VLOOKUP($R222,Repertorio!$A$2:$M$85,10),\"\")","v":""},null,null,null,null,null,{"$f":"IF($R222<>0,VLOOKUP($R222,Repertorio!$A$2:$M$85,7),\"\")","v":""}]
[null,"","","",null,null,null,null,null,null,"",null,null,null,null,null,null,null,null,null,null,null,null,null,{"$f":"IF($R223<>0,VLOOKUP($R223,Repertorio!$A$2:$M$85,11),\"\")","v":""},null,null,null,{"$f":"IF($R223<>0,VLOOKUP($R223,Repertorio!$A$2:$M$85,8),\"\")","v":""},{"$f":"IF($R223<>0,VLOOKUP($R223,Repertorio!$A$2:$M$85,10),\"\")","v":""},null,null,null,null,null,{"$f":"IF($R223<>0,VLOOKUP($R223,Repertorio!$A$2:$M$85,7),\"\")","v":""}]
[null,"","","",null,null,null,null,null,null,"",null,null,null,null,null,null,null,null,null,null,null,null,null,{"$f":"IF($R224<>0,VLOOKUP($R224,Repertorio!$A$2:$M$85,11),\"\")","v":""},null,null,null,{"$f":"IF($R224<>0,VLOOKUP($R224,Repertorio!$A$2:$M$85,8),\"\")","v":""},{"$f":"IF($R224<>0,VLOOKUP($R224,Repertorio!$A$2:$M$85,10),\"\")","v":""},null,null,null,null,null,{"$f":"IF($R224<>0,VLOOKUP($R224,Repertorio!$A$2:$M$85,7),\"\")","v":""}]
[null,"","","",null,null,null,null,null,null,"",null,null,null,null,null,null,null,null,null,null,null,null,null,{"$f":"IF($R225<>0,VLOOKUP($R225,Repertorio!$A$2:$M$85,11),\"\")","v":""},null,null,null,{"$f":"IF($R225<>0,VLOOKUP($R225,Repertorio!$A$2:$M$85,8),\"\")","v":""},{"$f":"IF($R225<>0,VLOOKUP($R225,Repertorio!$A$2:$M$85,10),\"\")","v":""},null,null,null,null,null,{"$f":"IF($R225<>0,VLOOKUP($R225,Repertorio!$A$2:$M$85,7),\"\")","v":""}]
[null,"","","",null,null,null,null,null,null,"",null,null,null,null,null,null,null,null,null,null,null,null,null,{"$f":"IF($R226<>0,VLOOKUP($R226,Repertorio!$A$2:$M$85,11),\"\")","v":""},null,null,null,{"$f":"IF($R226<>0,VLOOKUP($R226,Repertorio!$A$2:$M$85,8),\"\")","v":""},{"$f":"IF($R226<>0,VLOOKUP($R226,Repertorio!$A$2:$M$85,10),\"\")","v":""},null,null,null,null,null,{"$f":"IF($R226<>0,VLOOKUP($R226,Repertorio!$A$2:$M$85,7),\"\")","v":""}]
[null,"","","",null,null,null,null,null,null,"",null,null,null,null,null,null,null,null,null,null,null,null,null,{"$f":"IF($R227<>0,VLOOKUP($R227,Repertorio!$A$2:$M$85,11),\"\")","v":""},null,null,null,{"$f":"IF($R227<>0,VLOOKUP($R227,Repertorio!$A$2:$M$85,8),\"\")","v":""},{"$f":"IF($R227<>0,VLOOKUP($R227,Repertorio!$A$2:$M$85,10),\"\")","v":""},null,null,null,null,null,{"$f":"IF($R227<>0,VLOOKUP($R227,Repertorio!$A$2:$M$85,7),\"\")","v":""}]
[null,"","","",null,null,null,null,null,null,"",null,null,null,null,null,null,null,null,null,null,null,null,null,{"$f":"IF($R228<>0,VLOOKUP($R228,Repertorio!$A$2:$M$85,11),\"\")","v":""},null,null,null,{"$f":"IF($R228<>0,VLOOKUP($R228,Repertorio!$A$2:$M$85,8),\"\")","v":""},{"$f":"IF($R228<>0,VLOOKUP($R228,Repertorio!$A$2:$M$85,10),\"\")","v":""},null,null,null,null,null,{"$f":"IF($R228<>0,VLOOKUP($R228,Repertorio!$A$2:$M$85,7),\"\")","v":""}]
[null,"","","",null,null,null,null,null,null,"",null,null,null,null,null,null,null,null,null,null,null,null,null,{"$f":"IF($R229<>0,VLOOKUP($R229,Repertorio!$A$2:$M$85,11),\"\")","v":""},null,null,null,{"$f":"IF($R229<>0,VLOOKUP($R229,Repertorio!$A$2:$M$85,8),\"\")","v":""},{"$f":"IF($R229<>0,VLOOKUP($R229,Repertorio!$A$2:$M$85,10),\"\")","v":""},null,null,null,null,null,{"$f":"IF($R229<>0,VLOOKUP($R229,Repertorio!$A$2:$M$85,7),\"\")","v":""}]
[null,"","","",null,null,null,null,null,null,"",null,null,null,null,null,null,null,null,null,null,null,null,null,{"$f":"IF($R230<>0,VLOOKUP($R230,Repertorio!$A$2:$M$85,11),\"\")","v":""},null,null,null,{"$f":"IF($R230<>0,VLOOKUP($R230,Repertorio!$A$2:$M$85,8),\"\")","v":""},{"$f":"IF($R230<>0,VLOOKUP($R230,Repertorio!$A$2:$M$85,10),\"\")","v":""},null,null,null,null,null,{"$f":"IF($R230<>0,VLOOKUP($R230,Repertorio!$A$2:$M$85,7),\"\")","v":""}]
[null,"","","",null,null,null,null,null,null,"",null,null,null,null,null,null,null,null,null,null,null,null,null,{"$f":"IF($R231<>0,VLOOKUP($R231,Repertorio!$A$2:$M$85,11),\"\")","v":""},null,null,null,{"$f":"IF($R231<>0,VLOOKUP($R231,Repertorio!$A$2:$M$85,8),\"\")","v":""},{"$f":"IF($R231<>0,VLOOKUP($R231,Repertorio!$A$2:$M$85,10),\"\")","v":""},null,null,null,null,null,{"$f":"IF($R231<>0,VLOOKUP($R231,Repertorio!$A$2:$M$85,7),\"\")","v":""}]
[null,"","","",null,null,null,null,null,null,"",null,null,null,null,null,null,null,null,null,null,null,null,null,{"$f":"IF($R232<>0,VLOOKUP($R232,Repertorio!$A$2:$M$85,11),\"\")","v":""},null,null,null,{"$f":"IF($R232<>0,VLOOKUP($R232,Repertorio!$A$2:$M$85,8),\"\")","v":""},{"$f":"IF($R232<>0,VLOOKUP($R232,Repertorio!$A$2:$M$85,10),\"\")","v":""},null,null,null,null,null,{"$f":"IF($R232<>0,VLOOKUP($R232,Repertorio!$A$2:$M$85,7),\"\")","v":""}]
[null,"","","",null,null,null,null,null,null,"",null,null,null,null,null,null,null,null,null,null,null,null,null,{"$f":"IF($R233<>0,VLOOKUP($R233,Repertorio!$A$2:$M$85,11),\"\")","v":""},null,null,null,{"$f":"IF($R233<>0,VLOOKUP($R233,Repertorio!$A$2:$M$85,8),\"\")","v":""},{"$f":"IF($R233<>0,VLOOKUP($R233,Repertorio!$A$2:$M$85,10),\"\")","v":""},null,null,null,null,null,{"$f":"IF($R233<>0,VLOOKUP($R233,Repertorio!$A$2:$M$85,7),\"\")","v":""}]
[null,{"$f":"+IF($A234<>\"\",B$3,\"\")","v":""},"","",null,null,null,null,null,null,"",null,null,null,null,null,null,null,null,null,null,null,null,null,{"$f":"IF($R234<>0,VLOOKUP($R234,Repertorio!$A$2:$M$85,11),\"\")","v":""},null,null,null,{"$f":"IF($R234<>0,VLOOKUP($R234,Repertorio!$A$2:$M$85,8),\"\")","v":""},{"$f":"IF($R234<>0,VLOOKUP($R234,Repertorio!$A$2:$M$85,10),\"\")","v":""},null,null,null,null,null,{"$f":"IF($R234<>0,VLOOKUP($R234,Repertorio!$A$2:$M$85,7),\"\")","v":""}]
[null,"","","",null,null,null,null,null,null,"",null,null,null,null,null,null,null,null,null,null,null,null,null,{"$f":"IF($R235<>0,VLOOKUP($R235,Repertorio!$A$2:$M$85,11),\"\")","v":""},null,null,null,{"$f":"IF($R235<>0,VLOOKUP($R235,Repertorio!$A$2:$M$85,8),\"\")","v":""},{"$f":"IF($R235<>0,VLOOKUP($R235,Repertorio!$A$2:$M$85,10),\"\")","v":""},null,null,null,null,null,{"$f":"IF($R235<>0,VLOOKUP($R235,Repertorio!$A$2:$M$85,7),\"\")","v":""}]
[null,"","","",null,null,null,null,null,null,"",null,null,null,null,null,null,null,null,null,null,null,null,null,{"$f":"IF($R236<>0,VLOOKUP($R236,Repertorio!$A$2:$M$85,11),\"\")","v":""},null,null,null,{"$f":"IF($R236<>0,VLOOKUP($R236,Repertorio!$A$2:$M$85,8),\"\")","v":""},{"$f":"IF($R236<>0,VLOOKUP($R236,Repertorio!$A$2:$M$85,10),\"\")","v":""},null,null,null,null,null,{"$f":"IF($R236<>0,VLOOKUP($R236,Repertorio!$A$2:$M$85,7),\"\")","v":""}]
[null,"","","",null,null,null,null,null,null,"",null,null,null,null,null,null,null,null,null,null,null,null,null,{"$f":"IF($R237<>0,VLOOKUP($R237,Repertorio!$A$2:$M$85,11),\"\")","v":""},null,null,null,{"$f":"IF($R237<>0,VLOOKUP($R237,Repertorio!$A$2:$M$85,8),\"\")","v":""},{"$f":"IF($R237<>0,VLOOKUP($R237,Repertorio!$A$2:$M$85,10),\"\")","v":""},null,null,null,null,null,{"$f":"IF($R237<>0,VLOOKUP($R237,Repertorio!$A$2:$M$85,7),\"\")","v":""}]
[null,"","","",null,null,null,null,null,null,"",null,null,null,null,null,null,null,null,null,null,null,null,null,{"$f":"IF($R238<>0,VLOOKUP($R238,Repertorio!$A$2:$M$85,11),\"\")","v":""},null,null,null,{"$f":"IF($R238<>0,VLOOKUP($R238,Repertorio!$A$2:$M$85,8),\"\")","v":""},{"$f":"IF($R238<>0,VLOOKUP($R238,Repertorio!$A$2:$M$85,10),\"\")","v":""},null,null,null,null,null,{"$f":"IF($R238<>0,VLOOKUP($R238,Repertorio!$A$2:$M$85,7),\"\")","v":""}]
[null,"","","",null,null,null,null,null,null,"",null,null,null,null,null,null,null,null,null,null,null,null,null,{"$f":"IF($R239<>0,VLOOKUP($R239,Repertorio!$A$2:$M$85,11),\"\")","v":""},null,null,null,{"$f":"IF($R239<>0,VLOOKUP($R239,Repertorio!$A$2:$M$85,8),\"\")","v":""},{"$f":"IF($R239<>0,VLOOKUP($R239,Repertorio!$A$2:$M$85,10),\"\")","v":""},null,null,null,null,null,{"$f":"IF($R239<>0,VLOOKUP($R239,Repertorio!$A$2:$M$85,7),\"\")","v":""}]
[null,"","","",null,null,null,null,null,null,"",null,null,null,null,null,null,null,null,null,null,null,null,null,{"$f":"IF($R240<>0,VLOOKUP($R240,Repertorio!$A$2:$M$85,11),\"\")","v":""},null,null,null,{"$f":"IF($R240<>0,VLOOKUP($R240,Repertorio!$A$2:$M$85,8),\"\")","v":""},{"$f":"IF($R240<>0,VLOOKUP($R240,Repertorio!$A$2:$M$85,10),\"\")","v":""},null,null,null,null,null,{"$f":"IF($R240<>0,VLOOKUP($R240,Repertorio!$A$2:$M$85,7),\"\")","v":""}]
[null,"","","",null,null,null,null,null,null,"",null,null,null,null,null,null,null,null,null,null,null,null,null,{"$f":"IF($R241<>0,VLOOKUP($R241,Repertorio!$A$2:$M$85,11),\"\")","v":""},null,null,null,{"$f":"IF($R241<>0,VLOOKUP($R241,Repertorio!$A$2:$M$85,8),\"\")","v":""},{"$f":"IF($R241<>0,VLOOKUP($R241,Repertorio!$A$2:$M$85,10),\"\")","v":""},null,null,null,null,null,{"$f":"IF($R241<>0,VLOOKUP($R241,Repertorio!$A$2:$M$85,7),\"\")","v":""}]
[null,"","","",null,null,null,null,null,null,"",null,null,null,null,null,null,null,null,null,null,null,null,null,{"$f":"IF($R242<>0,VLOOKUP($R242,Repertorio!$A$2:$M$85,11),\"\")","v":""},null,null,null,{"$f":"IF($R242<>0,VLOOKUP($R242,Repertorio!$A$2:$M$85,8),\"\")","v":""},{"$f":"IF($R242<>0,VLOOKUP($R242,Repertorio!$A$2:$M$85,10),\"\")","v":""},null,null,null,null,null,{"$f":"IF($R242<>0,VLOOKUP($R242,Repertorio!$A$2:$M$85,7),\"\")","v":""}]
[null,"","","",null,null,null,null,null,null,"",null,null,null,null,null,null,null,null,null,null,null,null,null,{"$f":"IF($R243<>0,VLOOKUP($R243,Repertorio!$A$2:$M$85,11),\"\")","v":""},null,null,null,{"$f":"IF($R243<>0,VLOOKUP($R243,Repertorio!$A$2:$M$85,8),\"\")","v":""},{"$f":"IF($R243<>0,VLOOKUP($R243,Repertorio!$A$2:$M$85,10),\"\")","v":""},null,null,null,null,null,{"$f":"IF($R243<>0,VLOOKUP($R243,Repertorio!$A$2:$M$85,7),\"\")","v":""}]
[null,"","","",null,null,null,null,null,null,"",null,null,null,null,null,null,null,null,null,null,null,null,null,{"$f":"IF($R244<>0,VLOOKUP($R244,Repertorio!$A$2:$M$85,11),\"\")","v":""},null,null,null,{"$f":"IF($R244<>0,VLOOKUP($R244,Repertorio!$A$2:$M$85,8),\"\")","v":""},{"$f":"IF($R244<>0,VLOOKUP($R244,Repertorio!$A$2:$M$85,10),\"\")","v":""},null,null,null,null,null,{"$f":"IF($R244<>0,VLOOKUP($R244,Repertorio!$A$2:$M$85,7),\"\")","v":""}]
[null,"","","",null,null,null,null,null,null,"",null,null,null,null,null,null,null,null,null,null,null,null,null,{"$f":"IF($R245<>0,VLOOKUP($R245,Repertorio!$A$2:$M$85,11),\"\")","v":""},null,null,null,{"$f":"IF($R245<>0,VLOOKUP($R245,Repertorio!$A$2:$M$85,8),\"\")","v":""},{"$f":"IF($R245<>0,VLOOKUP($R245,Repertorio!$A$2:$M$85,10),\"\")","v":""},null,null,null,null,null,{"$f":"IF($R245<>0,VLOOKUP($R245,Repertorio!$A$2:$M$85,7),\"\")","v":""}]
[null,"","","",null,null,null,null,null,null,"",null,null,null,null,null,null,null,null,null,null,null,null,null,{"$f":"IF($R246<>0,VLOOKUP($R246,Repertorio!$A$2:$M$85,11),\"\")","v":""},null,null,null,{"$f":"IF($R246<>0,VLOOKUP($R246,Repertorio!$A$2:$M$85,8),\"\")","v":""},{"$f":"IF($R246<>0,VLOOKUP($R246,Repertorio!$A$2:$M$85,10),\"\")","v":""},null,null,null,null,null,{"$f":"IF($R246<>0,VLOOKUP($R246,Repertorio!$A$2:$M$85,7),\"\")","v":""}]
[null,"","","",null,null,null,null,null,null,"",null,null,null,null,null,null,null,null,null,null,null,null,null,{"$f":"IF($R247<>0,VLOOKUP($R247,Repertorio!$A$2:$M$85,11),\"\")","v":""},null,null,null,{"$f":"IF($R247<>0,VLOOKUP($R247,Repertorio!$A$2:$M$85,8),\"\")","v":""},{"$f":"IF($R247<>0,VLOOKUP($R247,Repertorio!$A$2:$M$85,10),\"\")","v":""},null,null,null,null,null,{"$f":"IF($R247<>0,VLOOKUP($R247,Repertorio!$A$2:$M$85,7),\"\")","v":""}]
[null,"","","",null,null,null,null,null,null,"",null,null,null,null,null,null,null,null,null,null,null,null,null,{"$f":"IF($R248<>0,VLOOKUP($R248,Repertorio!$A$2:$M$85,11),\"\")","v":""},null,null,null,{"$f":"IF($R248<>0,VLOOKUP($R248,Repertorio!$A$2:$M$85,8),\"\")","v":""},{"$f":"IF($R248<>0,VLOOKUP($R248,Repertorio!$A$2:$M$85,10),\"\")","v":""},null,null,null,null,null,{"$f":"IF($R248<>0,VLOOKUP($R248,Repertorio!$A$2:$M$85,7),\"\")","v":""}]
[null,"","","",null,null,null,null,null,null,"",null,null,null,null,null,null,null,null,null,null,null,null,null,{"$f":"IF($R249<>0,VLOOKUP($R249,Repertorio!$A$2:$M$85,11),\"\")","v":""},null,null,null,{"$f":"IF($R249<>0,VLOOKUP($R249,Repertorio!$A$2:$M$85,8),\"\")","v":""},{"$f":"IF($R249<>0,VLOOKUP($R249,Repertorio!$A$2:$M$85,10),\"\")","v":""},null,null,null,null,null,{"$f":"IF($R249<>0,VLOOKUP($R249,Repertorio!$A$2:$M$85,7),\"\")","v":""}]
[null,"","","",null,null,null,null,null,null,"",null,null,null,null,null,null,null,null,null,null,null,null,null,{"$f":"IF($R250<>0,VLOOKUP($R250,Repertorio!$A$2:$M$85,11),\"\")","v":""},null,null,null,{"$f":"IF($R250<>0,VLOOKUP($R250,Repertorio!$A$2:$M$85,8),\"\")","v":""},{"$f":"IF($R250<>0,VLOOKUP($R250,Repertorio!$A$2:$M$85,10),\"\")","v":""},null,null,null,null,null,{"$f":"IF($R250<>0,VLOOKUP($R250,Repertorio!$A$2:$M$85,7),\"\")","v":""}]
[null,"","","",null,null,null,null,null,null,"",null,null,null,null,null,null,null,null,null,null,null,null,null,{"$f":"IF($R251<>0,VLOOKUP($R251,Repertorio!$A$2:$M$85,11),\"\")","v":""},null,null,null,{"$f":"IF($R251<>0,VLOOKUP($R251,Repertorio!$A$2:$M$85,8),\"\")","v":""},{"$f":"IF($R251<>0,VLOOKUP($R251,Repertorio!$A$2:$M$85,10),\"\")","v":""},null,null,null,null,null,{"$f":"IF($R251<>0,VLOOKUP($R251,Repertorio!$A$2:$M$85,7),\"\")","v":""}]
[null,"","","",null,null,null,null,null,null,"",null,null,null,null,null,null,null,null,null,null,null,null,null,{"$f":"IF($R252<>0,VLOOKUP($R252,Repertorio!$A$2:$M$85,11),\"\")","v":""},null,null,null,{"$f":"IF($R252<>0,VLOOKUP($R252,Repertorio!$A$2:$M$85,8),\"\")","v":""},{"$f":"IF($R252<>0,VLOOKUP($R252,Repertorio!$A$2:$M$85,10),\"\")","v":""},null,null,null,null,null,{"$f":"IF($R252<>0,VLOOKUP($R252,Repertorio!$A$2:$M$85,7),\"\")","v":""}]
[null,"","","",null,null,null,null,null,null,"",null,null,null,null,null,null,null,null,null,null,null,null,null,{"$f":"IF($R253<>0,VLOOKUP($R253,Repertorio!$A$2:$M$85,11),\"\")","v":""},null,null,null,{"$f":"IF($R253<>0,VLOOKUP($R253,Repertorio!$A$2:$M$85,8),\"\")","v":""},{"$f":"IF($R253<>0,VLOOKUP($R253,Repertorio!$A$2:$M$85,10),\"\")","v":""},null,null,null,null,null,{"$f":"IF($R253<>0,VLOOKUP($R253,Repertorio!$A$2:$M$85,7),\"\")","v":""}]
[null,{"$f":"+IF($A254<>\"\",B$3,\"\")","v":""},"","",null,null,null,null,null,null,"",null,null,null,null,null,null,null,null,null,null,null,null,null,{"$f":"IF($R254<>0,VLOOKUP($R254,Repertorio!$A$2:$M$85,11),\"\")","v":""},null,null,null,{"$f":"IF($R254<>0,VLOOKUP($R254,Repertorio!$A$2:$M$85,8),\"\")","v":""},{"$f":"IF($R254<>0,VLOOKUP($R254,Repertorio!$A$2:$M$85,10),\"\")","v":""},null,null,null,null,null,{"$f":"IF($R254<>0,VLOOKUP($R254,Repertorio!$A$2:$M$85,7),\"\")","v":""}]
[null,"","","",null,null,null,null,null,null,"",null,null,null,null,null,null,null,null,null,null,null,null,null,{"$f":"IF($R255<>0,VLOOKUP($R255,Repertorio!$A$2:$M$85,11),\"\")","v":""},null,null,null,{"$f":"IF($R255<>0,VLOOKUP($R255,Repertorio!$A$2:$M$85,8),\"\")","v":""},{"$f":"IF($R255<>0,VLOOKUP($R255,Repertorio!$A$2:$M$85,10),\"\")","v":""},null,null,null,null,null,{"$f":"IF($R255<>0,VLOOKUP($R255,Repertorio!$A$2:$M$85,7),\"\")","v":""}]
[null,"","","",null,null,null,null,null,null,"",null,null,null,null,null,null,null,null,null,null,null,null,null,{"$f":"IF($R256<>0,VLOOKUP($R256,Repertorio!$A$2:$M$85,11),\"\")","v":""},null,null,null,{"$f":"IF($R256<>0,VLOOKUP($R256,Repertorio!$A$2:$M$85,8),\"\")","v":""},{"$f":"IF($R256<>0,VLOOKUP($R256,Repertorio!$A$2:$M$85,10),\"\")","v":""},null,null,null,null,null,{"$f":"IF($R256<>0,VLOOKUP($R256,Repertorio!$A$2:$M$85,7),\"\")","v":""}]
[null,"","","",null,null,null,null,null,null,"",null,null,null,null,null,null,null,null,null,null,null,null,null,{"$f":"IF($R257<>0,VLOOKUP($R257,Repertorio!$A$2:$M$85,11),\"\")","v":""},null,null,null,{"$f":"IF($R257<>0,VLOOKUP($R257,Repertorio!$A$2:$M$85,8),\"\")","v":""},{"$f":"IF($R257<>0,VLOOKUP($R257,Repertorio!$A$2:$M$85,10),\"\")","v":""},null,null,null,null,null,{"$f":"IF($R257<>0,VLOOKUP($R257,Repertorio!$A$2:$M$85,7),\"\")","v":""}]
[null,"","","",null,null,null,null,null,null,"",null,null,null,null,null,null,null,null,null,null,null,null,null,{"$f":"IF($R258<>0,VLOOKUP($R258,Repertorio!$A$2:$M$85,11),\"\")","v":""},null,null,null,{"$f":"IF($R258<>0,VLOOKUP($R258,Repertorio!$A$2:$M$85,8),\"\")","v":""},{"$f":"IF($R258<>0,VLOOKUP($R258,Repertorio!$A$2:$M$85,10),\"\")","v":""},null,null,null,null,null,{"$f":"IF($R258<>0,VLOOKUP($R258,Repertorio!$A$2:$M$85,7),\"\")","v":""}]
[null,"","","",null,null,null,null,null,null,"",null,null,null,null,null,null,null,null,null,null,null,null,null,{"$f":"IF($R259<>0,VLOOKUP($R259,Repertorio!$A$2:$M$85,11),\"\")","v":""},null,null,null,{"$f":"IF($R259<>0,VLOOKUP($R259,Repertorio!$A$2:$M$85,8),\"\")","v":""},{"$f":"IF($R259<>0,VLOOKUP($R259,Repertorio!$A$2:$M$85,10),\"\")","v":""},null,null,null,null,null,{"$f":"IF($R259<>0,VLOOKUP($R259,Repertorio!$A$2:$M$85,7),\"\")","v":""}]
[null,"","","",null,null,null,null,null,null,{"$f":"+IF(J260<>\"C9. Altro\",\"\",\"Valorizzare\")","v":""},null,null,null,null,null,null,null,null,null,null,null,null,null,{"$f":"IF($R260<>0,VLOOKUP($R260,Repertorio!$A$2:$M$85,11),\"\")","v":""},null,null,null,{"$f":"IF($R260<>0,VLOOKUP($R260,Repertorio!$A$2:$M$85,8),\"\")","v":""},{"$f":"IF($R260<>0,VLOOKUP($R260,Repertorio!$A$2:$M$85,10),\"\")","v":""},null,null,null,null,null,{"$f":"IF($R260<>0,VLOOKUP($R260,Repertorio!$A$2:$M$85,7),\"\")","v":""}]
[null,"","","",null,null,null,null,null,null,"",null,null,null,null,null,null,null,null,null,null,null,null,null,{"$f":"IF($R261<>0,VLOOKUP($R261,Repertorio!$A$2:$M$85,11),\"\")","v":""},null,null,null,{"$f":"IF($R261<>0,VLOOKUP($R261,Repertorio!$A$2:$M$85,8),\"\")","v":""},{"$f":"IF($R261<>0,VLOOKUP($R261,Repertorio!$A$2:$M$85,10),\"\")","v":""},null,null,null,null,null,{"$f":"IF($R261<>0,VLOOKUP($R261,Repertorio!$A$2:$M$85,7),\"\")","v":""}]
[null,"","","",null,null,null,null,null,null,"",null,null,null,null,null,null,null,null,null,null,null,null,null,{"$f":"IF($R262<>0,VLOOKUP($R262,Repertorio!$A$2:$M$85,11),\"\")","v":""},null,null,null,{"$f":"IF($R262<>0,VLOOKUP($R262,Repertorio!$A$2:$M$85,8),\"\")","v":""},{"$f":"IF($R262<>0,VLOOKUP($R262,Repertorio!$A$2:$M$85,10),\"\")","v":""},null,null,null,null,null,{"$f":"IF($R262<>0,VLOOKUP($R262,Repertorio!$A$2:$M$85,7),\"\")","v":""}]
[null,"","","",null,null,null,null,null,null,"",null,null,null,null,null,null,null,null,null,null,null,null,null,{"$f":"IF($R263<>0,VLOOKUP($R263,Repertorio!$A$2:$M$85,11),\"\")","v":""},null,null,null,{"$f":"IF($R263<>0,VLOOKUP($R263,Repertorio!$A$2:$M$85,8),\"\")","v":""},{"$f":"IF($R263<>0,VLOOKUP($R263,Repertorio!$A$2:$M$85,10),\"\")","v":""},null,null,null,null,null,{"$f":"IF($R263<>0,VLOOKUP($R263,Repertorio!$A$2:$M$85,7),\"\")","v":""}]
[null,"","","",null,null,null,null,null,null,"",null,null,null,null,null,null,null,null,null,null,null,null,null,{"$f":"IF($R264<>0,VLOOKUP($R264,Repertorio!$A$2:$M$85,11),\"\")","v":""},null,null,null,{"$f":"IF($R264<>0,VLOOKUP($R264,Repertorio!$A$2:$M$85,8),\"\")","v":""},{"$f":"IF($R264<>0,VLOOKUP($R264,Repertorio!$A$2:$M$85,10),\"\")","v":""},null,null,null,null,null,{"$f":"IF($R264<>0,VLOOKUP($R264,Repertorio!$A$2:$M$85,7),\"\")","v":""}]
[null,"","","",null,null,null,null,null,null,"",null,null,null,null,null,null,null,null,null,null,null,null,null,{"$f":"IF($R265<>0,VLOOKUP($R265,Repertorio!$A$2:$M$85,11),\"\")","v":""},null,null,null,{"$f":"IF($R265<>0,VLOOKUP($R265,Repertorio!$A$2:$M$85,8),\"\")","v":""},{"$f":"IF($R265<>0,VLOOKUP($R265,Repertorio!$A$2:$M$85,10),\"\")","v":""},null,null,null,null,null,{"$f":"IF($R265<>0,VLOOKUP($R265,Repertorio!$A$2:$M$85,7),\"\")","v":""}]
[null,"","","",null,null,null,null,null,null,"",null,null,null,null,null,null,null,null,null,null,null,null,null,{"$f":"IF($R266<>0,VLOOKUP($R266,Repertorio!$A$2:$M$85,11),\"\")","v":""},null,null,null,{"$f":"IF($R266<>0,VLOOKUP($R266,Repertorio!$A$2:$M$85,8),\"\")","v":""},{"$f":"IF($R266<>0,VLOOKUP($R266,Repertorio!$A$2:$M$85,10),\"\")","v":""},null,null,null,null,null,{"$f":"IF($R266<>0,VLOOKUP($R266,Repertorio!$A$2:$M$85,7),\"\")","v":""}]
[null,"","","",null,null,null,null,null,null,"",null,null,null,null,null,null,null,null,null,null,null,null,null,{"$f":"IF($R267<>0,VLOOKUP($R267,Repertorio!$A$2:$M$85,11),\"\")","v":""},null,null,null,{"$f":"IF($R267<>0,VLOOKUP($R267,Repertorio!$A$2:$M$85,8),\"\")","v":""},{"$f":"IF($R267<>0,VLOOKUP($R267,Repertorio!$A$2:$M$85,10),\"\")","v":""},null,null,null,null,null,{"$f":"IF($R267<>0,VLOOKUP($R267,Repertorio!$A$2:$M$85,7),\"\")","v":""}]
[null,"","","",null,null,null,null,null,null,"",null,null,null,null,null,null,null,null,null,null,null,null,null,{"$f":"IF($R268<>0,VLOOKUP($R268,Repertorio!$A$2:$M$85,11),\"\")","v":""},null,null,null,{"$f":"IF($R268<>0,VLOOKUP($R268,Repertorio!$A$2:$M$85,8),\"\")","v":""},{"$f":"IF($R268<>0,VLOOKUP($R268,Repertorio!$A$2:$M$85,10),\"\")","v":""},null,null,null,null,null,{"$f":"IF($R268<>0,VLOOKUP($R268,Repertorio!$A$2:$M$85,7),\"\")","v":""}]
[null,"","","",null,null,null,null,null,null,"",null,null,null,null,null,null,null,null,null,null,null,null,null,{"$f":"IF($R269<>0,VLOOKUP($R269,Repertorio!$A$2:$M$85,11),\"\")","v":""},null,null,null,{"$f":"IF($R269<>0,VLOOKUP($R269,Repertorio!$A$2:$M$85,8),\"\")","v":""},{"$f":"IF($R269<>0,VLOOKUP($R269,Repertorio!$A$2:$M$85,10),\"\")","v":""},null,null,null,null,null,{"$f":"IF($R269<>0,VLOOKUP($R269,Repertorio!$A$2:$M$85,7),\"\")","v":""}]
[null,"","","",null,null,null,null,null,null,"",null,null,null,null,null,null,null,null,null,null,null,null,null,{"$f":"IF($R270<>0,VLOOKUP($R270,Repertorio!$A$2:$M$85,11),\"\")","v":""},null,null,null,{"$f":"IF($R270<>0,VLOOKUP($R270,Repertorio!$A$2:$M$85,8),\"\")","v":""},{"$f":"IF($R270<>0,VLOOKUP($R270,Repertorio!$A$2:$M$85,10),\"\")","v":""},null,null,null,null,null,{"$f":"IF($R270<>0,VLOOKUP($R270,Repertorio!$A$2:$M$85,7),\"\")","v":""}]
[null,"","","",null,null,null,null,null,null,"",null,null,null,null,null,null,null,null,null,null,null,null,null,{"$f":"IF($R271<>0,VLOOKUP($R271,Repertorio!$A$2:$M$85,11),\"\")","v":""},null,null,null,{"$f":"IF($R271<>0,VLOOKUP($R271,Repertorio!$A$2:$M$85,8),\"\")","v":""},{"$f":"IF($R271<>0,VLOOKUP($R271,Repertorio!$A$2:$M$85,10),\"\")","v":""},null,null,null,null,null,{"$f":"IF($R271<>0,VLOOKUP($R271,Repertorio!$A$2:$M$85,7),\"\")","v":""}]
[null,"","","",null,null,null,null,null,null,"",null,null,null,null,null,null,null,null,null,null,null,null,null,{"$f":"IF($R272<>0,VLOOKUP($R272,Repertorio!$A$2:$M$85,11),\"\")","v":""},null,null,null,{"$f":"IF($R272<>0,VLOOKUP($R272,Repertorio!$A$2:$M$85,8),\"\")","v":""},{"$f":"IF($R272<>0,VLOOKUP($R272,Repertorio!$A$2:$M$85,10),\"\")","v":""},null,null,null,null,null,{"$f":"IF($R272<>0,VLOOKUP($R272,Repertorio!$A$2:$M$85,7),\"\")","v":""}]
[null,"","","",null,null,null,null,null,null,"",null,null,null,null,null,null,null,null,null,null,null,null,null,{"$f":"IF($R273<>0,VLOOKUP($R273,Repertorio!$A$2:$M$85,11),\"\")","v":""},null,null,null,{"$f":"IF($R273<>0,VLOOKUP($R273,Repertorio!$A$2:$M$85,8),\"\")","v":""},{"$f":"IF($R273<>0,VLOOKUP($R273,Repertorio!$A$2:$M$85,10),\"\")","v":""},null,null,null,null,null,{"$f":"IF($R273<>0,VLOOKUP($R273,Repertorio!$A$2:$M$85,7),\"\")","v":""}]
[null,{"$f":"+IF($A274<>\"\",B$3,\"\")","v":""},"","",null,null,null,null,null,null,"",null,null,null,null,null,null,null,null,null,null,null,null,null,{"$f":"IF($R274<>0,VLOOKUP($R274,Repertorio!$A$2:$M$85,11),\"\")","v":""},null,null,null,{"$f":"IF($R274<>0,VLOOKUP($R274,Repertorio!$A$2:$M$85,8),\"\")","v":""},{"$f":"IF($R274<>0,VLOOKUP($R274,Repertorio!$A$2:$M$85,10),\"\")","v":""},null,null,null,null,null,{"$f":"IF($R274<>0,VLOOKUP($R274,Repertorio!$A$2:$M$85,7),\"\")","v":""}]
[null,"","","",null,null,null,null,null,null,"",null,null,null,null,null,null,null,null,null,null,null,null,null,{"$f":"IF($R275<>0,VLOOKUP($R275,Repertorio!$A$2:$M$85,11),\"\")","v":""},null,null,null,{"$f":"IF($R275<>0,VLOOKUP($R275,Repertorio!$A$2:$M$85,8),\"\")","v":""},{"$f":"IF($R275<>0,VLOOKUP($R275,Repertorio!$A$2:$M$85,10),\"\")","v":""},null,null,null,null,null,{"$f":"IF($R275<>0,VLOOKUP($R275,Repertorio!$A$2:$M$85,7),\"\")","v":""}]
[null,"","","",null,null,null,null,null,null,"",null,null,null,null,null,null,null,null,null,null,null,null,null,{"$f":"IF($R276<>0,VLOOKUP($R276,Repertorio!$A$2:$M$85,11),\"\")","v":""},null,null,null,{"$f":"IF($R276<>0,VLOOKUP($R276,Repertorio!$A$2:$M$85,8),\"\")","v":""},{"$f":"IF($R276<>0,VLOOKUP($R276,Repertorio!$A$2:$M$85,10),\"\")","v":""},null,null,null,null,null,{"$f":"IF($R276<>0,VLOOKUP($R276,Repertorio!$A$2:$M$85,7),\"\")","v":""}]
[null,"","","",null,null,null,null,null,null,"",null,null,null,null,null,null,null,null,null,null,null,null,null,{"$f":"IF($R277<>0,VLOOKUP($R277,Repertorio!$A$2:$M$85,11),\"\")","v":""},null,null,null,{"$f":"IF($R277<>0,VLOOKUP($R277,Repertorio!$A$2:$M$85,8),\"\")","v":""},{"$f":"IF($R277<>0,VLOOKUP($R277,Repertorio!$A$2:$M$85,10),\"\")","v":""},null,null,null,null,null,{"$f":"IF($R277<>0,VLOOKUP($R277,Repertorio!$A$2:$M$85,7),\"\")","v":""}]
[null,"","","",null,null,null,null,null,null,"",null,null,null,null,null,null,null,null,null,null,null,null,null,{"$f":"IF($R278<>0,VLOOKUP($R278,Repertorio!$A$2:$M$85,11),\"\")","v":""},null,null,null,{"$f":"IF($R278<>0,VLOOKUP($R278,Repertorio!$A$2:$M$85,8),\"\")","v":""},{"$f":"IF($R278<>0,VLOOKUP($R278,Repertorio!$A$2:$M$85,10),\"\")","v":""},null,null,null,null,null,{"$f":"IF($R278<>0,VLOOKUP($R278,Repertorio!$A$2:$M$85,7),\"\")","v":""}]
[null,"","","",null,null,null,null,null,null,"",null,null,null,null,null,null,null,null,null,null,null,null,null,{"$f":"IF($R279<>0,VLOOKUP($R279,Repertorio!$A$2:$M$85,11),\"\")","v":""},null,null,null,{"$f":"IF($R279<>0,VLOOKUP($R279,Repertorio!$A$2:$M$85,8),\"\")","v":""},{"$f":"IF($R279<>0,VLOOKUP($R279,Repertorio!$A$2:$M$85,10),\"\")","v":""},null,null,null,null,null,{"$f":"IF($R279<>0,VLOOKUP($R279,Repertorio!$A$2:$M$85,7),\"\")","v":""}]
[null,"","","",null,null,null,null,null,null,"",null,null,null,null,null,null,null,null,null,null,null,null,null,{"$f":"IF($R280<>0,VLOOKUP($R280,Repertorio!$A$2:$M$85,11),\"\")","v":""},null,null,null,{"$f":"IF($R280<>0,VLOOKUP($R280,Repertorio!$A$2:$M$85,8),\"\")","v":""},{"$f":"IF($R280<>0,VLOOKUP($R280,Repertorio!$A$2:$M$85,10),\"\")","v":""},null,null,null,null,null,{"$f":"IF($R280<>0,VLOOKUP($R280,Repertorio!$A$2:$M$85,7),\"\")","v":""}]
[null,"","","",null,null,null,null,null,null,"",null,null,null,null,null,null,null,null,null,null,null,null,null,{"$f":"IF($R281<>0,VLOOKUP($R281,Repertorio!$A$2:$M$85,11),\"\")","v":""},null,null,null,{"$f":"IF($R281<>0,VLOOKUP($R281,Repertorio!$A$2:$M$85,8),\"\")","v":""},{"$f":"IF($R281<>0,VLOOKUP($R281,Repertorio!$A$2:$M$85,10),\"\")","v":""},null,null,null,null,null,{"$f":"IF($R281<>0,VLOOKUP($R281,Repertorio!$A$2:$M$85,7),\"\")","v":""}]
[null,"","","",null,null,null,null,null,null,"",null,null,null,null,null,null,null,null,null,null,null,null,null,{"$f":"IF($R282<>0,VLOOKUP($R282,Repertorio!$A$2:$M$85,11),\"\")","v":""},null,null,null,{"$f":"IF($R282<>0,VLOOKUP($R282,Repertorio!$A$2:$M$85,8),\"\")","v":""},{"$f":"IF($R282<>0,VLOOKUP($R282,Repertorio!$A$2:$M$85,10),\"\")","v":""},null,null,null,null,null,{"$f":"IF($R282<>0,VLOOKUP($R282,Repertorio!$A$2:$M$85,7),\"\")","v":""}]
[null,"","","",null,null,null,null,null,null,"",null,null,null,null,null,null,null,null,null,null,null,null,null,{"$f":"IF($R283<>0,VLOOKUP($R283,Repertorio!$A$2:$M$85,11),\"\")","v":""},null,null,null,{"$f":"IF($R283<>0,VLOOKUP($R283,Repertorio!$A$2:$M$85,8),\"\")","v":""},{"$f":"IF($R283<>0,VLOOKUP($R283,Repertorio!$A$2:$M$85,10),\"\")","v":""},null,null,null,null,null,{"$f":"IF($R283<>0,VLOOKUP($R283,Repertorio!$A$2:$M$85,7),\"\")","v":""}]
[null,"","","",null,null,null,null,null,null,"",null,null,null,null,null,null,null,null,null,null,null,null,null,{"$f":"IF($R284<>0,VLOOKUP($R284,Repertorio!$A$2:$M$85,11),\"\")","v":""},null,null,null,{"$f":"IF($R284<>0,VLOOKUP($R284,Repertorio!$A$2:$M$85,8),\"\")","v":""},{"$f":"IF($R284<>0,VLOOKUP($R284,Repertorio!$A$2:$M$85,10),\"\")","v":""},null,null,null,null,null,{"$f":"IF($R284<>0,VLOOKUP($R284,Repertorio!$A$2:$M$85,7),\"\")","v":""}]
[null,"","","",null,null,null,null,null,null,"",null,null,null,null,null,null,null,null,null,null,null,null,null,{"$f":"IF($R285<>0,VLOOKUP($R285,Repertorio!$A$2:$M$85,11),\"\")","v":""},null,null,null,{"$f":"IF($R285<>0,VLOOKUP($R285,Repertorio!$A$2:$M$85,8),\"\")","v":""},{"$f":"IF($R285<>0,VLOOKUP($R285,Repertorio!$A$2:$M$85,10),\"\")","v":""},null,null,null,null,null,{"$f":"IF($R285<>0,VLOOKUP($R285,Repertorio!$A$2:$M$85,7),\"\")","v":""}]
[null,"","","",null,null,null,null,null,null,"",null,null,null,null,null,null,null,null,null,null,null,null,null,{"$f":"IF($R286<>0,VLOOKUP($R286,Repertorio!$A$2:$M$85,11),\"\")","v":""},null,null,null,{"$f":"IF($R286<>0,VLOOKUP($R286,Repertorio!$A$2:$M$85,8),\"\")","v":""},{"$f":"IF($R286<>0,VLOOKUP($R286,Repertorio!$A$2:$M$85,10),\"\")","v":""},null,null,null,null,null,{"$f":"IF($R286<>0,VLOOKUP($R286,Repertorio!$A$2:$M$85,7),\"\")","v":""}]
[null,"","","",null,null,null,null,null,null,"",null,null,null,null,null,null,null,null,null,null,null,null,null,{"$f":"IF($R287<>0,VLOOKUP($R287,Repertorio!$A$2:$M$85,11),\"\")","v":""},null,null,null,{"$f":"IF($R287<>0,VLOOKUP($R287,Repertorio!$A$2:$M$85,8),\"\")","v":""},{"$f":"IF($R287<>0,VLOOKUP($R287,Repertorio!$A$2:$M$85,10),\"\")","v":""},null,null,null,null,null,{"$f":"IF($R287<>0,VLOOKUP($R287,Repertorio!$A$2:$M$85,7),\"\")","v":""}]
[null,"","","",null,null,null,null,null,null,"",null,null,null,null,null,null,null,null,null,null,null,null,null,{"$f":"IF($R288<>0,VLOOKUP($R288,Repertorio!$A$2:$M$85,11),\"\")","v":""},null,null,null,{"$f":"IF($R288<>0,VLOOKUP($R288,Repertorio!$A$2:$M$85,8),\"\")","v":""},{"$f":"IF($R288<>0,VLOOKUP($R288,Repertorio!$A$2:$M$85,10),\"\")","v":""},null,null,null,null,null,{"$f":"IF($R288<>0,VLOOKUP($R288,Repertorio!$A$2:$M$85,7),\"\")","v":""}]
[null,"","","",null,null,null,null,null,null,"",null,null,null,null,null,null,null,null,null,null,null,null,null,{"$f":"IF($R289<>0,VLOOKUP($R289,Repertorio!$A$2:$M$85,11),\"\")","v":""},null,null,null,{"$f":"IF($R289<>0,VLOOKUP($R289,Repertorio!$A$2:$M$85,8),\"\")","v":""},{"$f":"IF($R289<>0,VLOOKUP($R289,Repertorio!$A$2:$M$85,10),\"\")","v":""},null,null,null,null,null,{"$f":"IF($R289<>0,VLOOKUP($R289,Repertorio!$A$2:$M$85,7),\"\")","v":""}]
[null,"","","",null,null,null,null,null,null,"",null,null,null,null,null,null,null,null,null,null,null,null,null,{"$f":"IF($R290<>0,VLOOKUP($R290,Repertorio!$A$2:$M$85,11),\"\")","v":""},null,null,null,{"$f":"IF($R290<>0,VLOOKUP($R290,Repertorio!$A$2:$M$85,8),\"\")","v":""},{"$f":"IF($R290<>0,VLOOKUP($R290,Repertorio!$A$2:$M$85,10),\"\")","v":""},null,null,null,null,null,{"$f":"IF($R290<>0,VLOOKUP($R290,Repertorio!$A$2:$M$85,7),\"\")","v":""}]
[null,"","","",null,null,null,null,null,null,"",null,null,null,null,null,null,null,null,null,null,null,null,null,{"$f":"IF($R291<>0,VLOOKUP($R291,Repertorio!$A$2:$M$85,11),\"\")","v":""},null,null,null,{"$f":"IF($R291<>0,VLOOKUP($R291,Repertorio!$A$2:$M$85,8),\"\")","v":""},{"$f":"IF($R291<>0,VLOOKUP($R291,Repertorio!$A$2:$M$85,10),\"\")","v":""},null,null,null,null,null,{"$f":"IF($R291<>0,VLOOKUP($R291,Repertorio!$A$2:$M$85,7),\"\")","v":""}]
[null,"","","",null,null,null,null,null,null,"",null,null,null,null,null,null,null,null,null,null,null,null,null,{"$f":"IF($R292<>0,VLOOKUP($R292,Repertorio!$A$2:$M$85,11),\"\")","v":""},null,null,null,{"$f":"IF($R292<>0,VLOOKUP($R292,Repertorio!$A$2:$M$85,8),\"\")","v":""},{"$f":"IF($R292<>0,VLOOKUP($R292,Repertorio!$A$2:$M$85,10),\"\")","v":""},null,null,null,null,null,{"$f":"IF($R292<>0,VLOOKUP($R292,Repertorio!$A$2:$M$85,7),\"\")","v":""}]
[null,"","","",null,null,null,null,null,null,"",null,null,null,null,null,null,null,null,null,null,null,null,null,{"$f":"IF($R293<>0,VLOOKUP($R293,Repertorio!$A$2:$M$85,11),\"\")","v":""},null,null,null,{"$f":"IF($R293<>0,VLOOKUP($R293,Repertorio!$A$2:$M$85,8),\"\")","v":""},{"$f":"IF($R293<>0,VLOOKUP($R293,Repertorio!$A$2:$M$85,10),\"\")","v":""},null,null,null,null,null,{"$f":"IF($R293<>0,VLOOKUP($R293,Repertorio!$A$2:$M$85,7),\"\")","v":""}]
[null,{"$f":"+IF($A294<>\"\",B$3,\"\")","v":""},"","",null,null,null,null,null,null,"",null,null,null,null,null,null,null,null,null,null,null,null,null,{"$f":"IF($R294<>0,VLOOKUP($R294,Repertorio!$A$2:$M$85,11),\"\")","v":""},null,null,null,{"$f":"IF($R294<>0,VLOOKUP($R294,Repertorio!$A$2:$M$85,8),\"\")","v":""},{"$f":"IF($R294<>0,VLOOKUP($R294,Repertorio!$A$2:$M$85,10),\"\")","v":""},null,null,null,null,null,{"$f":"IF($R294<>0,VLOOKUP($R294,Repertorio!$A$2:$M$85,7),\"\")","v":""}]
[null,"","","",null,null,null,null,null,null,"",null,null,null,null,null,null,null,null,null,null,null,null,null,{"$f":"IF($R295<>0,VLOOKUP($R295,Repertorio!$A$2:$M$85,11),\"\")","v":""},null,null,null,{"$f":"IF($R295<>0,VLOOKUP($R295,Repertorio!$A$2:$M$85,8),\"\")","v":""},{"$f":"IF($R295<>0,VLOOKUP($R295,Repertorio!$A$2:$M$85,10),\"\")","v":""},null,null,null,null,null,{"$f":"IF($R295<>0,VLOOKUP($R295,Repertorio!$A$2:$M$85,7),\"\")","v":""}]
[null,"","","",null,null,null,null,null,null,"",null,null,null,null,null,null,null,null,null,null,null,null,null,{"$f":"IF($R296<>0,VLOOKUP($R296,Repertorio!$A$2:$M$85,11),\"\")","v":""},null,null,null,{"$f":"IF($R296<>0,VLOOKUP($R296,Repertorio!$A$2:$M$85,8),\"\")","v":""},{"$f":"IF($R296<>0,VLOOKUP($R296,Repertorio!$A$2:$M$85,10),\"\")","v":""},null,null,null,null,null,{"$f":"IF($R296<>0,VLOOKUP($R296,Repertorio!$A$2:$M$85,7),\"\")","v":""}]
[null,"","","",null,null,null,null,null,null,"",null,null,null,null,null,null,null,null,null,null,null,null,null,{"$f":"IF($R297<>0,VLOOKUP($R297,Repertorio!$A$2:$M$85,11),\"\")","v":""},null,null,null,{"$f":"IF($R297<>0,VLOOKUP($R297,Repertorio!$A$2:$M$85,8),\"\")","v":""},{"$f":"IF($R297<>0,VLOOKUP($R297,Repertorio!$A$2:$M$85,10),\"\")","v":""},null,null,null,null,null,{"$f":"IF($R297<>0,VLOOKUP($R297,Repertorio!$A$2:$M$85,7),\"\")","v":""}]
[null,"","","",null,null,null,null,null,null,"",null,null,null,null,null,null,null,null,null,null,null,null,null,{"$f":"IF($R298<>0,VLOOKUP($R298,Repertorio!$A$2:$M$85,11),\"\")","v":""},null,null,null,{"$f":"IF($R298<>0,VLOOKUP($R298,Repertorio!$A$2:$M$85,8),\"\")","v":""},{"$f":"IF($R298<>0,VLOOKUP($R298,Repertorio!$A$2:$M$85,10),\"\")","v":""},null,null,null,null,null,{"$f":"IF($R298<>0,VLOOKUP($R298,Repertorio!$A$2:$M$85,7),\"\")","v":""}]
[null,"","","",null,null,null,null,null,null,"",null,null,null,null,null,null,null,null,null,null,null,null,null,{"$f":"IF($R299<>0,VLOOKUP($R299,Repertorio!$A$2:$M$85,11),\"\")","v":""},null,null,null,{"$f":"IF($R299<>0,VLOOKUP($R299,Repertorio!$A$2:$M$85,8),\"\")","v":""},{"$f":"IF($R299<>0,VLOOKUP($R299,Repertorio!$A$2:$M$85,10),\"\")","v":""},null,null,null,null,null,{"$f":"IF($R299<>0,VLOOKUP($R299,Repertorio!$A$2:$M$85,7),\"\")","v":""}]

{"sheet":"Macro","index":1,"n_rows":0,"n_cols":0,"rows_kept":0,"cut":false,"hidden":true,"merged":[]}

{"sheet":"Menù","index":2,"n_rows":84,"n_cols":16,"rows_kept":84,"cut":false,"hidden":true,"merged":[]}
["LOTTO","SCELTA /SI/NO)","TIPOLOGIA AZIENDA","CodModulo","Macroarea","Sede Avellino","Sede Benevento","Sede Caserta","Sede Salerno","Sede Napoli","TITOLO STUDIO","TARGETING","ANNO CONSULENZA","ANNI","Ragione Sociale","Rispondenza"]
["Lotto 1 – Area GAL Irno Cavese - Terra è Vita","SI","A1. Cerealicolo",1,"A","Avellino","Benevento","Caserta","Salerno","Napoli","Master 1° livello o diploma di specializzazione","Beneficiari di altre misure del PSR",2017,0,"SPA",5]
["Lotto 2 – Area GAL Vallo di Diano","NO","A2. Orticolo",{"$f":"(D2+1)","v":2},"B",null,null,null,null,null,"Dottorato di ricerca o master 2° livello","Giovani agricoltori",2018,{"$f":"1+N2","v":1},"SRL",3]
["Lotto 3 – Area GAL Irpinia",null,"A3. Floricolo",3,"C",null,null,null,null,null,null,"Imprese che partecipano ad iniziative promosse dai G.O. della misura 16",2019,{"$f":"1+N3","v":2},"D.I.",1]
["Lotto 4 – Area GAL Casacastra",null,"A4. Frutticolo",4,"D",null,null,null,null,null,null,"No",2020,3,"SCPA"]
["Lotto 5 - Area GAL Alto Casertano",null,"A5. Agrumicolo",5,null,null,null,null,null,null,null,null,2021,4,"SS"]
["Lotto 6 - Area GAL Taburno - GAL Area Fortore",null,"A6. Vitivinicolo",6,null,null,null,null,null,null,null,null,2022,5,"SnC"]
["Lotto 7 - Area GAL Alto Tammaro - GAL Titerno",null,"A7. Olivicolo",7,null,null,null,null,null,null,null,null,2023,6,"Sas"]
["Lotto 8 - Area GAL Cilento Regeneratio",null,"A8. Zootecnico",8,null,null,null,null,null,null,null,null,2024,7,"Altro"]
["Lotto 9 - Area GAL I Sentieri del Buonvivere",null,"B1. Vitivinicolo",9,null,null,null,null,null,null,null,null,2025,8]
["Lotto 10 - Area GAL Terra Protetta",null,"B2. Ortofrutticolo IV e V gamma",10,null,null,null,null,null,null,null,null,null,9]
["Lotto 11 - Area GAL Vesuvio Verde",null,"B3. Conserviero tradizionale",11,null,null,null,null,null,null,null,null,null,10]
["Lotto 12 - Area GAL Partenio",null,"B4. Lattiero caseario",12,null,null,null,null,null,null,null,null,null,11]
["Lotto 13 - Area GAL Serinese Solofrana",null,"B5. Lavorazione delle carni fresche e stagionate",13,null,null,null,null,null,null,null,null,null,12]
["Lotto 14 - Area GAL Colline Salernitane",null,"B6. Oleario",14,null,null,null,null,null,null,null,null,null,13]
["Lotto 15 - Area GAL Irpinia Sannio - Cilsi",null,"B7. Lavorazione piante industriali",15,null,null,null,null,null,null,null,null,null,14]
[null,null,"B8. Miele",16,null,null,null,null,null,null,null,null,null,15]
[null,null,"C1. Ristorazione agrituristica e tradizionale",17,null,null,null,null,null,null,null,null,null,16]
[null,null,"C2. Accoglienza alberghiera",18,null,null,null,null,null,null,null,null,null,17]
[null,null,"C3. Accoglienza extra-alberghiera",19,null,null,null,null,null,null,null,null,null,18]
[null,null,"C4. Accoglienza agrituristica",20,null,null,null,null,null,null,null,null,null,19]
[null,null,"C5. Servizi turistici (guida, organizzazione dell’incoming, gestione di siti d’interesse, musei, etc)",21,null,null,null,null,null,null,null,null,null,20]
[null,null,"C6. Lavorazione del legno",22,null,null,null,null,null,null,null,null,null,21]
[null,null,"C7. Lavorazione della pietra",23,null,null,null,null,null,null,null,null,null,22]
[null,null,"C8. Ceramica e terracotta artistica e tradizionale",24,null,null,null,null,null,null,null,null,null,23]
[null,null,"C9. Altro",25,null,null,null,null,null,null,null,null,null,24]
[null,null,"D1. Azienda boschiva",26,null,null,null,null,null,null,null,null,null,25]
[null,null,"D2. Impresa di lavorazione e trasformazione del legno e dei suoi derivati",27,null,null,null,null,null,null,null,null,null,26]
[null,null,null,28,null,null,null,null,null,null,null,null,null,27]
[null,null,null,29,null,null,null,null,null,null,null,null,null,28]
[null,null,null,30,null,null,null,null,null,null,null,null,null,29]
[null,null,null,31,null,null,null,null,null,null,null,null,null,30]
[null,null,null,32,null,null,null,null,null,null,null,null,null,31]
[null,null,null,33,null,null,null,null,null,null,null,null,null,32]
[null,null,null,34,null,null,null,null,null,null,null,null,null,33]
[null,null,null,35,null,null,null,null,null,null,null,null,null,34]
[null,null,null,36,null,null,null,null,null,null,null,null,null,35]
[null,null,null,37,null,null,null,null,null,null,null,null,null,36]
[null,null,null,38,null,null,null,null,null,null,null,null,null,37]
[null,null,null,39,null,null,null,null,null,null,null,null,null,38]
[null,null,null,40,null,null,null,null,null,null,null,null,null,39]
[null,null,null,41,null,null,null,null,null,null,null,null,null,40]
[null,null,null,42,null,null,null,null,null,null,null,null,null,41]
[null,null,null,43,null,null,null,null,null,null,null,null,null,42]
[null,null,null,44,null,null,null,null,null,null,null,null,null,43]
[null,null,null,45,null,null,null,null,null,null,null,null,null,44]
[null,null,null,46,null,null,null,null,null,null,null,null,null,45]
[null,null,null,47,null,null,null,null,null,null,null,null,null,46]
[null,null,null,48,null,null,null,null,null,null,null,null,null,47]
[null,null,null,49,null,null,null,null,null,null,null,null,null,48]
[null,null,null,50,null,null,null,null,null,null,null,null,null,49]
[null,null,null,51,null,null,null,null,null,null,null,null,null,{"$f":"1+N51","v":50}]
[null,null,null,52]
[null,null,null,53]
[null,null,null,54]
[null,null,null,55]
[null,null,null,56]
[null,null,null,57]
[null,null,null,58]
[null,null,null,59]
[null,null,null,60]
[null,null,null,61]
[null,null,null,62]
[null,null,null,63]
[null,null,null,64]
[null,null,null,65]
[null,null,null,{"$f":"(D66+1)","v":66}]
[null,null,null,67]
[null,null,null,68]
[null,null,null,69]
[null,null,null,70]
[null,null,null,71]
[null,null,null,72]
[null,null,null,73]
[null,null,null,74]
[null,null,null,75]
[null,null,null,76]
[null,null,null,77]
[null,null,null,78]
[null,null,null,79]
[null,null,null,80]
[null,null,null,81]
[null,null,null,82]
[null,null,null,83]

{"sheet":"Repertorio","index":3,"n_rows":85,"n_cols":14,"rows_kept":85,"cut":false,"hidden":true,"merged":[]}
[1,{"$f":"+A1+1","v":2},{"$f":"+B1+1","v":3},4,5,6,7,8,9,10,11,12,13,14]
["CodModulo","Macro-moduli","modulo","tipologia","contenuti","ambito scheda di misura","ambito decreto","FA principale","consulenza collettiva","fabbisogno prevalente","prezzo massimo ammissibile/azienda","prezzo massimo attività collettiva","output da rendicontare","DETERMINAZIONI"]
[1,"agricoltura ecocompatibile","introduzione della coltivazione di colture innovative ","speciale","introduzione di colture innovative, con specifico riferimento alle esperienze derivate dalla misura 124 del PSR 2007-2013 e della sottomisura 16.1 azione b  del PSR 2014-2020","3, 12","H","2A","collettivo","F03",1000,20000,"Relazione dettagliata su risultati economici ottenuti con documentazione fotografica attività svolte","Rel. risult. econ. e doc. fotogr. attiv. svolte"]
[{"$f":"(A3+1)","v":2},"agricoltura ecocompatibile","biomarketing","speciale","consulenza di marketing per gruppi di aziende certificate con metodo biologico","3, 12","C","2A","collettivo","F04",1000,20000,"Piano di marketing e copia dei supporti promozionali realizzati","Piano marketing e copia supp. promoz. realizzati"]
[3,"agricoltura ecocompatibile","protezione fitosanitaria delle colture con metodo biologico","speciale","consulenza intensiva sulla protezione delle piante coltivate con metodo biologico per una specifica coltura","1, 2, 5, 12","E","3A",null,"F07",500,null,"Relazione su risultati ottenuti con documentazione fotografica attività svolte","Rel. risult. ottenuti e doc. fotogr. attiv. Svolte"]
[4,"agricoltura ecocompatibile","conversione aziendale all'agricoltura biologica","base","valutazione dell'opportunità della conversione rispetto alla situazione aziendale, familiare, del lavoro, analisi economica, informazione sulla normativa, analisi del mercato dei prodotti aziendali e relativa assistenza amministrativa","1, 2, 3, 5, 12","H","2A",null,"F07",1000,null,"Certificazione dell'organismo di controllo sullo status raggiunto di \"impresa in conversione\"","Cert. org. controllo status impr. in conversione"]
[5,"agricoltura ecocompatibile","miglioramento delle performance di aziende in agricoltura biologica","speciale","progettazione ed esecuzione del modello operativo di agricoltura biologica in una impresa già in conversione, piano di marketing, ottimizzazione del lavoro e dei fattori di produzione aziendali","2, 3, 5, 12","C","2A",null,"F07",1000,null,"Relazione dettagliata su risultati economici raggiunti e piano di marketing","Rel. risultati econ. raggiunti e piano marketing"]
[6,"agricoltura ecocompatibile","coltivazione con metodo biologico","base","gestione di una coltura specifica con metodo biologico","1, 2, 5, 12","J","2A",null,"F07",500,null,"Relazione dettagliata su risultati economici ottenuti con documentazione fotografica attività svolte","Rel. risult. econ. e doc. fotogr. attiv. svolte"]
[7,"agricoltura ecocompatibile","trasformazione dei prodotti biologici","speciale","analisi swot, consulenza sulle tecnologie da applicare e sull'organizzazione aziendale (lavoro, famiglia dell'imprenditore) per l'introduzione di attività di trasfomazione dei prodotti aziendali al fine di mantenere la certificazione anche sul trasformato, assistenza nell'etichettatura.","3, 12","C","2A",null,"F07",1500,null,"Relazione dettagliata su risultati economici ottenuti con documentazione fotografica attività svolte; Certificazione dell'organismo di controllo sullo status raggiunto di \"impresa in conversione\" per il prodotto trasformato","Rel e Cert status  impr. in conv. per prod trasf"]
[8,"agricoltura ecocompatibile","foraggicoltura e gestione dei pascoli nelle aziende zootecniche biologiche","speciale","miglioramento delle attività di foraggicoltura e di gestione dei pascoli attraverso pratiche agronomiche  compatibili con il metodo di agricoltura biologica","1, 2, 12","J","2A","collettivo","F07",500,10000,"Relazione su risultati ottenuti con documentazione fotografica attività svolte","Rel. risult. ottenuti e doc. fotogr. attiv. Svolte"]
[9,"ambiente ed energia","biodiversità","speciale","analisi ambientale, individuazione delle risorse di biodiversità agricola, naturale e zootecnica da conservare e sviluppare, individuazione di produzioni rispondenti ai requisiti di cui al DM 350/99 e/o a rischio di estinzione","2, 3, 11","K","P4",null,"F13",1500,null,"Elaborati proposti per l'inserimento nell'elenco PAT o nel registro biodiversità","Elab. per ins. elenco PAT o registro biodiversità"]
[10,"ambiente ed energia","paesaggio","speciale","formulazione di un piano d'azione aziendale per l'inserimento di pratiche ecocompatibili e di sviluppo della biodiversità, di miglioramento del paesaggio e sviluppo di attività di integrazione del reddito legate alla salvaguardia del paesaggio e all'estensivizzazione delle colture nonché della conservazione di elementi caratterizzanti del paesaggio (laghetti, stagni, siepi, etc)","2, 3, 8, 11","K","P4","collettivo","F14",1500,30000,"Elaborati relativi al piano d'azione aziendale, documentazione fotografica dettagliata prima e dopo gli interventi","Elab. piano aziend. doc. fot. dett. prim/dopo int."]
[11,"ambiente ed energia","armonizzazione delle attività agrosilvopastorali in aree protette","base","analisi delle attività di impresa ed introduzione di accorgimenti organizzativi e gestionali atti a superare i vincoli imposti dalle norme di salvaguardia delle aree protette (parchi nazionali, regionali, aree Natura 2000)","2, 3, 8","C","P4","collettivo","F14",500,10000,"Relazione su risultati ottenuti con documentazione fotografica attività svolte","Rel. risult. ottenuti e doc. fotogr. attiv. Svolte"]
[12,"ambiente ed energia","efficienza energetica","speciale","ottimizzare l'uso dell'energia attraverso l'analisi dei consumi per singolo processo, aumentare l'efficienza energetica attraverso adeguamenti strutturali volti al risparmio energetico, etc","2, 3","C","6A",null,"F19",500,null,"Relazione su risultati ottenuti con documentazione fotografica attività svolte","Rel. risult. ottenuti e doc. fotogr. attiv. Svolte"]
[13,"ambiente ed energia","gestione della frazione organica dei rifiuti ","speciale","assistenza alla gestione ed alla corretta utilizzazione del compost derivato dal compostaggio di RSU attraverso una rete di imprese (minimo 20 aziende)","8, 9, 10, 11","K","6A","collettivo","F23",1000,30000,"Relazione dettagliata su soluzioni tecniche adottate, risultati economici ottenuti con documentazione fotografica attività svolte","Rel sol tec adot ris econom doc fotogr att. Svolte"]
[14,"attività di allevamento","miglioramento delle performances di aziende zootecniche - gestione della riproduzione","base","introduzione di azioni di miglioramento della base genetica aziendale, valutazione delle prestazioni produttive riferite all'ambiente in cui opera l'impresa, e del sistema di stabulazione adottato","1, 3, 12","C","2A",null,"F03",1000,null,"Relazione dettagliata su risultati economici ottenuti con documentazione fotografica attività svolte","Rel. risult. econ. e doc. fotogr. attiv. svolte"]
[15,"attività di allevamento","miglioramento delle performances di aziende zootecniche - gestione della alimentazione","base","analisi degli alimenti di origine aziendale, introduzione di tecniche colturali innovative, formulazione della razione alimentare","3, 12","C","2A",null,"F03",1000,null,"Formulazione della razione alimentare aziendale, corredata di analisi dei foraggi e degli alimenti di origine aziendale, per classi omogenee di animali allevati, coerente con la consistenza di stalla","Raz alim analisi forag e alim orig az consist stal"]
[16,"attività di allevamento","azioni di salvaguardia dell'integrità del patrimonio zootecnico e di contrasto alle zoonosi ","base","attività di consulenza legate a temi individuati dall'amministrazione di rilevanza strategica ai fini della salute degli animali in allevamento e della sicurezza alimentare degli alimenti di origine zootecnica","8, 12","M","3A","collettivo","F03",500,"non previsto","Relazione sulle attività svolte corredata di documenti relativi ad eventuali farmaci e/o vaccini somministrati","Rel att svolte con doc rel a farmaci e/o vacc somm"]
[17,"attività di allevamento","adeguamento delle strutture di allevamento","base","analisi finalizzata all'individuazione delle migliori soluzioni organizzative, strutturali, tecnologiche per adeguare e/o progettare ex novo un allevamento di bestiame moderno e competitivo","1, 3, 4, 9, 12","C","2A",null,"F03",1500,null,"Relazione dettagliata su risultati economici ottenuti con documentazione fotografica attività svolte","Rel. risult. econ. e doc. fotogr. attiv. svolte"]
[18,"attività di allevamento","miglioramento delle performances di aziende zootecniche","speciale","analisi della struttura produttiva aziendale in termini di reddito, organizzazione del lavoro, produttività, disponibilità di alimenti di origine aziendale; individuazione degli obiettivi imprenditoriali , analisi swot, identificazione e valutazione delle possibili strategie di sviluppo","3, 4, 9, 12, 13","C*","3A",null,"F03",1000,null,"Relazione dettagliata su risultati economici ottenuti con documentazione fotografica attività svolte","Rel. risult. econ. e doc. fotogr. attiv. svolte"]
[19,"attività di allevamento","trasformazione dei prodotti zootecnici - sicurezza alimentare","speciale","formulazione del piano di autocontrollo e del manuale HACCP",1,"A","3A",null,"F03",1500,null,"Copia del piano di autocontrollo con SCIA sanitaria regolamente inoltrata agli uffici competenti o riconoscimento ai sensi del Regolamento 852 e 853/2004","piano autoc. SCIA sanit inol o ric Reg. 852-853/04"]
[20,"attività di allevamento","sviluppo di forme associative e di cooperazione","speciale","consulenza finalizzata alla costituzione, consolidamento, ampliamento della base associativa diforme aggregative delle imprese agricole ed agroalimentari","3, 12","C","3A","collettivo","F05",500,10000,"Relazione dettagliata sui risultati raggiunti e copia di atto costitutivo e statuto o altro documento equivalente regolarmente registrati","Rel risult/cop att cost e stat o doc equiv registr"]
[21,"attività di allevamento","trasformazione di prodotti zootecnici","base","introduzione dell'attività di trasformazione del latte e delle carni in relazione al disciplinare di riferimento o alle consuetudini consolidate dell'area di riferimento o all'introduzione di una innovazione introdotta dalla ricerca di settore, analisi delle metodologie di produzione dei prodotti lattieri caseari e delle carni fresche e/o conservate, elaborazione di una proposta di adeguamento tecnologico degli impianti, dell'organizzazione dei locali","3, 12","C","3A",null,"F06",1500,null,"Relazione dettagliata su risultati economici ottenuti, elaborati tecnici (almeno layout dell'impianto ed elenco macchinari) con documentazione fotografica attività svolte","Rel/elab tecn layout imp/macc e foto att svolte"]
[22,"attività di allevamento","benessere animale","base","analisi della struttura di allevamento in relazione all'alimentazione, alla struttura, all'organizzazione, finalizzata al conseguimento di un sufficiente livello di benessere degli animali allevati","1, 12","L","3A",null,"F07",1000,null,"Relazione dettagliata su risultati ottenuti con documentazione fotografica attività svolte","Relazione risultati e foto attività"]
[23,"attività di allevamento","sistemi facoltativi di certificazione del benessere animale","speciale","individuazione di standard di allevamento volti ad assicurare un livello di benessere animale superiore a quello previsto dalla normativa, implementazione di un sistema volontario di certificazione degli standard, azioni di comunicazione e marketing rivolti ai consumatori individuati come target","3, 12","L","2A","collettivo","F07",1500,30000,"Disciplinare del sistema volontario e documenti collegati, conformi a quanto previsto dagli  orientamenti  dell’Unione  sulle migliori  pratiche  riguardo  ai  regimi facoltativi  di  Certificazione  per  i  prodotti  agricoli  e  alimentari  (GU  UE  N.  2010/C  341/5  del 16/12/2010); piano di comunicazione e marketing","Disciplin sist volont Certif e piano comunic e mkt"]
[24,"attività di allevamento","gestione dei reflui zootecnici","speciale","valutazione dell'impatto della produzione di reflui dell'allevamento ed implementazione di un piano di gestione aziendale e/o collettivo","1, 9, 10, 11","K","5D","collettivo","F21",1000,20000,"Relazione dettagliata sulle attività svolte ed elaborati tecnici relativi, documentazione fotografica dettagliata","Relazione risultati doc tecnica e foto attività"]
[25,"attività di allevamento","tecnologie informatiche e digitali","base","applicazione di tecnologie informatiche e digitali nella gestione dell'impresa zootecnica","3, 12","C","3A",null,"F03",500,null,"Relazione dettagliata sulle attività svolte ed elaborati tecnici relativi","Relazione attività ed elaborati tecnici "]
[26,"attività forestali","sicurezza del lavoro nell'impresa forestale","base","analisi dei processi produttivi aziendali, individuazione dei rischi connessi alle attività lavorative per la sicurezza dei lavoratori e delle misure di contenimento del rischio",6,"F","2A",null,"F04",1000,null,"Relazione sulle attività svolte e DVR dell'impresa ","Relazione attività e DVR dell'impresa "]
[27,"attività forestali","sviluppo di forme associative e di cooperazione","speciale","consulenza finalizzata alla costituzione, consolidamento, ampliamento della base associativa di forme aggregative delle imprese forestali e della filiera del legno e dei prodotti cellulosici","3, 12","C","3A","collettivo","F05",500,10000,"Relazione dettagliata sui risultati raggiunti e copia di atto costitutivo e statuto o altro documento equivalente regolarmente registrati","Rel risult/cop att cost e stat o doc equiv registr"]
[28,"attività forestali","creazione di filiere certificate (catene di custodia)","speciale","creazione di associazioni e/o consorzi fra aziende della filiera del legno che afferiscano ad uno stesso sistema di certificazione della gestione forestale, compresi studi ed azioni di marketing","3, 12","C","6A","collettivo","F06",1500,30000,"Certificazione dell'organismo di controllo  secondo i sistemi PEFC e FSC","Certificazione secondo i sistemi PEFC e FSC"]
[29,"attività forestali","stima e valutazione danni","speciale","stima e valutazione dei danni arrecati da calamità naturali, fauna selvatica, dissesto idrogeologico","8, 10","I","P4",null,"F11",500,null,"Relazione di stima dei danni e documentazione relativa al danno subito","Relazione stima danni e doc danno subito"]
[30,"attività forestali","prevenzione dei danni","base","consulenza finalizzata all'adozione di misure di prevenzione di eventuali danni arrecati da calamità naturali, fauna selvatica","8, 10","I","P4",null,"F11",500,null,"Relazione dettagliata sulle attività svolte ed elaborati tecnici relativi","Relazione attività ed elaborati tecnici "]
[31,"attività forestali","prevenzione dei danni","speciale","consulenza finalizzata all'adozione di misure di prevenzione di eventuali danni arrecati da  dissesto idrogeologico","8, 10","I","P4",null,"F11",1500,null,"Relazione dettagliata sulle attività svolte ed elaborati tecnici relativi","Relazione attività ed elaborati tecnici "]
[32,"attività forestali","gestione delle biomasse derivati dall'attività di taglio delle aree forestali","speciale","introduzione di tecniche innovative per il reimpiego dei residui derivanti dall'attività di taglio delle superfici forestali e delle successive lavorazioni","1, 4","B","P4","collettivo","F12",1000,20000,"Relazione dettagliata sulle attività svolte ed elaborati tecnici relativi, documentazione fotografica dettagliata","Relazione risultati doc tecnica e foto attività"]
[33,"attività forestali","raccolta e gestione dei materiali di moltiplicazione forestali","speciale","Gestione ottimale della raccolta dei materiali di moltiplicazione ai sensi del D.lvo 386/2003 e del Regolamento Regione Campania n.5/2010 emanato con DPGR n.36 del 29/11/2016  ","8, 11","K","P4",null,"F13",1000,null,"Relazione dettagliata sulle attività svolte ed elaborati tecnici relativi, documentazione fotografica dettagliata","Relazione risultati doc tecnica e foto attività"]
[34,"attività forestali","fuoco prescritto","speciale","tecniche per la corretta applicazione del fuoco prescritto ai sensi della L.R. 20/2016",8,"I","P4",null,"F15",1000,null,"Relazione dettagliata sulle attività svolte ed elaborati tecnici relativi, documentazione fotografica dettagliata","Relazione risultati doc tecnica e foto attività"]
[35,"attività forestali","prevenzione e contrasto al fenomeno incendi boschivi","base","tecniche e strumenti utili per prevenire e contrastare il fenomeno degli incendi boschivi",8,"I","P4",null,"F15",1000,null,"Relazione dettagliata sulle attività svolte ed elaborati tecnici relativi, documentazione fotografica dettagliata","Relazione risultati doc tecnica e foto attività"]
[36,"attività forestali","prevenzione del dissesto idrogeologico","base","analisi dell'equilibrio idrogeologico di superfici agricole e forestali",8,"I","P4","collettivo","F18",1500,15000,"Relazione dettagliata sulle attività svolte ed elaborati tecnici relativi, documentazione fotografica dettagliata","Relazione risultati doc tecnica e foto attività"]
[37,"attività forestali","ingegneria naturalistica","speciale","progettazione di interventi di ingegneria naturalistica ai sensi della normativa vigente ai fini della prevenzione del dissesto idrogeologico nelle aree forestali",8,"I","P4",null,"F18",1000,null,"Relazione dettagliata sulle attività svolte ed elaborati tecnici relativi, documentazione fotografica dettagliata","Relazione risultati doc tecnica e foto attività"]
[38,"attività forestali","gestione forestale ecosostenibile","speciale","Gestione delle foreste secondo i principi della gestione forestale ecosostenibile","3, 8, 11","K","5E",null,"F21",1500,null,"Certificazione dell'organismo di controllo secondo i sistemi PEFC e FSC","Certificazione secondo i sistemi PEFC e FSC"]
[39,"attività forestali","programmazione e pianificazione delle attività forestali","speciale","applicazione del piano di gestione in una data superficie boschiva; progettazione  di tagli boschivi",8,"K","5E",null,"F21",1000,null,"Relazione dettagliata sulle attività svolte ed elaborati tecnici relativi, documentazione fotografica dettagliata","Relazione risultati doc tecnica e foto attività"]
[40,"attività forestali","attività di produzione nei vivai forestali","base","applicazione di tecniche innovative di produzione di piantine nei vivai forestali. Metodi di conservazione della biodiversità forestale.","8, 11","K","5E",null,"F21",1000,null,"Relazione dettagliata sulle attività svolte ed elaborati tecnici relativi, documentazione fotografica dettagliata","Relazione risultati doc tecnica e foto attività"]
[41,"attività forestali","Attività connesse ai funghi e tartufi","speciale","sviluppo di filiere locali legate alla raccolta, conservazione e commercializzazione di funghi e tartufi","3, 12","H","6A","collettivo","F22",1000,20000,"Relazione dettagliata su risultati economici ottenuti con documentazione fotografica attività svolte","Rel. risult. econ. e doc. fotogr. attiv. svolte"]
[42,"attività forestali","sistemi di certificazione della gestione forestale","speciale","applicazione di standard di gestione forestale secondo modelli certificati (FSC, PEFC)","3, 12","K","5C","collettivo","F22",1500,15000,"Certificazione dell'organismo di controllo secondo i sistemi PEFC e FSC","Certificazione secondo i sistemi PEFC e FSC"]
[43,"attività forestali","tecnologie informatiche e digitali","base","applicazione di tecnologie informatiche e digitali nella gestione dell'impresa forestale","3, 12","C","3A",null,"F03",500,null,"Relazione dettagliata sulle attività svolte ed elaborati tecnici relativi","Relazione attività ed elaborati tecnici "]
[44,"controllo di gestione e sviluppo dell'impresa agricola","valutazione delle attività d'impresa","speciale","assistenza alla gestione dell'impresa, analisi economica delle performances e ottimizzazione economica delle risorse aziendali","1, 3, 7, 12, 13","C*","2A",null,"F03",500,null,"Relazione dettagliata su risultati economici ottenuti con documentazione fotografica attività svolte","Rel. risult. econ. e doc. fotogr. attiv. svolte"]
[45,"controllo di gestione e sviluppo dell'impresa agricola","valutazione dell'introduzione di una nuova attività produttiva nell'ambito dell'ordinamento produttivo aziendale","speciale","analisi di forza e debolezza, confronto con imprese analoghe, valutazione finanziaria delle attività ed ottimizzazione, benchmarking","1, 3, 12","C","2A",null,"F04",1000,null,"Relazione dettagliata sulle attività svolte ed elaborati tecnici relativi","Relazione attività ed elaborati tecnici "]
[46,"controllo di gestione e sviluppo dell'impresa agricola","organizzazione dell'impresa","base","miglioramento delle condizioni di lavoro ed ottimizzazione del ciclo produttivo; organizzazione del lavoro e dei fattori produttivi aziendali","6, 12","C","2A",null,"F04",500,null,"Relazione dettagliata sulle attività svolte","Relazione dettagliata sulle attività svolte"]
[47,"controllo di gestione e sviluppo dell'impresa agricola","elaborazione di un piano di sviluppo aziendale","speciale","valutazione delle opportunità di sviluppo dell'impresa e stesura di un piano di sviluppo operativo, attrraverso la valutazione della disponibilità di manodopera, struttura aziendale, della composizione del nucleo familiare dell'imprenditore, del reddito retraibile","3, 7, 12, 13","C*","2A",null,"F04",1500,null,"Relazione dettagliata sulle attività svolte ed elaborati tecnici relativi (piano di sviluppo aziendale)","Relazione attività/piano di sviluppo aziendale"]
[48,"controllo di gestione e sviluppo dell'impresa agricola","sicurezza del lavoro nell'impresa agricola","base","analisi dei processi produttivi aziendali, individuazione dei rischi connessi alle attività lavorative per la sicurezza dei lavoratori e delle misure di contenimento del rischio",6,"F","2A",null,"F04",1500,null,"Relazione sulle attività svolte e DVR dell'impresa ","Relazione attività e DVR dell'impresa "]
[49,"controllo di gestione e sviluppo dell'impresa agricola","elaborazione di un piano di sviluppo aziendale finalizzato all'accesso al credito","speciale","valutazione delle opportunità di accesso al credito finalizzato allo sviluppo dell'impresa e predisposizione documentazione amministrativa ","3, 7, 12, 13","C*","2A",null,"F10",500,null,"Documentazione relativa all'effettivo accesso al credito dell'istituto bancario prescelto","Doc effettivo accesso credito istit bancario"]
[50,"diversificazione e multifunzionalità","introduzione di forme di integrazione del reddito e multifunzionalità","base","valutazione delle potenzialità della famiglia dell'imprenditore e della struttura aziendale, analisi dei punti di forza/debolezza - opportunità/rischi del progetto, valutazione del mercato attuale e relativi adempimenti amministrativi","3, 7, 12, 13","H*","6A",null,"F04",1000,null,"Elaborati tecnici ed amministrativi relativi all'avvio dell'attività agrituristica","Elab tec/ammin per avvio attiv agrituristica"]
[51,"diversificazione e multifunzionalità","sviluppo di forme di diversificazione","speciale","ottimizzazione ed ulteriore sviluppo di attività di diversificazione del reddito aziendale già in essere, valutazione delle performances  e del mercato potenziale, sviluppo di azioni di marketing","3, 12","H","6A",null,"F04",1500,null,"Relazione dettagliata su risultati economici ottenuti con documentazione fotografica attività svolte, piano di marketing","Rel ris econ foto att svolte piano marketing"]
[52,"diversificazione e multifunzionalità","creazione di reti locali di accoglienza","speciale","creazione di associazioni e/o consorzi fra aziende agrituristiche, dei servizi al turismo, della ristorazione tipica, dei servizi ambientali, della produzione e del commercio agroalimentare, dell'artigianato artistico e dell'incoming al fine di creare un sistema integrato di accoglienza in un dato territorio","3, 12","H","3A","collettivo","F06",1000,30000,"Relazione dettagliata sui risultati raggiunti e copia di atto costitutivo e statuto o altro documento equivalente regolarmente registrati","Rel risult/cop att cost e stat o doc equiv registr"]
[53,"diversificazione e multifunzionalità","introduzione di attività di vendita diretta","base","valutazione del mercato attuale e potenziale, adeguamento strutturale ed organizzativo, sviluppo di strumenti di merchandising, promozione e progettazione spazi destinati alla vendita","3, 12","C","3A",null,"F06",500,null,"Relazione dettagliata su risultati economici ottenuti con documentazione fotografica attività svolte, piano di marketing","Rel ris econ foto att svolte piano marketing"]
[54,"diversificazione e multifunzionalità","valutazione ex ante di attività di investimento nel campo della vendita diretta ","speciale","valutazione di azioni volte a migliorare le capacità operative ed economiche dell'impresa, valutazione della qualità dell'offerta aziendale e dell'adattamento al mercato, prioritariamente alle imprese avviatesi negli ultimi cinque anni","3, 12, 13","H*","2B","collettivo ","F09",1000,20000,"Relazione dettagliata su risultati economici ottenuti con documentazione fotografica attività svolte","Rel. risult. econ. e doc. fotogr. attiv. svolte"]
[55,"diversificazione e multifunzionalità","produzione di biogas e di energie alternative ed ecocompatibili ","speciale","valutazione della convenienza dell'introduzione dell'attività di produzione di biogas e di elettricità con metodi ecocompatibili oltre il fabbisogno aziendale","3, 12","H","5C","collettivo","F20",1000,20000,"Relazione dettagliata su risultati economici ottenibili con documentazione fotografica attività svolte","Relazione  ris econo e foto attività svolte"]
[56,"diversificazione e multifunzionalità","tecnologie informatiche e digitali","base","applicazione di tecnologie informatiche e digitali nella gestione delle PMI operanti nelle aree rurali, nei campi del turismo, della ristorazione tipica, del commercio dei prodotti tipici, dei servizi ambientali, dell'artigianato artistico","3, 12","C","3A",null,"F03",500,null,"Relazione dettagliata sulle attività svolte ed elaborati tecnici relativi","Relazione attività ed elaborati tecnici "]
[57,"produzione agricola","stima e valutazione danni","base","stima e valutazione dei danni arrecati da calamità naturali, fauna selvatica, ","8, 10","I","P4",null,"F11",500,null,"Relazione di stima dei danni e documentazione relativa al danno subito","Relazione stima danni e doc danno subito"]
[58,"produzione agricola","stima e valutazione danni","speciale","stima e valutazione dei danni arrecati dal dissesto idrogeologico","8, 10","I","P4",null,"F11",1500,null,"Relazione di stima dei danni e documentazione relativa al danno subito","Relazione stima danni e doc danno subito"]
[59,"produzione agricola","prevenzione dei danni","speciale","consulenza finalizzata all'adozione di misure di prevenzione di eventuali danni arrecati da calamità naturali, fauna selvatica, dissesto idrogeologico","8, 10","I","P4",null,"F11",1000,null,"Relazione dettagliata sulle attività svolte ed elaborati tecnici relativi","Relazione attività ed elaborati tecnici "]
[60,"produzione agricola","gestione delle acque di vegetazione dei frantoi oleari","speicale","diffusione di tecniche innovative di trattamento delle acque di vegetazione derivanti dall'attività di lavorazione delle olive ","1, 4","D","P4","collettivo","F12",1000,20000,"Relazione dettagliata sulle attività svolte ed elaborati tecnici relativi, documentazione fotografica dettagliata","Relazione risultati doc tecnica e foto attività"]
[61,"produzione agricola","ottimizzazione tecnologica","base","analisi del fabbisogno di meccanizzazione dell'impresa agricola, valutazione del parco macchine esistente, studio dell'introduzione di nuove tecnologie a basso impatto aziendale e ad alta efficienza operativa","3, 12","C","2A",null,"F03",500,null,"Relazione dettagliata sulle attività svolte","Relazione dettagliata sulle attività svolte"]
[62,"produzione agricola","trasformazione dei prodotti vegetali - sicurezza alimentare","speciale","formulazione del piano di autocontrollo e del manuale HACCP",1,"A","3A",null,"F03",1500,null,"Copia del piano di autocontrollo con SCIA sanitaria regolamente inoltrata agli uffici competenti o riconoscimento ai sensi del Regolamento 852/2004","Piano autocontr SCIA inoltr/riconoscim Reg852/05"]
[63,"produzione agricola","emergenze fitopatologiche","base","consulenza sulle modalità di lotta e prevenzione delle fitopatie a lotta obbligatoria",8,"I","2A","collettivo","F03",500,"non previsto","Relazione sulle attività svolte corredata di documenti relativi ad eventuali fitofarmaci e/o altri presidi adoperati","Rel con doc eventuali fitofarmaci e/o altri presid"]
[64,"produzione agricola","consulenza specifica di comparto","base","introduzione di moderne tecniche di coltivazione riferite ad una specifica coltura, almeno con metodo integrato","2, 3, 5, 12, 13","C*","2A","collettivo","F04",500,10000,"Relazione dettagliata su risultati economici ottenuti con documentazione fotografica attività svolte","Rel. risult. econ. e doc. fotogr. attiv. svolte"]
[{"$f":"(A66+1)","v":65},"produzione agricola","viticoltura - produzione dell'uva","base","gestione del vigneto, scelta del vitigno, del portainnesto, della forma di allevamento, con riferimento al disciplinare di riferimento o alle consuetudini consolidate dell'area di riferimento o all'introduzione di una innovazione introdotta dalla ricerca di settore","1, 5, 12","C","2A",null,"F04",500,null,"Relazione dettagliata su risultati economici ottenuti con documentazione fotografica attività svolte","Rel. risult. econ. e doc. fotogr. attiv. svolte"]
[66,"produzione agricola","viticoltura - cantina ed invecchiamento","speciale","introduzione della trasformazione dell'uva in relazione al disciplinare di riferimento o alle consuetudini consolidate dell'area di riferimento o all'introduzione di una innovazione introdotta dalla ricerca di settore, ","3, 12","C","2A",null,"F04",1500,null,"Relazione dettagliata su risultati economici ottenuti, elaborati tecnici (almeno layout dell'impianto ed elenco macchinari) con documentazione fotografica attività svolte","Rel/elab tecn layout imp/macc e foto att svolte"]
[67,"produzione agricola","olivicoltura - produzione delle olive","base","gestione dell'oliveto, scelta della varietà, della forma di allevamento, con riferimento al disciplinare di riferimento o alle consuetudini consolidate dell'area di riferimento o all'introduzione di una innovazione introdotta dalla ricerca di settore, analisi delle metodologie di vinificazione ed elaborazione di una proposta di adeguamento tecnologico degli impianti, dell'organizzazione dei locali","1, 5, 12","C","2A",null,"F04",500,null,"Relazione dettagliata su risultati economici ottenuti con documentazione fotografica attività svolte","Rel. risult. econ. e doc. fotogr. attiv. svolte"]
[68,"produzione agricola","olivicoltura - produzione dell'olio","speciale","introduzione dell'attività di frantoio in relazione al disciplinare di riferimento o alle consuetudini consolidate dell'area di riferimento o all'introduzione di una innovazione introdotta dalla ricerca di settore, analisi delle metodologie di produzione dell'olio ed elaborazione di una proposta di adeguamento tecnologico degli impianti, dell'organizzazione dei locali","3, 12","C","2A",null,"F04",1500,null,"Relazione dettagliata su risultati economici ottenuti, elaborati tecnici (almeno layout dell'impianto ed elenco macchinari) con documentazione fotografica attività svolte","Rel/elab tecn layout imp/macc e foto att svolte"]
[69,"produzione agricola","sviluppo di forme associative e di cooperazione","base","consulenza finalizzata alla costituzione, consolidamento, ampliamento della base associativa diforme aggregative delle imprese zootecniche ed agroalimentari","3, 12","C","3A","collettivo","F05",500,10000,"Relazione dettagliata sui risultati raggiunti e copia di atto costitutivo e statuto o altro documento equivalente regolarmente registrati","Rel risult/cop att cost e stat o doc equiv registr"]
[70,"produzione agricola","irrigazione e fertirrigazione ","base","analisi del bilancio idrico aziendale, introduzione di forme di risparmio del corpo idrico e riduzione dei concimi chimici, di metodi di coltivazione e di impianti di irrigazione e fertirrigazione a basso consumo ed alta efficienza","4, 9, 10","K","5A",null,"F16",1000,null,"Relazione dettagliata sulle attività svolte e relativa documentazione fotografica","Relazione attività svolte e doc fotografica"]
[71,"produzione agricola","foraggicoltura","base","gestione dei pascoli, della foraggicoltura e metodiche di conservazione dei foraggi e dei fieni, dei calendari di taglio, dei mix delle essenze da seminare ","1, 2, 4, 9","B","P4",null,"F17",1000,null,"Relazione dettagliata sulle attività svolte e relativa documentazione fotografica","Relazione attività svolte e doc fotografica"]
[72,"produzione agricola","gestione dei pascoli estensivi e delle aree sottoposte alle attività di cui all'art 43 commi 2 e 3 del Reg. 1307/13 ","speciale","gestione delle attività di conservazione dei pascoli e delle aree di interesse ecologico e quelle gestite con criteri di salvaguardia del paesaggio, mitigazione dei cambiamenti climatici, della tutela del suolo e delle acque, della biodiversità","1, 2, 4, 9, 11","K","P4",null,"F17",1500,null,"Relazione dettagliata sulle attività svolte e relativa documentazione fotografica","Relazione attività svolte e doc fotografica"]
[73,"produzione agricola","tecnologie informatiche e digitali","base","applicazione di tecnologie informatiche e digitali nella gestione dell'impresa agricola","3, 12","C","3A",null,"F03",500,null,"Relazione dettagliata sulle attività svolte ed elaborati tecnici relativi","Relazione attività ed elaborati tecnici "]
[74,"sistemi di qualità","creazione di consorzi di tutela","speciale","creazione di consorzi fra aziende produttrici di prodotti a denominazione, così come previsto dalla Legge 21 dicembre 1999 n. 526","3, 12","C","3A","collettivo","F05",1000,15000,"Relazione dettagliata sui risultati raggiunti e copia di atto costitutivo e statuto o altro documento equivalente regolarmente registrati,  copia documentazione inoltrata al MiPAAF per il riconosimento","Rel ris att cost stat altro registr doc ric MiPAAF"]
[75,"sistemi di qualità","sistemi di qualità - Reg. 1151","speciale","introduzione di sistemi di qualità certificata ai sensi del Reg. 1151/12, elaborazione di un disciplinare, nota storica, elaborazione del marchio - logo","3, 12","C","3A","collettivo","F07",1500,15000,"Disciplinare del sistema volontario e documenti collegati, conformi a quanto previsto dal regolamento 1151/12, regolarmente inoltrati al MiPAAF per il riconoscimento","Disciplinare e docum collegati, doc ric MiPAAF"]
[76,"sistemi di qualità","garanzia della qualità e qualità certificata","base","introduzione di sistemi di qualità certificata e valutazione dell'osservanza delle prescrizioni normative su determinati comparti","3, 12","C","3A","collettivo","F07",1500,15000,"Disciplinare del sistema volontario e documenti collegati, conformi a quanto previsto dagli  orientamenti  dell’Unione  sulle migliori  pratiche  riguardo  ai  regimi facoltativi  di  Certificazione  per  i  prodotti  agricoli  e  alimentari  (GU  UE  N.  2010/C  341/5  del 16/12/2010)","Disc doc prodot agr/alim(GU UE2010/C 341/5 16/10)"]
[77,"sistemi di qualità","certificazione EMAS - ISO 14001","speciale","attività propedeutica alla certificazione EMAS o ISO 14001","2, 5, 12","B","3A",null,"F07",1500,null,"Certificazione dell'organismo di controllo secondo i sistemi EMAS o ISO 14001","Certificazione EMAS o ISO 14002"]
[78,"pacchetto anti COVID","1cov-Adeguamento della struttura aziendale e dei processi produttivi ai fini della sicurezza dei consumatori","speciale","Adeguamento dei piani di autocontrollo aziendale ai fini dell'osservanza delle norme di prevenzione anti COVID",1,"A","2B",null,"F09",1500,null,"Copia del piano di autocontrollo con SCIA sanitaria regolarmente inoltrata agli uffici competenti o riconoscimento ai sensi del Reg.852/2004","Piano autocontr SCIA inoltr/riconoscim Reg852/05"]
[79,"pacchetto anti COVID","2cov-Adeguamento della struttura aziendale e dei processi produttivi ai fini della sicurezza dei lavoratori","base","Adozione di misure di riorganizzazione della struttura produttiva aziendale per il miglioramento delle condizioni di lavoro degli operatori","6, 12","C","2B",null,"F09",1000,null,"Relazione dettagliata sulle attività svolte","Relazione dettagliata sulle attività svolte"]
[80,"pacchetto anti COVID","3cov-Adozione di misure di contenimento del rischio e di osservanza delle norme di prevenzione anti COVID","base","Analisi dei processi produttivi aziendali, individuazione dei rischi connessi alle attività lavorative per la sicurezza dei lavoratori e delle misure di contenimento del rischio",6,"F","2B",null,"F09",1000,null,"Relazione dettagliata sulle attività svolte","Relazione dettagliata sulle attività svolte"]
[81,"pacchetto anti COVID","4cov-Riorientamento del sistema di vendita dell'impresa a seguito delle mutate caratteristiche del mercato di riferimento","speciale","Consulenza di marketing per l'individuazione di mercati regionali, nazionali che tengano conto dei mutamenti indotti dall'epidemia COVID 19","3, 12","C","2B",null,"F09",1000,null,"Piano di marketing e copia dei supporti promozionali realizzati","Piano marketing e copia supp. promoz. Realizzati"]
[82,"pacchetto anti COVID","5cov-Riorientamento del sistema di vendita dell'impresa a seguito delle mutate caratteristiche del mercato di riferimento","speciale","Consulenza di marketing per l'individuazione di mercati esteri che tengano conto dei mutamenti indotti dall'epidemia COVID 19","3, 12","C","2B",null,"F09",1500,null,"Piano di marketing e copia dei supporti promozionali realizzati","Piano marketing e copia supp. promoz. Realizzati"]
[83,"pacchetto anti COVID","6cov-Elaborazione di un piano di riorganizzazione aziendale finalizzato all'accesso al credito","speciale","Valutazione delle opportunità di accesso al credito finalizzato all'adeguamento della struttura dell'impresa a seguito delle norme di prevenzione anti COVID e predisposizione documentazione amministrativa","3, 7, 12, 13","C","2B","collettivo","F10",1000,20000,"Documentazione relativa all'effettivo accesso al credito dell'istituto bancario prescelto","Doc effettivo accesso credito istit bancario"]